{"text_format":"1","workbook":"xlsx","n_sheets":2,"sheets":["Datos","Busqueda"],"not_rendered":{"charts":0,"images":1,"macros":1,"external_links":0,"defined_names":15,"comments":0,"pivot_tables":0},"unopened":[],"bounds":{"document_bytes":16777216,"sheet_cells":100000,"rows_first":2000,"rows_last":500,"rows_between":2000,"halvings":0,"cell_chars":16384,"cell_head_chars":4096},"cells_cut":0,"cells_raw":0,"read":"whole","date_system":"1900"}

{"sheet":"Datos","index":0,"n_rows":159,"n_cols":11,"rows_kept":159,"cut":false,"hidden":true,"merged":[]}
[{"$f":"COUNTIF(NOMBRE,\"*\"&Dato_Busqueda&\"*\")","v":147},{"$f":"COUNTIF(IDENTIFICACION,Dato_Busqueda)","v":0}]
["BUSQUEDA NOMBRE","BUSQUEDA CC","ITEM","EXPEDIENTE","NUMERO DE COMPARENDO","NOMBRE","TIPO DE DOCUMENTO","IDENTIFICACION","LUGAR","FECHA ","CITACION HORA"]
[{"$f":"IF((COUNTIF($F3,\"*\"&Dato_Busqueda&\"*\"))=1,1,0)","v":1},{"$f":"COUNTIF($H$2:$H3,Dato_Busqueda)","v":0},1,"2018223490100545E",null,"AURORA HERNANDEZ CLAVIJO ","CC",20544405,"CL 12 C No 8-53 Tercer Piso Edificio furatena ","2018-02-14","08:00:00"]
[{"$f":"IF((COUNTIF($F4,\"*\"&Dato_Busqueda&\"*\"))=1,$A3+1,$A3)","v":2},{"$f":"COUNTIF($H$2:$H4,Dato_Busqueda)","v":0},2,"2018223490105381E",null,"LORENZA INES CASTRO AUTRET","CC",23542728,"CL 12 C No 8-53 Tercer Piso Edificio furatena ","2018-02-21","08:00:00"]
[3,{"$f":"COUNTIF($H$2:$H5,Dato_Busqueda)","v":0},3,"2018223490101442E",null,"MARIA AURORA PIÑEROS","CC",35323191,"CL 12 C No 8-53 Tercer Piso Edificio furatena ","2018-02-21","09:30:00"]
[4,{"$f":"COUNTIF($H$2:$H6,Dato_Busqueda)","v":0},4,"2018223490101769E",null,"MARIA TRINIDAD GUERREO LÓPEZ ","CC",41502628,"CL 12 C No 8-53 Tercer Piso Edificio furatena ","2018-02-21","11:00:00"]
[5,{"$f":"COUNTIF($H$2:$H7,Dato_Busqueda)","v":0},5,"2018223490110550E",null,"RODRIGUEZ MORA FLOR MERY","CC",51947202,"CL 12 C No 8-53 Tercer Piso Edificio furatena ","2018-03-18","08:00:00"]
[6,{"$f":"COUNTIF($H$2:$H8,Dato_Busqueda)","v":0},6,"2018223490105395E",null,"JORGE DAVID RODRIGUEZ ","CC",1032382489,"CL 12 C No 8-53 Tercer Piso Edificio furatena ","2018-02-22","08:00:00"]
[7,{"$f":"COUNTIF($H$2:$H9,Dato_Busqueda)","v":0},7,"2018223490105267E",null,"ALICIA VARGAS AREVALO ","CC",41672292,"CL 12 C No 8-53 Tercer Piso Edificio furatena ","2018-02-22","09:30:00"]
[8,{"$f":"COUNTIF($H$2:$H10,Dato_Busqueda)","v":0},8,"2018223490101816E",null,"ANA MILENA AVILA SALES","CC",52814827,"CL 12 C No 8-53 Tercer Piso Edificio furatena ","2018-02-22","11:00:00"]
[9,{"$f":"COUNTIF($H$2:$H11,Dato_Busqueda)","v":0},9,"2018223490100577E","11-001-0342669","SIXTO ANTONIO NAVARRO","CC",91011706,"CL 12 C No 8-53 Tercer Piso Edificio furatena ","2018-02-27","08:00:00"]
[10,{"$f":"COUNTIF($H$2:$H12,Dato_Busqueda)","v":0},10,"2018223490109040E",null,"MARTHA BEATRIZ FONSECA PERILLA ","CC",51745968,"CL 12 C No 8-53 Tercer Piso Edificio furatena ","2018-03-23","08:00:00"]
[11,{"$f":"COUNTIF($H$2:$H13,Dato_Busqueda)","v":0},11,"2018223490109073E",null,"NATALY GARCIA PEÑA","CC",1032369542,"CL 12 C No 8-53 Tercer Piso Edificio furatena ","2018-03-23","09:30:00"]
[12,{"$f":"COUNTIF($H$2:$H14,Dato_Busqueda)","v":0},12,"2018223490109081E",null,"LADY LORENA VARGAS HAWKINS","CC",1030665898,"CL 12 C No 8-53 Tercer Piso Edificio furatena ","2018-05-05","08:00:00"]
[13,{"$f":"COUNTIF($H$2:$H15,Dato_Busqueda)","v":0},13,"2018223490110468E",null,"SEGURIDAD SAN MARTIN ","CC","830106586-1","CL 12 C No 8-53 Tercer Piso Edificio furatena ","2018-04-11","09:00:00"]
[14,{"$f":"COUNTIF($H$2:$H16,Dato_Busqueda)","v":0},14,"2018223490110489E",null,"SEGURIDAD SAN MARTIN ","CC","830106586-1","CL 12 C No 8-53 Tercer Piso Edificio furatena ","2018-04-11","09:00:00"]
[15,{"$f":"COUNTIF($H$2:$H17,Dato_Busqueda)","v":0},15,"2018223490113227E",null,"GLORIA ESPERANZA BARAJAS","CC",52770736,"CL 12 C No 8-53 Tercer Piso Edificio furatena ","2018-04-12","09:30:00"]
[16,{"$f":"COUNTIF($H$2:$H18,Dato_Busqueda)","v":0},16,"2018223490129078E",null,"SERLEFIN BPO&O ZONA FRANCA SAS","CC",900628917,"CL 12 C No 8-53 Tercer Piso Edificio furatena ","2018-07-09","11:30:00"]
[17,{"$f":"COUNTIF($H$2:$H19,Dato_Busqueda)","v":0},17,"2018223490110507E",null,"G4S SECURE SOLUTIONS COLOMBIA S.A.","CC",860013951,"CL 12 C No 8-53 Tercer Piso Edificio furatena ","2018-04-11","08:00:00"]
[18,{"$f":"COUNTIF($H$2:$H20,Dato_Busqueda)","v":0},18,"2018223490129085E",null,"INTEGRA SECURYTY SYSTEMS S A ","CC",800008838,"CL 12 C No 8-53 Tercer Piso Edificio furatena ","2018-07-09","10:30:00"]
[19,{"$f":"COUNTIF($H$2:$H21,Dato_Busqueda)","v":0},19,"2018223490129056E",null,"ADONAI PUIN ABAUNZA ","CC",7015499,"CL 12 C No 8-53 Tercer Piso Edificio furatena ","2018-07-09","10:30:00"]
[20,{"$f":"COUNTIF($H$2:$H22,Dato_Busqueda)","v":0},20,"2018223490129089E",null,"DIANA CATHERINE ROJAS DAZA ","CC",1023010258,"CL 12 C No 8-53 Tercer Piso Edificio furatena ","2018-08-22","10:30:00"]
[21,{"$f":"COUNTIF($H$2:$H23,Dato_Busqueda)","v":0},21,"2018223490129049E",null,"CAMILO ANDRES ZAPATA","CC",80213822,"CL 12 C No 8-53 Tercer Piso Edificio furatena ","2018-07-09","10:00:00"]
[22,{"$f":"COUNTIF($H$2:$H24,Dato_Busqueda)","v":0},22,"2018223490129022E",null,"CARLOS FERNANDO GARZON","CC",1024588123,"CL 12 C No 8-53 Tercer Piso Edificio furatena ","2018-08-22","09:30:00"]
[23,{"$f":"COUNTIF($H$2:$H25,Dato_Busqueda)","v":0},23,"2018223490129052E",null,"FLORENTINO MURCIA NOVOA ","CC",13811914,"CL 12 C No 8-53 Tercer Piso Edificio furatena ","2018-07-09","09:30:00"]
[24,{"$f":"COUNTIF($H$2:$H26,Dato_Busqueda)","v":0},24,"2018223490129028E",null,"IFX NETWORKS COLOMBIA SAS","CC",830074759,"CL 12 C No 8-53 Tercer Piso Edificio furatena ","2018-07-09","08:30:00"]
[25,{"$f":"COUNTIF($H$2:$H27,Dato_Busqueda)","v":0},25,"2018223490129040E",null,"OLGA JAENETTE MONTAÑEZ (JAIME ENCISO)","CC",51993229,"CL 12 C No 8-53 Tercer Piso Edificio furatena ","2018-07-16","11:00:00"]
[26,{"$f":"COUNTIF($H$2:$H28,Dato_Busqueda)","v":0},26,"2018223490129046E",null,"BARBARA ORTIZ CARDENAS","CC",39777525,"CL 12 C No 8-53 Tercer Piso Edificio furatena ","2018-07-09","09:00:00"]
[27,{"$f":"COUNTIF($H$2:$H29,Dato_Busqueda)","v":0},27,"2018223490129058E",null,"SALDAÑA S LUCRECIA","CC",182102,"CL 12 C No 8-53 Tercer Piso Edificio furatena ","2018-07-09","11:00:00"]
[28,{"$f":"COUNTIF($H$2:$H30,Dato_Busqueda)","v":0},28,"2018223490129067E",null,"BLANCA SOFIA PAEZ","CC",21164973,"CL 12 C No 8-53 Tercer Piso Edificio furatena ","2018-07-09","11:30:00"]
[29,{"$f":"COUNTIF($H$2:$H31,Dato_Busqueda)","v":0},29,"2018223490129185E",null,"EDILSON ANTONIO ORTIZ MUÑOZ / JOSE FERNANDO ORTIZ MUÑOZ ","CC",1069729888,"CL 12 C No 8-53 Tercer Piso Edificio furatena ","2018-07-10","11:00:00"]
[30,{"$f":"COUNTIF($H$2:$H32,Dato_Busqueda)","v":0},30,"2018223490129190E",null,"MAGDA YAMILE SALCEDO ","CC",52950384,"CL 12 C No 8-53 Tercer Piso Edificio furatena ","2018-07-10","11:30:00"]
[31,{"$f":"COUNTIF($H$2:$H33,Dato_Busqueda)","v":0},31,"2018223490119422E",null,"CARLOS ANDRES MEDINA","CC",79879929,"CL 12 C No 8-53 Tercer Piso Edificio furatena ","2018-06-08","08:00:00"]
[32,{"$f":"COUNTIF($H$2:$H34,Dato_Busqueda)","v":0},32,"2018223490129195E",null,"JORGE CAMILO PRIETO CHITIVA","CC",1069852731,"CL 12 C No 8-53 Tercer Piso Edificio furatena ","2018-07-10","12:00:00"]
[33,{"$f":"COUNTIF($H$2:$H35,Dato_Busqueda)","v":0},33,"2018223490129221E",null,"ARTEAGA CASILIMAS SALOMON  /  CAMCHO DE","CC",266098,"CL 12 C No 8-53 Tercer Piso Edificio furatena ","2018-07-11","08:30:00"]
[34,{"$f":"COUNTIF($H$2:$H36,Dato_Busqueda)","v":0},34,"2018223490119441E",null,"JIMMY FABIAN CHAVARRO  SERRANO","CC",80144766,"CL 12 C No 8-53 Tercer Piso Edificio furatena ","2018-06-01","07:30:00"]
[35,{"$f":"COUNTIF($H$2:$H37,Dato_Busqueda)","v":0},35,"2018223490119450E",null,"CARLOS ANDRES SANDOVAL CAMAYO","CC",1032380146,"CL 12 C No 8-53 Tercer Piso Edificio furatena ","2018-06-01","09:30:00"]
[36,{"$f":"COUNTIF($H$2:$H38,Dato_Busqueda)","v":0},36,"2018223490129094E",null,"YULY ANDREA DIAZ","CC",1022992782,"CL 12 C No 8-53 Tercer Piso Edificio furatena ","2018-07-10","08:00:00"]
[37,{"$f":"COUNTIF($H$2:$H39,Dato_Busqueda)","v":0},37,"2018223490129111E",null,"DEISY NATHALY MUÑOZ MUÑOZ  / JORGE ENRIQUE MUÑOZ","CC",1023880963,"CL 12 C No 8-53 Tercer Piso Edificio furatena ","2018-07-10","08:30:00"]
[38,{"$f":"COUNTIF($H$2:$H40,Dato_Busqueda)","v":0},38,"2018223490129124E",null,"CLARA INES VARGAS MARIN","CC",30345416,"CL 12 C No 8-53 Tercer Piso Edificio furatena ","2018-07-10","09:30:00"]
[39,{"$f":"COUNTIF($H$2:$H41,Dato_Busqueda)","v":0},39,"2018223490129137E",null,"MARIA ESPERANZA BENAVIDES ","CC",51707017,"CL 12 C No 8-53 Tercer Piso Edificio furatena ","2018-07-10","09:00:00"]
[40,{"$f":"COUNTIF($H$2:$H42,Dato_Busqueda)","v":0},40,"2018223490129173E",null,"MORENO S LUIS / ANTONIO NIETO","CC",53668,"CL 12 C No 8-53 Tercer Piso Edificio furatena ","2018-07-10","10:00:00"]
[41,{"$f":"COUNTIF($H$2:$H43,Dato_Busqueda)","v":0},41,"2018223490129179E",null,"MARIA LUZ DARY DIAZ GARCIA ","CC",25127250,"CL 12 C No 8-53 Tercer Piso Edificio furatena ","2018-07-10","10:30:00"]
[42,{"$f":"COUNTIF($H$2:$H44,Dato_Busqueda)","v":0},42,"2018223490151249E",null,"EDNA R MENDIVELSO","CC",1033723719,"CL 12 C No 8-53 Tercer Piso Edificio furatena ","2018-09-27","08:30:00"]
[43,{"$f":"COUNTIF($H$2:$H45,Dato_Busqueda)","v":0},43,"2018223490125872E",null,"MARIA DEL CARMEN TORRES","CC",39694245,"CL 12 C No 8-53 Tercer Piso Edificio furatena ","2018-07-18","07:30:00"]
[44,{"$f":"COUNTIF($H$2:$H46,Dato_Busqueda)","v":0},44,"2018223490151232E",null,"ROSA HELENA CAMELO MORALES ","CC",52873391,"CL 12 C No 8-53 Tercer Piso Edificio furatena ","2017-09-27","07:30:00"]
[45,{"$f":"COUNTIF($H$2:$H47,Dato_Busqueda)","v":0},45,"2018643490100849E","11-001-099477 ","JORDAN JESUS ROSAS ALFONSO ","CC",1118561114,"CL 12 C No 8-53 Tercer Piso Edificio furatena ","2018-05-03","08:00:00"]
[46,{"$f":"COUNTIF($H$2:$H48,Dato_Busqueda)","v":0},46,"2018223490109261E","11-001-0410803 ","DIEGO ALEJANDRO BERNAL QUINTERO ","CC",79896470,"CL 12 C No 8-53 Tercer Piso Edificio furatena ","2018-05-22","12:00:00"]
[47,{"$f":"COUNTIF($H$2:$H49,Dato_Busqueda)","v":0},47,"2018223490129226E",null,"JUAN DE JESUS RODRIGUEZ RODRIGUEZ","CC",19283422,"CL 12 C No 8-53 Tercer Piso Edificio furatena ","2018-07-11","07:30:00"]
[48,{"$f":"COUNTIF($H$2:$H50,Dato_Busqueda)","v":0},48,"2018223490129232E",null,"MARCO AURELIO RODRIGUEZ  CINDY GOMEZ","CC",1033795692,"CL 12 C No 8-53 Tercer Piso Edificio furatena ","2018-07-11","08:00:00"]
[49,{"$f":"COUNTIF($H$2:$H51,Dato_Busqueda)","v":0},49,"2018223490125940E",null,"CLARA INES MARCELO CADENA ","CC",52557392,"CL 12 C No 8-53 Tercer Piso Edificio furatena ","2018-06-18","09:30:00"]
[50,{"$f":"COUNTIF($H$2:$H52,Dato_Busqueda)","v":0},50,"2018223490129237E",null,"ORLANDO SABOGAL RUIZ ","CC",1023560748,"CL 12 C No 8-53 Tercer Piso Edificio furatena ","2018-07-11","08:30:00"]
[51,{"$f":"COUNTIF($H$2:$H53,Dato_Busqueda)","v":0},51,"2018223490129238E",null,"MARIA SOLEDAD BERNAL  / YOLIMA GIL","CC",21075414,"CL 12 C No 8-53 Tercer Piso Edificio furatena ","2018-07-11","09:00:00"]
[52,{"$f":"COUNTIF($H$2:$H54,Dato_Busqueda)","v":0},52,"2018223490125933E",null,"OSCAR JAVIER BECERRA ROA","CC",80006159,"CL 12 C No 8-53 Tercer Piso Edificio furatena ","2018-06-18","08:30:00"]
[53,{"$f":"COUNTIF($H$2:$H55,Dato_Busqueda)","v":0},53,"2018223490168759E",null,"MARIA TRINIDAD GUERRERO LOPEZ ","CC",41502628,"CL 12 C No 8-53 Tercer Piso Edificio furatena ","2018-11-14","11:30:00"]
[54,{"$f":"COUNTIF($H$2:$H56,Dato_Busqueda)","v":0},54,"2018223490168731E",null,"ALICIA VARGAS AREVALO ","CC",41672292,"CL 12 C No 8-53 Tercer Piso Edificio furatena ","2018-11-14","09:30:00"]
[55,{"$f":"COUNTIF($H$2:$H57,Dato_Busqueda)","v":0},55,"2018223490168740E",null,"ANA HILDA BERMUDEZ","CC",28418373,"CL 12 C No 8-53 Tercer Piso Edificio furatena ","2018-11-14","10:30:00"]
[56,{"$f":"COUNTIF($H$2:$H58,Dato_Busqueda)","v":0},56,"2018223490137250E","11-001-0503696","ANA MARIA MAYORGA SOLANO","CC",1073711719,"CL 12 C No 8-53 Tercer Piso Edificio furatena ","2018-10-04","08:30:00"]
[57,{"$f":"COUNTIF($H$2:$H59,Dato_Busqueda)","v":0},57,"2018223490129720E","11-001-0677763","EDGAR YESID GUTIEREEZ","CC",79692012,"CL 12 C No 8-53 Tercer Piso Edificio furatena ","2018-10-04","07:30:00"]
[58,{"$f":"COUNTIF($H$2:$H60,Dato_Busqueda)","v":0},58,"2018223490134812E","11-001-0420265","CRISTIAN ANDRES MARTINEZ ROMERO","CC",1070923780,"CL 12 C No 8-53 Tercer Piso Edificio furatena ","2018-11-14","12:30:00"]
[59,{"$f":"COUNTIF($H$2:$H61,Dato_Busqueda)","v":0},59,"2018223490121564E","11-001-0532215","EDWIN CAMILO PARADA ","CC",1022969188,"CL 12 C No 8-53 Tercer Piso Edificio furatena ","2018-10-04","10:30:00"]
[60,{"$f":"COUNTIF($H$2:$H62,Dato_Busqueda)","v":0},60,"2018223490179901E",null,"ESTEFANÍA OLIVA ZAMORA CORTES","CC",39695518,"CL 12 C No 8-53 Tercer Piso Edificio furatena ","2018-12-27","09:30:00"]
[61,{"$f":"COUNTIF($H$2:$H63,Dato_Busqueda)","v":0},61,"2018223490179952E",null,"CARMEN BUITRAGO ","CC",35488639,"CL 12 C No 8-53 Tercer Piso Edificio furatena ","2018-12-27","10:30:00"]
[62,{"$f":"COUNTIF($H$2:$H64,Dato_Busqueda)","v":0},62,"2019223490114856E",null,"ESPERANZA INES CUELLAR DE TOBON","CC",41369020,"CL 12 C No 8-53 Tercer Piso Edificio furatena ","2018-04-22","12:00:00"]
[63,{"$f":"COUNTIF($H$2:$H65,Dato_Busqueda)","v":0},63,"2018593490102231E",11001927120,"ARLES JIMENEZ MONTOYA","CC",18435172,"CL 12 C No 8-53 Tercer Piso Edificio furatena ","2018-12-27","07:30:00"]
[64,{"$f":"COUNTIF($H$2:$H66,Dato_Busqueda)","v":0},64,"2018223490156356E",110010770504,"MARISELA AGUACIA NEIRA","CC",52823852,"CL 12 C No 8-53 Tercer Piso Edificio furatena ","2018-12-27","08:30:00"]
[65,{"$f":"COUNTIF($H$2:$H67,Dato_Busqueda)","v":0},65,"2018223490103037E",null,"OSCAR RENE MARTINEZ","CC",79432504,"CL 12 C No 8-53 Tercer Piso Edificio furatena ","2019-02-05","09:00:00"]
[{"$f":"IF((COUNTIF($F68,\"*\"&Dato_Busqueda&\"*\"))=1,$A67+1,$A67)","v":66},{"$f":"COUNTIF($H$2:$H68,Dato_Busqueda)","v":0},66,"2019223490109270E",null,"JULIAN CRISTOBAL ROSARIO MONROY","CC",14318619,"CL 12 C No 8-53 Tercer Piso Edificio furatena ","2019-03-19","09:00:00"]
[67,{"$f":"COUNTIF($H$2:$H69,Dato_Busqueda)","v":0},67,"2019223490109273E",null,"JOSE DANIEL ROZO HERNANDEZ","CC",80827966,"CL 12 C No 8-53 Tercer Piso Edificio furatena ","2019-03-19","10:00:00"]
[68,{"$f":"COUNTIF($H$2:$H70,Dato_Busqueda)","v":0},68,"2019223490109293E",null,"LUIS ANGEL BERNAL MOLINA ","CC",80063736,"CL 12 C No 8-53 Tercer Piso Edificio furatena ","2019-03-19","11:00:00"]
[69,{"$f":"COUNTIF($H$2:$H71,Dato_Busqueda)","v":0},69,"2019223490114832E",null,"CRISTIAN CAMILO CUESTA PULIDO ","CC",21235354,"CL 12 C No 8-53 Tercer Piso Edificio furatena ","2019-01-22","11:00:00"]
[70,{"$f":"COUNTIF($H$2:$H72,Dato_Busqueda)","v":0},70,"2019533490101341E",110010821063,"RUBEN DARIO TABORDA VALENCIA ","CC",71578522,"CL 12 C No 8-53 Tercer Piso Edificio furatena ","2019-04-25","08:30:00"]
[71,{"$f":"COUNTIF($H$2:$H73,Dato_Busqueda)","v":0},71,"2018223490186383E",110010406992,"HECTOR ALONSO SICHACA GARZON","CC",79526382,"CL 12 C No 8-53 Tercer Piso Edificio furatena ","2019-04-25","09:30:00"]
[72,{"$f":"COUNTIF($H$2:$H74,Dato_Busqueda)","v":0},72,"2018553490101634E",110010589111,"NILO ALFREDO QUIÑONES ANGULO","CC",1086726965,"CL 12 C No 8-53 Tercer Piso Edificio furatena ","2019-04-25","10:30:00 a.m."]
[73,{"$f":"COUNTIF($H$2:$H75,Dato_Busqueda)","v":0},73,"2019604490101292E",110010478768,"RONAL IGNACIO QUEVEDO","CC",80864103,"CL 12 C No 8-53 Tercer Piso Edificio furatena ","2019-04-25","11:00:00 a.m."]
[74,{"$f":"COUNTIF($H$2:$H76,Dato_Busqueda)","v":0},74,"2019523490100949E",null,"SANDRA ANAVARRO ZAPATA ","CC",null,"CL 12 C No 8-53 Tercer Piso Edificio furatena ","2019-07-27","08:00:00"]
[75,{"$f":"COUNTIF($H$2:$H77,Dato_Busqueda)","v":0},75,"2018223490100545E",null,"AURORA HERNANDEZ CLAVIJO ","CC",20544405,"CL 12 C No 8-53 Tercer Piso Edificio furatena ","2018-02-28","09:00:00"]
[76,{"$f":"COUNTIF($H$2:$H78,Dato_Busqueda)","v":0},76,"2018223490105381E",null,"LORENZA INES CASTRO AUTRET","CC",23542728,"CL 12 C No 8-53 Tercer Piso Edificio furatena ","2018-02-26","09:00:00"]
[77,{"$f":"COUNTIF($H$2:$H79,Dato_Busqueda)","v":0},77,"2018223490101442E",null,"MARIA AURORA PIÑEROS","CC",35323191,"CL 12 C No 8-53 Tercer Piso Edificio furatena ","2018-02-28","09:00:00"]
[78,{"$f":"COUNTIF($H$2:$H80,Dato_Busqueda)","v":0},78,"2018223490101769E",null,"MARIA TRINIDAD GUERREO LÓPEZ ","CC",41502628,"CL 12 C No 8-53 Tercer Piso Edificio furatena ","2018-02-28","09:00:00"]
[79,{"$f":"COUNTIF($H$2:$H81,Dato_Busqueda)","v":0},79,"2018223490110550E",null,"RODRIGUEZ MORA FLOR MERY","CC",51947202,"CL 12 C No 8-53 Tercer Piso Edificio furatena ","2018-04-18","08:00:00"]
[80,{"$f":"COUNTIF($H$2:$H82,Dato_Busqueda)","v":0},80,"2018223490105395E",null,"JORGE DAVID RODRIGUEZ ","CC",1032382489,"CL 12 C No 8-53 Tercer Piso Edificio furatena ","2018-02-01","08:00:00"]
[81,{"$f":"COUNTIF($H$2:$H83,Dato_Busqueda)","v":0},81,"2018223490105267E",null,"ALICIA VARGAS AREVALO ","CC",41672292,"CL 12 C No 8-53 Tercer Piso Edificio furatena ","2018-02-28","09:30:00"]
[82,{"$f":"COUNTIF($H$2:$H84,Dato_Busqueda)","v":0},82,"2018223490101816E",null,"ANA MILENA AVILA SALES","CC",52814827,"CL 12 C No 8-53 Tercer Piso Edificio furatena ","2018-02-01","11:00:00"]
[83,{"$f":"COUNTIF($H$2:$H85,Dato_Busqueda)","v":0},83,"2018223490100577E","11-001-0342669","SIXTO ANTONIO NAVARRO","CC",91011706,"CL 12 C No 8-53 Tercer Piso Edificio furatena ","2018-03-09","08:00:00"]
[84,{"$f":"COUNTIF($H$2:$H86,Dato_Busqueda)","v":0},84,"2018223490109073E",null,"NATALY GARCIA PEÑA","CC",1032369542,"CL 12 C No 8-53 Tercer Piso Edificio furatena ","2018-04-06",9.3000000000000007]
[85,{"$f":"COUNTIF($H$2:$H87,Dato_Busqueda)","v":0},85,"2018223490109081E",null,"LADY LORENA VARGAS HAWKINS","CC",1030665898,"CL 12 C No 8-53 Tercer Piso Edificio furatena ","2018-05-18","08:00:00"]
[86,{"$f":"COUNTIF($H$2:$H88,Dato_Busqueda)","v":0},86,"2018223490110468E",null,"SEGURIDAD SAN MARTIN ","CC","830106586-1","CL 12 C No 8-53 Tercer Piso Edificio furatena ","2018-05-15","02:00:00"]
[87,{"$f":"COUNTIF($H$2:$H89,Dato_Busqueda)","v":0},87,"2018223490110489E",null,"SEGURIDAD SAN MARTIN ","CC","830106586-1","CL 12 C No 8-53 Tercer Piso Edificio furatena ","2018-05-15","02:30:00"]
[88,{"$f":"COUNTIF($H$2:$H90,Dato_Busqueda)","v":0},88,"2018223490129078E",null,"SERLEFIN BPO&O ZONA FRANCA SAS","CC",900628917,"CL 12 C No 8-53 Tercer Piso Edificio furatena ","2018-06-24","12:00:00"]
[89,{"$f":"COUNTIF($H$2:$H91,Dato_Busqueda)","v":0},89,"2018223490110507E",null,"G4S SECURE SOLUTIONS COLOMBIA S.A.","CC",860013951,"CL 12 C No 8-53 Tercer Piso Edificio furatena ","2018-06-14","08:00:00"]
[90,{"$f":"COUNTIF($H$2:$H92,Dato_Busqueda)","v":0},90,"2018223490129085E",null,"INTEGRA SECURYTY SYSTEMS S A ","CC",800008838,"CL 12 C No 8-53 Tercer Piso Edificio furatena ","2018-07-25","12:00:00"]
[91,{"$f":"COUNTIF($H$2:$H93,Dato_Busqueda)","v":0},91,"2018223490129056E",null,"ADONAI PUIN ABAUNZA ","CC",7015499,"CL 12 C No 8-53 Tercer Piso Edificio furatena ","2018-07-23","10:30:00"]
[92,{"$f":"COUNTIF($H$2:$H94,Dato_Busqueda)","v":0},92,"2018223490129089E",null,"DIANA CATHERINE ROJAS DAZA ","CC",1023010258,"CL 12 C No 8-53 Tercer Piso Edificio furatena ","2018-09-14","15:00:00"]
[93,{"$f":"COUNTIF($H$2:$H95,Dato_Busqueda)","v":0},93,"2018223490129049E",null,"CAMILO ANDRES ZAPATA","CC",80213822,"CL 12 C No 8-53 Tercer Piso Edificio furatena ","2018-10-17","07:30:00"]
[94,{"$f":"COUNTIF($H$2:$H96,Dato_Busqueda)","v":0},94,"2018223490129022E",null,"CARLOS FERNANDO GARZON","CC",1024588123,"CL 12 C No 8-53 Tercer Piso Edificio furatena ","2018-08-30","09:30:00"]
[95,{"$f":"COUNTIF($H$2:$H97,Dato_Busqueda)","v":0},95,"2018223490129052E",null,"FLORENTINO MURCIA NOVOA ","CC",13811914,"CL 12 C No 8-53 Tercer Piso Edificio furatena ","2018-07-23","01:30:00"]
[96,{"$f":"COUNTIF($H$2:$H98,Dato_Busqueda)","v":0},96,"2018223490129040E",null,"OLGA JAENETTE MONTAÑEZ (JAIME ENCISO)","CC",51993229,"CL 12 C No 8-53 Tercer Piso Edificio furatena ","2018-08-22","08:00:00"]
[97,{"$f":"COUNTIF($H$2:$H99,Dato_Busqueda)","v":0},97,"2018223490129046E",null,"BARBARA ORTIZ CARDENAS","CC",39777525,"CL 12 C No 8-53 Tercer Piso Edificio furatena ","2018-07-23","11:00:00"]
[98,{"$f":"COUNTIF($H$2:$H100,Dato_Busqueda)","v":0},98,"2018223490129058E",null,"SALDAÑA S LUCRECIA","CC",182102,"CL 12 C No 8-53 Tercer Piso Edificio furatena ","2018-07-27","11:30:00"]
[99,{"$f":"COUNTIF($H$2:$H101,Dato_Busqueda)","v":0},99,"2018223490129067E",null,"BLANCA SOFIA PAEZ","CC",21164973,"CL 12 C No 8-53 Tercer Piso Edificio furatena ","2018-07-23","12:00:00"]
[100,{"$f":"COUNTIF($H$2:$H102,Dato_Busqueda)","v":0},100,"2018223490129185E",null,"EDILSON ANTONIO ORTIZ MUÑOZ / JOSE FERNANDO ORTIZ MUÑOZ ","CC",1069729888,"CL 12 C No 8-53 Tercer Piso Edificio furatena ","2018-07-27","11:00:00"]
[101,{"$f":"COUNTIF($H$2:$H103,Dato_Busqueda)","v":0},101,"2018223490129190E",null,"MAGDA YAMILE SALCEDO ","CC",52950384,"CL 12 C No 8-53 Tercer Piso Edificio furatena ","2018-07-23","12:30:00"]
[102,{"$f":"COUNTIF($H$2:$H104,Dato_Busqueda)","v":0},102,"2018223490119422E",null,"CARLOS ANDRES MEDINA","CC",79879929,"CL 12 C No 8-53 Tercer Piso Edificio furatena ","2018-07-13","08:00:00"]
[103,{"$f":"COUNTIF($H$2:$H105,Dato_Busqueda)","v":0},103,"2018223490129195E",null,"JORGE CAMILO PRIETO CHITIVA","CC",1069852731,"CL 12 C No 8-53 Tercer Piso Edificio furatena ","2018-07-23","03:30:00"]
[104,{"$f":"COUNTIF($H$2:$H106,Dato_Busqueda)","v":0},104,"2018223490129221E",null,"ARTEAGA CASILIMAS SALOMON  /  CAMCHO DE","CC",266098,"CL 12 C No 8-53 Tercer Piso Edificio furatena ","2018-07-23","03:00:00"]
[105,{"$f":"COUNTIF($H$2:$H107,Dato_Busqueda)","v":0},105,"2018223490119441E",null,"JIMMY FABIAN CHAVARRO  SERRANO","CC",80144766,"CL 12 C No 8-53 Tercer Piso Edificio furatena ","2018-06-08","08:30:00"]
[106,{"$f":"COUNTIF($H$2:$H108,Dato_Busqueda)","v":0},106,"2018223490119450E",null,"CARLOS ANDRES SANDOVAL CAMAYO","CC",1032380146,"CL 12 C No 8-53 Tercer Piso Edificio furatena ","2018-06-08","09:00:00"]
[107,{"$f":"COUNTIF($H$2:$H109,Dato_Busqueda)","v":0},107,"2018223490129094E",null,"YULY ANDREA DIAZ","CC",1022992782,"CL 12 C No 8-53 Tercer Piso Edificio furatena ","2018-10-23","08:30:00"]
[108,{"$f":"COUNTIF($H$2:$H110,Dato_Busqueda)","v":0},108,"2018223490129111E",null,"DEISY NATHALY MUÑOZ MUÑOZ  / JORGE ENRIQUE MUÑOZ","CC",1023880963,"CL 12 C No 8-53 Tercer Piso Edificio furatena ","2018-07-27","12:00:00"]
[109,{"$f":"COUNTIF($H$2:$H111,Dato_Busqueda)","v":0},109,"2018223490129124E",null,"CLARA INES VARGAS MARIN","CC",30345416,"CL 12 C No 8-53 Tercer Piso Edificio furatena ","2018-07-23","07:30:00"]
[110,{"$f":"COUNTIF($H$2:$H112,Dato_Busqueda)","v":0},110,"2018223490129137E",null,"MARIA ESPERANZA BENAVIDES ","CC",51707017,"CL 12 C No 8-53 Tercer Piso Edificio furatena ","2018-07-23","08:00:00"]
[111,{"$f":"COUNTIF($H$2:$H113,Dato_Busqueda)","v":0},111,"2018223490129173E",null,"MORENO S LUIS / ANTONIO NIETO","CC",53668,"CL 12 C No 8-53 Tercer Piso Edificio furatena ","2018-07-23","09:00:00"]
[112,{"$f":"COUNTIF($H$2:$H114,Dato_Busqueda)","v":0},112,"2018223490129179E",null,"MARIA LUZ DARY DIAZ GARCIA ","CC",25127250,"CL 12 C No 8-53 Tercer Piso Edificio furatena ","2017-07-23","10:30:00"]
[113,{"$f":"COUNTIF($H$2:$H115,Dato_Busqueda)","v":0},113,"2018223490151249E",null,"EDNA R MENDIVELSO","CC",1033723719,"CL 12 C No 8-53 Tercer Piso Edificio furatena ","2018-10-10","07:30:00"]
[114,{"$f":"COUNTIF($H$2:$H116,Dato_Busqueda)","v":0},114,"2018223490125872E",null,"MARIA DEL CARMEN TORRES","CC",39694245,"CL 12 C No 8-53 Tercer Piso Edificio furatena ","2018-09-14","03:00:00"]
[115,{"$f":"COUNTIF($H$2:$H117,Dato_Busqueda)","v":0},115,"2018223490151232E",null,"ROSA HELENA CAMELO MORALES ","CC",52873391,"CL 12 C No 8-53 Tercer Piso Edificio furatena ","2018-10-09","07:30:00"]
[116,{"$f":"COUNTIF($H$2:$H118,Dato_Busqueda)","v":0},116,"2018223490109261E","11-001-0410803 ","DIEGO ALEJANDRO BERNAL QUINTERO ","CC",79896470,"CL 12 C No 8-53 Tercer Piso Edificio furatena ","2018-05-28","13:00:00"]
[117,{"$f":"COUNTIF($H$2:$H119,Dato_Busqueda)","v":0},117,"2018223490129226E",null,"JUAN DE JESUS RODRIGUEZ RODRIGUEZ","CC",19283422,"CL 12 C No 8-53 Tercer Piso Edificio furatena ","2018-07-23","04:15:00"]
[118,{"$f":"COUNTIF($H$2:$H120,Dato_Busqueda)","v":0},118,"2018223490129232E",null,"MARCO AURELIO RODRIGUEZ  CINDY GOMEZ","CC",1033795692,"CL 12 C No 8-53 Tercer Piso Edificio furatena ","2018-07-30","12:00:00"]
[119,{"$f":"COUNTIF($H$2:$H121,Dato_Busqueda)","v":0},119,"2018223490125940E",null,"CLARA INES MARCELO CADENA ","CC",52557392,"CL 12 C No 8-53 Tercer Piso Edificio furatena ","2018-06-26","09:30:00"]
[120,{"$f":"COUNTIF($H$2:$H122,Dato_Busqueda)","v":0},120,"2018223490129237E",null,"ORLANDO SABOGAL RUIZ ","CC",1023560748,"CL 12 C No 8-53 Tercer Piso Edificio furatena ","2018-07-23","02:30:00"]
[121,{"$f":"COUNTIF($H$2:$H123,Dato_Busqueda)","v":0},121,"2018223490129238E",null,"MARIA SOLEDAD BERNAL  / YOLIMA GIL","CC",21075414,"CL 12 C No 8-53 Tercer Piso Edificio furatena ","2018-08-09","09:00:00"]
[122,{"$f":"COUNTIF($H$2:$H124,Dato_Busqueda)","v":0},122,"2018223490125933E",null,"OSCAR JAVIER BECERRA ROA","CC",80006159,"CL 12 C No 8-53 Tercer Piso Edificio furatena ","2018-06-26","08:30:00"]
[123,{"$f":"COUNTIF($H$2:$H125,Dato_Busqueda)","v":0},123,"2018223490168759E",null,"MARIA TRINIDAD GUERRERO LOPEZ ","CC",41502628,"CL 12 C No 8-53 Tercer Piso Edificio furatena ","2018-12-27","11:30:00"]
[124,{"$f":"COUNTIF($H$2:$H126,Dato_Busqueda)","v":0},124,"2018223490168731E",null,"ALICIA VARGAS AREVALO ","CC",41672292,"CL 12 C No 8-53 Tercer Piso Edificio furatena ","2018-12-27","12:00:00"]
[125,{"$f":"COUNTIF($H$2:$H127,Dato_Busqueda)","v":0},125,"2018223490168740E",null,"ANA HILDA BERMUDEZ","CC",28418373,"CL 12 C No 8-53 Tercer Piso Edificio furatena ","2018-12-27","11:00:00"]
[126,{"$f":"COUNTIF($H$2:$H128,Dato_Busqueda)","v":0},126,"2018223490137250E","11-001-0503696","ANA MARIA MAYORGA SOLANO","CC",1073711719,"CL 12 C No 8-53 Tercer Piso Edificio furatena ","2018-11-14","08:00:00"]
[127,{"$f":"COUNTIF($H$2:$H129,Dato_Busqueda)","v":0},127,"2018223490129720E","11-001-0677763","EDGAR YESID GUTIEREEZ","CC",79692012,"CL 12 C No 8-53 Tercer Piso Edificio furatena ","2018-10-24","09:30:00"]
[128,{"$f":"COUNTIF($H$2:$H130,Dato_Busqueda)","v":0},128,"2018223490134812E","11-001-0420265","CRISTIAN ANDRES MARTINEZ ROMERO","CC",1070923780,"CL 12 C No 8-53 Tercer Piso Edificio furatena ","2018-12-27","12:30:00"]
[129,{"$f":"COUNTIF($H$2:$H131,Dato_Busqueda)","v":0},129,"2018223490121564E","11-001-0532215","EDWIN CAMILO PARADA ","CC",1022969188,"CL 12 C No 8-53 Tercer Piso Edificio furatena ","2018-10-24","10:30:00"]
[{"$f":"IF((COUNTIF($F132,\"*\"&Dato_Busqueda&\"*\"))=1,$A131+1,$A131)","v":130},{"$f":"COUNTIF($H$2:$H132,Dato_Busqueda)","v":0},130,"2018223490179901E",null,"ESTEFANÍA OLIVA ZAMORA CORTES","CC",39695518,"CL 12 C No 8-53 Tercer Piso Edificio furatena ","2019-01-25","08:30:00"]
[131,{"$f":"COUNTIF($H$2:$H133,Dato_Busqueda)","v":0},131,"2018223490179952E",null,"CARMEN BUITRAGO ","CC",35488639,"CL 12 C No 8-53 Tercer Piso Edificio furatena ","2019-01-25","09:00:00"]
[132,{"$f":"COUNTIF($H$2:$H134,Dato_Busqueda)","v":0},132,"2019223490114856E",null,"ESPERANZA INES CUELLAR DE TOBON","CC",41369020,"CL 12 C No 8-53 Tercer Piso Edificio furatena ","2019-05-07","08:30:00"]
[133,{"$f":"COUNTIF($H$2:$H135,Dato_Busqueda)","v":0},133,"2018593490102231E",11001927120,"ARLES JIMENEZ MONTOYA","CC",18435172,"CL 12 C No 8-53 Tercer Piso Edificio furatena ","2019-01-25","07:30:00"]
[134,{"$f":"COUNTIF($H$2:$H136,Dato_Busqueda)","v":0},134,"2018223490156356E",110010770504,"MARISELA AGUACIA NEIRA","CC",52823852,"CL 12 C No 8-53 Tercer Piso Edificio furatena ","2019-01-25","08:00:00"]
[135,{"$f":"COUNTIF($H$2:$H137,Dato_Busqueda)","v":0},135,"2018223490103037E",null,"OSCAR RENE MARTINEZ","CC",79432504,"CL 12 C No 8-53 Tercer Piso Edificio furatena ","2019-03-21","11:00:00"]
[136,{"$f":"COUNTIF($H$2:$H138,Dato_Busqueda)","v":0},136,"2019223490109270E",null,"JULIAN CRISTOBAL ROSARIO MONROY","CC",14318619,"CL 12 C No 8-53 Tercer Piso Edificio furatena ","2019-04-22","11:00:00"]
[137,{"$f":"COUNTIF($H$2:$H139,Dato_Busqueda)","v":0},137,"2019223490109273E",null,"JOSE DANIEL ROZO HERNANDEZ","CC",80827966,"CL 12 C No 8-53 Tercer Piso Edificio furatena ","2019-04-22","10:00:00"]
[138,{"$f":"COUNTIF($H$2:$H140,Dato_Busqueda)","v":0},138,"2019223490109293E",null,"LUIS ANGEL BERNAL MOLINA ","CC",80063736,"CL 12 C No 8-53 Tercer Piso Edificio furatena ","2019-07-11","09:30:00"]
[139,{"$f":"COUNTIF($H$2:$H141,Dato_Busqueda)","v":0},139,"2019223490114832E",null,"CRISTIAN CAMILO CUESTA PULIDO ","CC",21235354,"CL 12 C No 8-53 Tercer Piso Edificio furatena ","2019-05-07","09:00:00"]
[140,{"$f":"COUNTIF($H$2:$H142,Dato_Busqueda)","v":0},140,"2019533490101341E",110010821063,"RUBEN DARIO TABORDA VALENCIA ","CC",71578522,"CL 12 C No 8-53 Tercer Piso Edificio furatena ","2019-05-07","10:30:00"]
[141,{"$f":"COUNTIF($H$2:$H143,Dato_Busqueda)","v":0},141,"2018223490186383E",110010406992,"HECTOR ALONSO SICHACA GARZON","CC",79526382,"CL 12 C No 8-53 Tercer Piso Edificio furatena ","2019-05-07","09:30:00"]
[142,{"$f":"COUNTIF($H$2:$H144,Dato_Busqueda)","v":0},142,"2018553490101634E",110010589111,"NILO ALFREDO QUIÑONES ANGULO","CC",1086726965,"CL 12 C No 8-53 Tercer Piso Edificio furatena ","2019-05-07","10:00:00"]
[143,{"$f":"COUNTIF($H$2:$H145,Dato_Busqueda)","v":0},143,"2019604490101292E",110010478768,"RONAL IGNACIO QUEVEDO","CC",80864103,"CL 12 C No 8-53 Tercer Piso Edificio furatena ","2019-07-11","08:00:00"]
[{"$f":"IF((COUNTIF($F146,\"*\"&Dato_Busqueda&\"*\"))=1,1,0)","v":1},{"$f":"COUNTIF($H$2:$H146,Dato_Busqueda)","v":0},144,"2019574496114782E",110010397625,"ALEXANDER CLAVIJO LOPEZ","CC",79883997,"CL 12 C No 8-53 Tercer Piso Edificio furatena ","2019-09-04","08:00:00"]
[{"$f":"IF((COUNTIF($F147,\"*\"&Dato_Busqueda&\"*\"))=1,#REF!+1,#REF!)","v":{"$error":"#REF!"}},{"$f":"COUNTIF($H$2:$H149,Dato_Busqueda)","v":0},145,"2019523490100949E","2019524002987-2","SANDRA NAVARRO ZAPATA ","CC",null,"CL 12 C No 8-53 Tercer Piso Edificio furatena ","2019-09-04","10:00:00"]
[{"$f":"IF((COUNTIF(#REF!,\"*\"&Dato_Busqueda&\"*\"))=1,1,0)","v":{"$error":"#REF!"}},{"$f":"COUNTIF($H$2:$H148,Dato_Busqueda)","v":0},146,"2019574490109421E","11-001-1257465","PABLO FERNANDO CARILLO MANRIQUE","CC",80059564,"CL 12 C No 8-53 Tercer Piso Edificio furatena ","2019-09-04","11:00:00"]
[{"$f":"IF((COUNTIF($F149,\"*\"&Dato_Busqueda&\"*\"))=1,1,0)","v":1},{"$f":"COUNTIF($H$2:$H149,Dato_Busqueda)","v":0},147,"2019524490102976E","11-001-0817229","ALBA MELINA AGUDELO ROMERO","CC",1032450011,"CL 12 C No 8-53 Tercer Piso Edificio furatena ","2019-09-25","08:30:00"]
[{"$f":"IF((COUNTIF($F148,\"*\"&Dato_Busqueda&\"*\"))=1,1,0)","v":1},{"$f":"COUNTIF($H$2:$H149,Dato_Busqueda)","v":0},148,"2019223490135832E",null,"ANA ISABEL PULIDO PEREZ ","CC",52775803,"CL 12 C No 8-53 Tercer Piso Edificio furatena ","2020-01-22","09:00:00"]
[{"$f":"IF((COUNTIF($F151,\"*\"&Dato_Busqueda&\"*\"))=1,1,0)","v":1},{"$f":"COUNTIF($H$2:$H159,Dato_Busqueda)","v":0},149,"2019223490135831E",null,"PAULA ANDREA MONTES MARTINEZ ","CC",1068665584,"CL 12 C No 8-53 Tercer Piso Edificio furatena ","2020-01-21","08:00:00"]
[{"$f":"IF((COUNTIF($F152,\"*\"&Dato_Busqueda&\"*\"))=1,1,0)","v":1},{"$f":"COUNTIF($H$2:$H159,Dato_Busqueda)","v":0},150,"2019223490135833E",null,"YENSON JAVIER OGAZA MORALES ","CC",10769689,"CL 12 C No 8-53 Tercer Piso Edificio furatena ","2020-01-22","10:00:00"]
[{"$f":"IF((COUNTIF($F153,\"*\"&Dato_Busqueda&\"*\"))=1,1,0)","v":1},{"$f":"COUNTIF($H$2:$H159,Dato_Busqueda)","v":0},151,"2019223490135834E",null,"EVA GRACIELA CORTES DE VALENCIA","CC",41732388,"CL 12 C No 8-53 Tercer Piso Edificio furatena ","2020-01-22","11:00:00"]
[{"$f":"IF((COUNTIF($F154,\"*\"&Dato_Busqueda&\"*\"))=1,1,0)","v":1},{"$f":"COUNTIF($H$2:$H159,Dato_Busqueda)","v":0},152,"2019223490135836E",null,"FABIO ENRIQUE VILLARRAGA PEREIRA","CC",804279229,"CL 12 C No 8-53 Tercer Piso Edificio furatena ","2020-01-22","03:00:00"]
[{"$f":"IF((COUNTIF($F155,\"*\"&Dato_Busqueda&\"*\"))=1,1,0)","v":1},{"$f":"COUNTIF($H$2:$H159,Dato_Busqueda)","v":0},153,"2019223490135837E",null,"INEIDA TIQUE VALERO ","CC",52774760,"CL 12 C No 8-53 Tercer Piso Edificio furatena ","2020-01-24","08:00:00"]
[{"$f":"IF((COUNTIF($F156,\"*\"&Dato_Busqueda&\"*\"))=1,1,0)","v":1},{"$f":"COUNTIF($H$2:$H159,Dato_Busqueda)","v":0},154,"2019223490135835E",null,"ACTIVACIÓN MASIVA ","CC",397932351,"CL 12 C No 8-53 Tercer Piso Edificio furatena ","2020-01-22","14:00:00"]
[{"$f":"IF((COUNTIF($F157,\"*\"&Dato_Busqueda&\"*\"))=1,1,0)","v":1},{"$f":"COUNTIF($H$2:$H157,Dato_Busqueda)","v":0},155,"2019574490126526E",110010576466,"BRAYAN ESTIVEN VERASTEGUI RODRIGUEZ ","CC",1031175782,"CL 12 C No 8-53 Tercer Piso Edificio furatena ","2020-01-24","10:00:00"]
[{"$f":"IF((COUNTIF($F158,\"*\"&Dato_Busqueda&\"*\"))=1,1,0)","v":1},{"$f":"COUNTIF($H$2:$H158,Dato_Busqueda)","v":0},156,"2019574490104154E",110010399268,"ROBINSON STEVEN REYES GALLEGO","CC",1073715190,"CL 12 C No 8-53 Tercer Piso Edificio furatena ","2020-01-24","11:00:00"]
[{"$f":"IF((COUNTIF($F159,\"*\"&Dato_Busqueda&\"*\"))=1,1,0)","v":1},{"$f":"COUNTIF($H$2:$H159,Dato_Busqueda)","v":0},157,"2019574490126441E",110010578145,"EMILCE AVILA HERRERA ","CC",52466442,"CL 12 C No 8-53 Tercer Piso Edificio furatena ","2020-01-24","09:00:00"]

{"sheet":"Busqueda","index":1,"n_rows":114,"n_cols":13,"rows_kept":114,"cut":false,"hidden":false,"merged":[[3,5,3,12],[4,5,4,12],[6,6,6,12],[8,6,8,12]]}
[]
[]
[]
[null,null,null,null,null,"CITACIONES A AUDIENCIAS PUBLICAS A LOS PRESUNTOS INFRACTORES DE COMPORTAMIENTOS"]
[null,null,null,null,null,"CONTRARIOS A LA CONVIVENCIA CIUDADANA DEL CÓDIGO DE POLICÍA"]
[]
[null,null,null,null,null,null,"SECRETARÍA DISTRITAL DE GOBIERNO - DIRECCIÓN PARA LA GESTIÓN POLICIVA"]
[]
[null,null,null,null,null,null,"Consulte la lista por nombre o por número de Identificación sin puntos ni espacios "]
[]
[null,"ELIJA TEMA DE "]
[null,"BUSQUEDA Y DIGITE DATO",null,null,null,{"$f":"IF(Dato_Busqueda=0,\" \",\"EXPEDIENTE\")","v":" "},{"$f":"IF(Dato_Busqueda=0,\" \",\"NÚMERO DE COMPARENDO\")","v":" "},{"$f":"IF(Dato_Busqueda=0,\" \",\"NOMBRE\")","v":" "},{"$f":"IF(Dato_Busqueda=0,\" \",\"TIPO DE DOCUMENTO\")","v":" "},{"$f":"IF(Dato_Busqueda=0,\" \",\"IDENTIFICACIÓN\")","v":" "},{"$f":"IF(Dato_Busqueda=0,\" \",\"LUGAR\")","v":" "},{"$f":"IF(Dato_Busqueda=0,\" \",\"FECHA\")","v":" "},{"$f":"IF(Dato_Busqueda=0,\" \",\"HORA CITACIÓN\")","v":" "}]
[null,"IDENTIFICACIÓN",null,{"$f":"IF(Dato_Busqueda=0,\" \",IF(TEMA=\"NOMBRE\",IF(AND(Total_Nombre>0,Dato_Busqueda>0),1,0),IF(TEMA=\"IDENTIFICACIÓN\",IF(AND(Total_Identificacion>0,Dato_Busqueda>0),1,0))))","v":" "},null,{"$f":"IFERROR(IF($D13=0,\" \",IF(TEMA=\"NOMBRE\",VLOOKUP($D13,Datos[#All],4,0),IF(TEMA=\"IDENTIFICACIÓN\",VLOOKUP($D13,Busqueda_Cedula,3,0)))),\" \")","v":" "},{"$f":"IFERROR(IF($D13=0,\" \",IF(TEMA=\"NOMBRE\",VLOOKUP($D13,Datos[#All],5,0),IF(TEMA=\"IDENTIFICACIÓN\",VLOOKUP($D13,Busqueda_Cedula,4,0)))),\" \")","v":" "},{"$f":"IFERROR(IF($D13=0,\" \",IF(TEMA=\"NOMBRE\",VLOOKUP($D13,Datos[#All],6,0),IF(TEMA=\"IDENTIFICACIÓN\",VLOOKUP($D13,Busqueda_Cedula,5,0)))),\" \")","v":" "},{"$f":"IFERROR(IF($D13=0,\" \",IF(TEMA=\"NOMBRE\",VLOOKUP($D13,Datos[#All],7,0),IF(TEMA=\"IDENTIFICACIÓN\",VLOOKUP($D13,Busqueda_Cedula,6,0)))),\" \")","v":" "},{"$f":"IFERROR(IF($D13=0,\" \",IF(TEMA=\"NOMBRE\",VLOOKUP($D13,Datos[#All],8,0),IF(TEMA=\"IDENTIFICACIÓN\",VLOOKUP($D13,Busqueda_Cedula,7,0)))),\" \")","v":" "},{"$f":"IFERROR(IF($D13=0,\" \",IF(TEMA=\"NOMBRE\",VLOOKUP($D13,Datos[#All],9,0),IF(TEMA=\"IDENTIFICACIÓN\",VLOOKUP($D13,Busqueda_Cedula,8,0)))),\" \")","v":" "},{"$f":"IFERROR(IF($D13=0,\" \",IF(TEMA=\"NOMBRE\",VLOOKUP($D13,Datos[#All],10,0),IF(TEMA=\"IDENTIFICACIÓN\",VLOOKUP($D13,Busqueda_Cedula,9,0)))),\" \")","v":" "},{"$f":"IFERROR(IF($D13=0,\" \",IF(TEMA=\"NOMBRE\",VLOOKUP($D13,Datos[#All],11,0),IF(TEMA=\"IDENTIFICACIÓN\",VLOOKUP($D13,Busqueda_Cedula,10,0)))),\" \")","v":" "}]
[null,null,null,{"$f":"IF(Dato_Busqueda=0,\" \",IF(TEMA=\"NOMBRE\",IF(AND(Total_Nombre>0,Dato_Busqueda>0),$D13+1,0),IF(TEMA=\"IDENTIFICACIÓN\",IF(AND(Total_Identificacion>0,Dato_Busqueda>0),$D13+1,0))))","v":" "},null,{"$f":"IFERROR(IF($D14=0,\" \",IF(TEMA=\"NOMBRE\",VLOOKUP($D14,Datos[#All],4,0),IF(TEMA=\"IDENTIFICACIÓN\",VLOOKUP($D14,Busqueda_Cedula,3,0)))),\" \")","v":" "},{"$f":"IFERROR(IF($D14=0,\" \",IF(TEMA=\"NOMBRE\",VLOOKUP($D14,Datos[#All],5,0),IF(TEMA=\"IDENTIFICACIÓN\",VLOOKUP($D14,Busqueda_Cedula,4,0)))),\" \")","v":" "},{"$f":"IFERROR(IF($D14=0,\" \",IF(TEMA=\"NOMBRE\",VLOOKUP($D14,Datos[#All],6,0),IF(TEMA=\"IDENTIFICACIÓN\",VLOOKUP($D14,Busqueda_Cedula,5,0)))),\" \")","v":" "},{"$f":"IFERROR(IF($D14=0,\" \",IF(TEMA=\"NOMBRE\",VLOOKUP($D14,Datos[#All],7,0),IF(TEMA=\"IDENTIFICACIÓN\",VLOOKUP($D14,Busqueda_Cedula,6,0)))),\" \")","v":" "},{"$f":"IFERROR(IF($D14=0,\" \",IF(TEMA=\"NOMBRE\",VLOOKUP($D14,Datos[#All],8,0),IF(TEMA=\"IDENTIFICACIÓN\",VLOOKUP($D14,Busqueda_Cedula,7,0)))),\" \")","v":" "},{"$f":"IFERROR(IF($D14=0,\" \",IF(TEMA=\"NOMBRE\",VLOOKUP($D14,Datos[#All],9,0),IF(TEMA=\"IDENTIFICACIÓN\",VLOOKUP($D14,Busqueda_Cedula,8,0)))),\" \")","v":" "},{"$f":"IFERROR(IF($D14=0,\" \",IF(TEMA=\"NOMBRE\",VLOOKUP($D14,Datos[#All],10,0),IF(TEMA=\"IDENTIFICACIÓN\",VLOOKUP($D14,Busqueda_Cedula,9,0)))),\" \")","v":" "},{"$f":"IFERROR(IF($D14=0,\" \",IF(TEMA=\"NOMBRE\",VLOOKUP($D14,Datos[#All],11,0),IF(TEMA=\"IDENTIFICACIÓN\",VLOOKUP($D14,Busqueda_Cedula,10,0)))),\" \")","v":" "}]
[null,null,null," ",null,{"$f":"IFERROR(IF($D15=0,\" \",IF(TEMA=\"NOMBRE\",VLOOKUP($D15,Datos[#All],4,0),IF(TEMA=\"IDENTIFICACIÓN\",VLOOKUP($D15,Busqueda_Cedula,3,0)))),\" \")","v":" "},{"$f":"IFERROR(IF($D15=0,\" \",IF(TEMA=\"NOMBRE\",VLOOKUP($D15,Datos[#All],5,0),IF(TEMA=\"IDENTIFICACIÓN\",VLOOKUP($D15,Busqueda_Cedula,4,0)))),\" \")","v":" "},{"$f":"IFERROR(IF($D15=0,\" \",IF(TEMA=\"NOMBRE\",VLOOKUP($D15,Datos[#All],6,0),IF(TEMA=\"IDENTIFICACIÓN\",VLOOKUP($D15,Busqueda_Cedula,5,0)))),\" \")","v":" "},{"$f":"IFERROR(IF($D15=0,\" \",IF(TEMA=\"NOMBRE\",VLOOKUP($D15,Datos[#All],7,0),IF(TEMA=\"IDENTIFICACIÓN\",VLOOKUP($D15,Busqueda_Cedula,6,0)))),\" \")","v":" "},{"$f":"IFERROR(IF($D15=0,\" \",IF(TEMA=\"NOMBRE\",VLOOKUP($D15,Datos[#All],8,0),IF(TEMA=\"IDENTIFICACIÓN\",VLOOKUP($D15,Busqueda_Cedula,7,0)))),\" \")","v":" "},{"$f":"IFERROR(IF($D15=0,\" \",IF(TEMA=\"NOMBRE\",VLOOKUP($D15,Datos[#All],9,0),IF(TEMA=\"IDENTIFICACIÓN\",VLOOKUP($D15,Busqueda_Cedula,8,0)))),\" \")","v":" "},{"$f":"IFERROR(IF($D15=0,\" \",IF(TEMA=\"NOMBRE\",VLOOKUP($D15,Datos[#All],10,0),IF(TEMA=\"IDENTIFICACIÓN\",VLOOKUP($D15,Busqueda_Cedula,9,0)))),\" \")","v":" "},{"$f":"IFERROR(IF($D15=0,\" \",IF(TEMA=\"NOMBRE\",VLOOKUP($D15,Datos[#All],11,0),IF(TEMA=\"IDENTIFICACIÓN\",VLOOKUP($D15,Busqueda_Cedula,10,0)))),\" \")","v":" "}]
[null,null,null," ",null,{"$f":"IFERROR(IF($D16=0,\" \",IF(TEMA=\"NOMBRE\",VLOOKUP($D16,Datos[#All],4,0),IF(TEMA=\"IDENTIFICACIÓN\",VLOOKUP($D16,Busqueda_Cedula,3,0)))),\" \")","v":" "},{"$f":"IFERROR(IF($D16=0,\" \",IF(TEMA=\"NOMBRE\",VLOOKUP($D16,Datos[#All],5,0),IF(TEMA=\"IDENTIFICACIÓN\",VLOOKUP($D16,Busqueda_Cedula,4,0)))),\" \")","v":" "},{"$f":"IFERROR(IF($D16=0,\" \",IF(TEMA=\"NOMBRE\",VLOOKUP($D16,Datos[#All],6,0),IF(TEMA=\"IDENTIFICACIÓN\",VLOOKUP($D16,Busqueda_Cedula,5,0)))),\" \")","v":" "},{"$f":"IFERROR(IF($D16=0,\" \",IF(TEMA=\"NOMBRE\",VLOOKUP($D16,Datos[#All],7,0),IF(TEMA=\"IDENTIFICACIÓN\",VLOOKUP($D16,Busqueda_Cedula,6,0)))),\" \")","v":" "},{"$f":"IFERROR(IF($D16=0,\" \",IF(TEMA=\"NOMBRE\",VLOOKUP($D16,Datos[#All],8,0),IF(TEMA=\"IDENTIFICACIÓN\",VLOOKUP($D16,Busqueda_Cedula,7,0)))),\" \")","v":" "},{"$f":"IFERROR(IF($D16=0,\" \",IF(TEMA=\"NOMBRE\",VLOOKUP($D16,Datos[#All],9,0),IF(TEMA=\"IDENTIFICACIÓN\",VLOOKUP($D16,Busqueda_Cedula,8,0)))),\" \")","v":" "},{"$f":"IFERROR(IF($D16=0,\" \",IF(TEMA=\"NOMBRE\",VLOOKUP($D16,Datos[#All],10,0),IF(TEMA=\"IDENTIFICACIÓN\",VLOOKUP($D16,Busqueda_Cedula,9,0)))),\" \")","v":" "},{"$f":"IFERROR(IF($D16=0,\" \",IF(TEMA=\"NOMBRE\",VLOOKUP($D16,Datos[#All],11,0),IF(TEMA=\"IDENTIFICACIÓN\",VLOOKUP($D16,Busqueda_Cedula,10,0)))),\" \")","v":" "}]
[null,{"$f":"IF(Dato_Busqueda=0,\" \",\"CON ESE CRITERIO SE HAN ENCONTRADO\")","v":" "},null," ",null,{"$f":"IFERROR(IF($D17=0,\" \",IF(TEMA=\"NOMBRE\",VLOOKUP($D17,Datos[#All],4,0),IF(TEMA=\"IDENTIFICACIÓN\",VLOOKUP($D17,Busqueda_Cedula,3,0)))),\" \")","v":" "},{"$f":"IFERROR(IF($D17=0,\" \",IF(TEMA=\"NOMBRE\",VLOOKUP($D17,Datos[#All],5,0),IF(TEMA=\"IDENTIFICACIÓN\",VLOOKUP($D17,Busqueda_Cedula,4,0)))),\" \")","v":" "},{"$f":"IFERROR(IF($D17=0,\" \",IF(TEMA=\"NOMBRE\",VLOOKUP($D17,Datos[#All],6,0),IF(TEMA=\"IDENTIFICACIÓN\",VLOOKUP($D17,Busqueda_Cedula,5,0)))),\" \")","v":" "},{"$f":"IFERROR(IF($D17=0,\" \",IF(TEMA=\"NOMBRE\",VLOOKUP($D17,Datos[#All],7,0),IF(TEMA=\"IDENTIFICACIÓN\",VLOOKUP($D17,Busqueda_Cedula,6,0)))),\" \")","v":" "},{"$f":"IFERROR(IF($D17=0,\" \",IF(TEMA=\"NOMBRE\",VLOOKUP($D17,Datos[#All],8,0),IF(TEMA=\"IDENTIFICACIÓN\",VLOOKUP($D17,Busqueda_Cedula,7,0)))),\" \")","v":" "},{"$f":"IFERROR(IF($D17=0,\" \",IF(TEMA=\"NOMBRE\",VLOOKUP($D17,Datos[#All],9,0),IF(TEMA=\"IDENTIFICACIÓN\",VLOOKUP($D17,Busqueda_Cedula,8,0)))),\" \")","v":" "},{"$f":"IFERROR(IF($D17=0,\" \",IF(TEMA=\"NOMBRE\",VLOOKUP($D17,Datos[#All],10,0),IF(TEMA=\"IDENTIFICACIÓN\",VLOOKUP($D17,Busqueda_Cedula,9,0)))),\" \")","v":" "},{"$f":"IFERROR(IF($D17=0,\" \",IF(TEMA=\"NOMBRE\",VLOOKUP($D17,Datos[#All],11,0),IF(TEMA=\"IDENTIFICACIÓN\",VLOOKUP($D17,Busqueda_Cedula,10,0)))),\" \")","v":" "}]
[null,{"$f":"IF(Dato_Busqueda=0,\" \",IF(TEMA=\"NOMBRE\",IF(AND(Total_Nombre>0,Dato_Busqueda>0),Total_Nombre,0),IF(TEMA=\"IDENTIFICACIÓN\",IF(AND(Total_Identificacion>0,Dato_Busqueda>0),Total_Identificacion,0))))","v":" "},null," ",null,{"$f":"IFERROR(IF($D18=0,\" \",IF(TEMA=\"NOMBRE\",VLOOKUP($D18,Datos[#All],4,0),IF(TEMA=\"IDENTIFICACIÓN\",VLOOKUP($D18,Busqueda_Cedula,3,0)))),\" \")","v":" "},{"$f":"IFERROR(IF($D18=0,\" \",IF(TEMA=\"NOMBRE\",VLOOKUP($D18,Datos[#All],5,0),IF(TEMA=\"IDENTIFICACIÓN\",VLOOKUP($D18,Busqueda_Cedula,4,0)))),\" \")","v":" "},{"$f":"IFERROR(IF($D18=0,\" \",IF(TEMA=\"NOMBRE\",VLOOKUP($D18,Datos[#All],6,0),IF(TEMA=\"IDENTIFICACIÓN\",VLOOKUP($D18,Busqueda_Cedula,5,0)))),\" \")","v":" "},{"$f":"IFERROR(IF($D18=0,\" \",IF(TEMA=\"NOMBRE\",VLOOKUP($D18,Datos[#All],7,0),IF(TEMA=\"IDENTIFICACIÓN\",VLOOKUP($D18,Busqueda_Cedula,6,0)))),\" \")","v":" "},{"$f":"IFERROR(IF($D18=0,\" \",IF(TEMA=\"NOMBRE\",VLOOKUP($D18,Datos[#All],8,0),IF(TEMA=\"IDENTIFICACIÓN\",VLOOKUP($D18,Busqueda_Cedula,7,0)))),\" \")","v":" "},{"$f":"IFERROR(IF($D18=0,\" \",IF(TEMA=\"NOMBRE\",VLOOKUP($D18,Datos[#All],9,0),IF(TEMA=\"IDENTIFICACIÓN\",VLOOKUP($D18,Busqueda_Cedula,8,0)))),\" \")","v":" "},{"$f":"IFERROR(IF($D18=0,\" \",IF(TEMA=\"NOMBRE\",VLOOKUP($D18,Datos[#All],10,0),IF(TEMA=\"IDENTIFICACIÓN\",VLOOKUP($D18,Busqueda_Cedula,9,0)))),\" \")","v":" "},{"$f":"IFERROR(IF($D18=0,\" \",IF(TEMA=\"NOMBRE\",VLOOKUP($D18,Datos[#All],11,0),IF(TEMA=\"IDENTIFICACIÓN\",VLOOKUP($D18,Busqueda_Cedula,10,0)))),\" \")","v":" "}]
[null,{"$f":"IF(Dato_Busqueda=0,\" \",\"REGISTRO(S)\")","v":" "},null," ",null,{"$f":"IFERROR(IF($D19=0,\" \",IF(TEMA=\"NOMBRE\",VLOOKUP($D19,Datos[#All],4,0),IF(TEMA=\"IDENTIFICACIÓN\",VLOOKUP($D19,Busqueda_Cedula,3,0)))),\" \")","v":" "},{"$f":"IFERROR(IF($D19=0,\" \",IF(TEMA=\"NOMBRE\",VLOOKUP($D19,Datos[#All],5,0),IF(TEMA=\"IDENTIFICACIÓN\",VLOOKUP($D19,Busqueda_Cedula,4,0)))),\" \")","v":" "},{"$f":"IFERROR(IF($D19=0,\" \",IF(TEMA=\"NOMBRE\",VLOOKUP($D19,Datos[#All],6,0),IF(TEMA=\"IDENTIFICACIÓN\",VLOOKUP($D19,Busqueda_Cedula,5,0)))),\" \")","v":" "},{"$f":"IFERROR(IF($D19=0,\" \",IF(TEMA=\"NOMBRE\",VLOOKUP($D19,Datos[#All],7,0),IF(TEMA=\"IDENTIFICACIÓN\",VLOOKUP($D19,Busqueda_Cedula,6,0)))),\" \")","v":" "},{"$f":"IFERROR(IF($D19=0,\" \",IF(TEMA=\"NOMBRE\",VLOOKUP($D19,Datos[#All],8,0),IF(TEMA=\"IDENTIFICACIÓN\",VLOOKUP($D19,Busqueda_Cedula,7,0)))),\" \")","v":" "},{"$f":"IFERROR(IF($D19=0,\" \",IF(TEMA=\"NOMBRE\",VLOOKUP($D19,Datos[#All],9,0),IF(TEMA=\"IDENTIFICACIÓN\",VLOOKUP($D19,Busqueda_Cedula,8,0)))),\" \")","v":" "},{"$f":"IFERROR(IF($D19=0,\" \",IF(TEMA=\"NOMBRE\",VLOOKUP($D19,Datos[#All],10,0),IF(TEMA=\"IDENTIFICACIÓN\",VLOOKUP($D19,Busqueda_Cedula,9,0)))),\" \")","v":" "},{"$f":"IFERROR(IF($D19=0,\" \",IF(TEMA=\"NOMBRE\",VLOOKUP($D19,Datos[#All],11,0),IF(TEMA=\"IDENTIFICACIÓN\",VLOOKUP($D19,Busqueda_Cedula,10,0)))),\" \")","v":" "}]
[null,null,null," ",null,{"$f":"IFERROR(IF($D20=0,\" \",IF(TEMA=\"NOMBRE\",VLOOKUP($D20,Datos[#All],4,0),IF(TEMA=\"IDENTIFICACIÓN\",VLOOKUP($D20,Busqueda_Cedula,3,0)))),\" \")","v":" "},{"$f":"IFERROR(IF($D20=0,\" \",IF(TEMA=\"NOMBRE\",VLOOKUP($D20,Datos[#All],5,0),IF(TEMA=\"IDENTIFICACIÓN\",VLOOKUP($D20,Busqueda_Cedula,4,0)))),\" \")","v":" "},{"$f":"IFERROR(IF($D20=0,\" \",IF(TEMA=\"NOMBRE\",VLOOKUP($D20,Datos[#All],6,0),IF(TEMA=\"IDENTIFICACIÓN\",VLOOKUP($D20,Busqueda_Cedula,5,0)))),\" \")","v":" "},{"$f":"IFERROR(IF($D20=0,\" \",IF(TEMA=\"NOMBRE\",VLOOKUP($D20,Datos[#All],7,0),IF(TEMA=\"IDENTIFICACIÓN\",VLOOKUP($D20,Busqueda_Cedula,6,0)))),\" \")","v":" "},{"$f":"IFERROR(IF($D20=0,\" \",IF(TEMA=\"NOMBRE\",VLOOKUP($D20,Datos[#All],8,0),IF(TEMA=\"IDENTIFICACIÓN\",VLOOKUP($D20,Busqueda_Cedula,7,0)))),\" \")","v":" "},{"$f":"IFERROR(IF($D20=0,\" \",IF(TEMA=\"NOMBRE\",VLOOKUP($D20,Datos[#All],9,0),IF(TEMA=\"IDENTIFICACIÓN\",VLOOKUP($D20,Busqueda_Cedula,8,0)))),\" \")","v":" "},{"$f":"IFERROR(IF($D20=0,\" \",IF(TEMA=\"NOMBRE\",VLOOKUP($D20,Datos[#All],10,0),IF(TEMA=\"IDENTIFICACIÓN\",VLOOKUP($D20,Busqueda_Cedula,9,0)))),\" \")","v":" "},{"$f":"IFERROR(IF($D20=0,\" \",IF(TEMA=\"NOMBRE\",VLOOKUP($D20,Datos[#All],11,0),IF(TEMA=\"IDENTIFICACIÓN\",VLOOKUP($D20,Busqueda_Cedula,10,0)))),\" \")","v":" "}]
[null,null,null," ",null,{"$f":"IFERROR(IF($D21=0,\" \",IF(TEMA=\"NOMBRE\",VLOOKUP($D21,Datos[#All],4,0),IF(TEMA=\"IDENTIFICACIÓN\",VLOOKUP($D21,Busqueda_Cedula,3,0)))),\" \")","v":" "},{"$f":"IFERROR(IF($D21=0,\" \",IF(TEMA=\"NOMBRE\",VLOOKUP($D21,Datos[#All],5,0),IF(TEMA=\"IDENTIFICACIÓN\",VLOOKUP($D21,Busqueda_Cedula,4,0)))),\" \")","v":" "},{"$f":"IFERROR(IF($D21=0,\" \",IF(TEMA=\"NOMBRE\",VLOOKUP($D21,Datos[#All],6,0),IF(TEMA=\"IDENTIFICACIÓN\",VLOOKUP($D21,Busqueda_Cedula,5,0)))),\" \")","v":" "},{"$f":"IFERROR(IF($D21=0,\" \",IF(TEMA=\"NOMBRE\",VLOOKUP($D21,Datos[#All],7,0),IF(TEMA=\"IDENTIFICACIÓN\",VLOOKUP($D21,Busqueda_Cedula,6,0)))),\" \")","v":" "},{"$f":"IFERROR(IF($D21=0,\" \",IF(TEMA=\"NOMBRE\",VLOOKUP($D21,Datos[#All],8,0),IF(TEMA=\"IDENTIFICACIÓN\",VLOOKUP($D21,Busqueda_Cedula,7,0)))),\" \")","v":" "},{"$f":"IFERROR(IF($D21=0,\" \",IF(TEMA=\"NOMBRE\",VLOOKUP($D21,Datos[#All],9,0),IF(TEMA=\"IDENTIFICACIÓN\",VLOOKUP($D21,Busqueda_Cedula,8,0)))),\" \")","v":" "},{"$f":"IFERROR(IF($D21=0,\" \",IF(TEMA=\"NOMBRE\",VLOOKUP($D21,Datos[#All],10,0),IF(TEMA=\"IDENTIFICACIÓN\",VLOOKUP($D21,Busqueda_Cedula,9,0)))),\" \")","v":" "},{"$f":"IFERROR(IF($D21=0,\" \",IF(TEMA=\"NOMBRE\",VLOOKUP($D21,Datos[#All],11,0),IF(TEMA=\"IDENTIFICACIÓN\",VLOOKUP($D21,Busqueda_Cedula,10,0)))),\" \")","v":" "}]
[null,null,null," ",null,{"$f":"IFERROR(IF($D22=0,\" \",IF(TEMA=\"NOMBRE\",VLOOKUP($D22,Datos[#All],4,0),IF(TEMA=\"IDENTIFICACIÓN\",VLOOKUP($D22,Busqueda_Cedula,3,0)))),\" \")","v":" "},{"$f":"IFERROR(IF($D22=0,\" \",IF(TEMA=\"NOMBRE\",VLOOKUP($D22,Datos[#All],5,0),IF(TEMA=\"IDENTIFICACIÓN\",VLOOKUP($D22,Busqueda_Cedula,4,0)))),\" \")","v":" "},{"$f":"IFERROR(IF($D22=0,\" \",IF(TEMA=\"NOMBRE\",VLOOKUP($D22,Datos[#All],6,0),IF(TEMA=\"IDENTIFICACIÓN\",VLOOKUP($D22,Busqueda_Cedula,5,0)))),\" \")","v":" "},{"$f":"IFERROR(IF($D22=0,\" \",IF(TEMA=\"NOMBRE\",VLOOKUP($D22,Datos[#All],7,0),IF(TEMA=\"IDENTIFICACIÓN\",VLOOKUP($D22,Busqueda_Cedula,6,0)))),\" \")","v":" "},{"$f":"IFERROR(IF($D22=0,\" \",IF(TEMA=\"NOMBRE\",VLOOKUP($D22,Datos[#All],8,0),IF(TEMA=\"IDENTIFICACIÓN\",VLOOKUP($D22,Busqueda_Cedula,7,0)))),\" \")","v":" "},{"$f":"IFERROR(IF($D22=0,\" \",IF(TEMA=\"NOMBRE\",VLOOKUP($D22,Datos[#All],9,0),IF(TEMA=\"IDENTIFICACIÓN\",VLOOKUP($D22,Busqueda_Cedula,8,0)))),\" \")","v":" "},{"$f":"IFERROR(IF($D22=0,\" \",IF(TEMA=\"NOMBRE\",VLOOKUP($D22,Datos[#All],10,0),IF(TEMA=\"IDENTIFICACIÓN\",VLOOKUP($D22,Busqueda_Cedula,9,0)))),\" \")","v":" "},{"$f":"IFERROR(IF($D22=0,\" \",IF(TEMA=\"NOMBRE\",VLOOKUP($D22,Datos[#All],11,0),IF(TEMA=\"IDENTIFICACIÓN\",VLOOKUP($D22,Busqueda_Cedula,10,0)))),\" \")","v":" "}]
[null,null,null," ",null,{"$f":"IFERROR(IF($D23=0,\" \",IF(TEMA=\"NOMBRE\",VLOOKUP($D23,Datos[#All],4,0),IF(TEMA=\"IDENTIFICACIÓN\",VLOOKUP($D23,Busqueda_Cedula,3,0)))),\" \")","v":" "},{"$f":"IFERROR(IF($D23=0,\" \",IF(TEMA=\"NOMBRE\",VLOOKUP($D23,Datos[#All],5,0),IF(TEMA=\"IDENTIFICACIÓN\",VLOOKUP($D23,Busqueda_Cedula,4,0)))),\" \")","v":" "},{"$f":"IFERROR(IF($D23=0,\" \",IF(TEMA=\"NOMBRE\",VLOOKUP($D23,Datos[#All],6,0),IF(TEMA=\"IDENTIFICACIÓN\",VLOOKUP($D23,Busqueda_Cedula,5,0)))),\" \")","v":" "},{"$f":"IFERROR(IF($D23=0,\" \",IF(TEMA=\"NOMBRE\",VLOOKUP($D23,Datos[#All],7,0),IF(TEMA=\"IDENTIFICACIÓN\",VLOOKUP($D23,Busqueda_Cedula,6,0)))),\" \")","v":" "},{"$f":"IFERROR(IF($D23=0,\" \",IF(TEMA=\"NOMBRE\",VLOOKUP($D23,Datos[#All],8,0),IF(TEMA=\"IDENTIFICACIÓN\",VLOOKUP($D23,Busqueda_Cedula,7,0)))),\" \")","v":" "},{"$f":"IFERROR(IF($D23=0,\" \",IF(TEMA=\"NOMBRE\",VLOOKUP($D23,Datos[#All],9,0),IF(TEMA=\"IDENTIFICACIÓN\",VLOOKUP($D23,Busqueda_Cedula,8,0)))),\" \")","v":" "},{"$f":"IFERROR(IF($D23=0,\" \",IF(TEMA=\"NOMBRE\",VLOOKUP($D23,Datos[#All],10,0),IF(TEMA=\"IDENTIFICACIÓN\",VLOOKUP($D23,Busqueda_Cedula,9,0)))),\" \")","v":" "},{"$f":"IFERROR(IF($D23=0,\" \",IF(TEMA=\"NOMBRE\",VLOOKUP($D23,Datos[#All],11,0),IF(TEMA=\"IDENTIFICACIÓN\",VLOOKUP($D23,Busqueda_Cedula,10,0)))),\" \")","v":" "}]
[null,null,null," ",null,{"$f":"IFERROR(IF($D24=0,\" \",IF(TEMA=\"NOMBRE\",VLOOKUP($D24,Datos[#All],4,0),IF(TEMA=\"IDENTIFICACIÓN\",VLOOKUP($D24,Busqueda_Cedula,3,0)))),\" \")","v":" "},{"$f":"IFERROR(IF($D24=0,\" \",IF(TEMA=\"NOMBRE\",VLOOKUP($D24,Datos[#All],5,0),IF(TEMA=\"IDENTIFICACIÓN\",VLOOKUP($D24,Busqueda_Cedula,4,0)))),\" \")","v":" "},{"$f":"IFERROR(IF($D24=0,\" \",IF(TEMA=\"NOMBRE\",VLOOKUP($D24,Datos[#All],6,0),IF(TEMA=\"IDENTIFICACIÓN\",VLOOKUP($D24,Busqueda_Cedula,5,0)))),\" \")","v":" "},{"$f":"IFERROR(IF($D24=0,\" \",IF(TEMA=\"NOMBRE\",VLOOKUP($D24,Datos[#All],7,0),IF(TEMA=\"IDENTIFICACIÓN\",VLOOKUP($D24,Busqueda_Cedula,6,0)))),\" \")","v":" "},{"$f":"IFERROR(IF($D24=0,\" \",IF(TEMA=\"NOMBRE\",VLOOKUP($D24,Datos[#All],8,0),IF(TEMA=\"IDENTIFICACIÓN\",VLOOKUP($D24,Busqueda_Cedula,7,0)))),\" \")","v":" "},{"$f":"IFERROR(IF($D24=0,\" \",IF(TEMA=\"NOMBRE\",VLOOKUP($D24,Datos[#All],9,0),IF(TEMA=\"IDENTIFICACIÓN\",VLOOKUP($D24,Busqueda_Cedula,8,0)))),\" \")","v":" "},{"$f":"IFERROR(IF($D24=0,\" \",IF(TEMA=\"NOMBRE\",VLOOKUP($D24,Datos[#All],10,0),IF(TEMA=\"IDENTIFICACIÓN\",VLOOKUP($D24,Busqueda_Cedula,9,0)))),\" \")","v":" "},{"$f":"IFERROR(IF($D24=0,\" \",IF(TEMA=\"NOMBRE\",VLOOKUP($D24,Datos[#All],11,0),IF(TEMA=\"IDENTIFICACIÓN\",VLOOKUP($D24,Busqueda_Cedula,10,0)))),\" \")","v":" "}]
[null,null,null," ",null,{"$f":"IFERROR(IF($D25=0,\" \",IF(TEMA=\"NOMBRE\",VLOOKUP($D25,Datos[#All],4,0),IF(TEMA=\"IDENTIFICACIÓN\",VLOOKUP($D25,Busqueda_Cedula,3,0)))),\" \")","v":" "},{"$f":"IFERROR(IF($D25=0,\" \",IF(TEMA=\"NOMBRE\",VLOOKUP($D25,Datos[#All],5,0),IF(TEMA=\"IDENTIFICACIÓN\",VLOOKUP($D25,Busqueda_Cedula,4,0)))),\" \")","v":" "},{"$f":"IFERROR(IF($D25=0,\" \",IF(TEMA=\"NOMBRE\",VLOOKUP($D25,Datos[#All],6,0),IF(TEMA=\"IDENTIFICACIÓN\",VLOOKUP($D25,Busqueda_Cedula,5,0)))),\" \")","v":" "},{"$f":"IFERROR(IF($D25=0,\" \",IF(TEMA=\"NOMBRE\",VLOOKUP($D25,Datos[#All],7,0),IF(TEMA=\"IDENTIFICACIÓN\",VLOOKUP($D25,Busqueda_Cedula,6,0)))),\" \")","v":" "},{"$f":"IFERROR(IF($D25=0,\" \",IF(TEMA=\"NOMBRE\",VLOOKUP($D25,Datos[#All],8,0),IF(TEMA=\"IDENTIFICACIÓN\",VLOOKUP($D25,Busqueda_Cedula,7,0)))),\" \")","v":" "},{"$f":"IFERROR(IF($D25=0,\" \",IF(TEMA=\"NOMBRE\",VLOOKUP($D25,Datos[#All],9,0),IF(TEMA=\"IDENTIFICACIÓN\",VLOOKUP($D25,Busqueda_Cedula,8,0)))),\" \")","v":" "},{"$f":"IFERROR(IF($D25=0,\" \",IF(TEMA=\"NOMBRE\",VLOOKUP($D25,Datos[#All],10,0),IF(TEMA=\"IDENTIFICACIÓN\",VLOOKUP($D25,Busqueda_Cedula,9,0)))),\" \")","v":" "},{"$f":"IFERROR(IF($D25=0,\" \",IF(TEMA=\"NOMBRE\",VLOOKUP($D25,Datos[#All],11,0),IF(TEMA=\"IDENTIFICACIÓN\",VLOOKUP($D25,Busqueda_Cedula,10,0)))),\" \")","v":" "}]
[null,null,null," ",null,{"$f":"IFERROR(IF($D26=0,\" \",IF(TEMA=\"NOMBRE\",VLOOKUP($D26,Datos[#All],4,0),IF(TEMA=\"IDENTIFICACIÓN\",VLOOKUP($D26,Busqueda_Cedula,3,0)))),\" \")","v":" "},{"$f":"IFERROR(IF($D26=0,\" \",IF(TEMA=\"NOMBRE\",VLOOKUP($D26,Datos[#All],5,0),IF(TEMA=\"IDENTIFICACIÓN\",VLOOKUP($D26,Busqueda_Cedula,4,0)))),\" \")","v":" "},{"$f":"IFERROR(IF($D26=0,\" \",IF(TEMA=\"NOMBRE\",VLOOKUP($D26,Datos[#All],6,0),IF(TEMA=\"IDENTIFICACIÓN\",VLOOKUP($D26,Busqueda_Cedula,5,0)))),\" \")","v":" "},{"$f":"IFERROR(IF($D26=0,\" \",IF(TEMA=\"NOMBRE\",VLOOKUP($D26,Datos[#All],7,0),IF(TEMA=\"IDENTIFICACIÓN\",VLOOKUP($D26,Busqueda_Cedula,6,0)))),\" \")","v":" "},{"$f":"IFERROR(IF($D26=0,\" \",IF(TEMA=\"NOMBRE\",VLOOKUP($D26,Datos[#All],8,0),IF(TEMA=\"IDENTIFICACIÓN\",VLOOKUP($D26,Busqueda_Cedula,7,0)))),\" \")","v":" "},{"$f":"IFERROR(IF($D26=0,\" \",IF(TEMA=\"NOMBRE\",VLOOKUP($D26,Datos[#All],9,0),IF(TEMA=\"IDENTIFICACIÓN\",VLOOKUP($D26,Busqueda_Cedula,8,0)))),\" \")","v":" "},{"$f":"IFERROR(IF($D26=0,\" \",IF(TEMA=\"NOMBRE\",VLOOKUP($D26,Datos[#All],10,0),IF(TEMA=\"IDENTIFICACIÓN\",VLOOKUP($D26,Busqueda_Cedula,9,0)))),\" \")","v":" "},{"$f":"IFERROR(IF($D26=0,\" \",IF(TEMA=\"NOMBRE\",VLOOKUP($D26,Datos[#All],11,0),IF(TEMA=\"IDENTIFICACIÓN\",VLOOKUP($D26,Busqueda_Cedula,10,0)))),\" \")","v":" "}]
[null,null,null," ",null,{"$f":"IFERROR(IF($D27=0,\" \",IF(TEMA=\"NOMBRE\",VLOOKUP($D27,Datos[#All],4,0),IF(TEMA=\"IDENTIFICACIÓN\",VLOOKUP($D27,Busqueda_Cedula,3,0)))),\" \")","v":" "},{"$f":"IFERROR(IF($D27=0,\" \",IF(TEMA=\"NOMBRE\",VLOOKUP($D27,Datos[#All],5,0),IF(TEMA=\"IDENTIFICACIÓN\",VLOOKUP($D27,Busqueda_Cedula,4,0)))),\" \")","v":" "},{"$f":"IFERROR(IF($D27=0,\" \",IF(TEMA=\"NOMBRE\",VLOOKUP($D27,Datos[#All],6,0),IF(TEMA=\"IDENTIFICACIÓN\",VLOOKUP($D27,Busqueda_Cedula,5,0)))),\" \")","v":" "},{"$f":"IFERROR(IF($D27=0,\" \",IF(TEMA=\"NOMBRE\",VLOOKUP($D27,Datos[#All],7,0),IF(TEMA=\"IDENTIFICACIÓN\",VLOOKUP($D27,Busqueda_Cedula,6,0)))),\" \")","v":" "},{"$f":"IFERROR(IF($D27=0,\" \",IF(TEMA=\"NOMBRE\",VLOOKUP($D27,Datos[#All],8,0),IF(TEMA=\"IDENTIFICACIÓN\",VLOOKUP($D27,Busqueda_Cedula,7,0)))),\" \")","v":" "},{"$f":"IFERROR(IF($D27=0,\" \",IF(TEMA=\"NOMBRE\",VLOOKUP($D27,Datos[#All],9,0),IF(TEMA=\"IDENTIFICACIÓN\",VLOOKUP($D27,Busqueda_Cedula,8,0)))),\" \")","v":" "},{"$f":"IFERROR(IF($D27=0,\" \",IF(TEMA=\"NOMBRE\",VLOOKUP($D27,Datos[#All],10,0),IF(TEMA=\"IDENTIFICACIÓN\",VLOOKUP($D27,Busqueda_Cedula,9,0)))),\" \")","v":" "},{"$f":"IFERROR(IF($D27=0,\" \",IF(TEMA=\"NOMBRE\",VLOOKUP($D27,Datos[#All],11,0),IF(TEMA=\"IDENTIFICACIÓN\",VLOOKUP($D27,Busqueda_Cedula,10,0)))),\" \")","v":" "}]
[null,null,null," ",null,{"$f":"IFERROR(IF($D28=0,\" \",IF(TEMA=\"NOMBRE\",VLOOKUP($D28,Datos[#All],4,0),IF(TEMA=\"IDENTIFICACIÓN\",VLOOKUP($D28,Busqueda_Cedula,3,0)))),\" \")","v":" "},{"$f":"IFERROR(IF($D28=0,\" \",IF(TEMA=\"NOMBRE\",VLOOKUP($D28,Datos[#All],5,0),IF(TEMA=\"IDENTIFICACIÓN\",VLOOKUP($D28,Busqueda_Cedula,4,0)))),\" \")","v":" "},{"$f":"IFERROR(IF($D28=0,\" \",IF(TEMA=\"NOMBRE\",VLOOKUP($D28,Datos[#All],6,0),IF(TEMA=\"IDENTIFICACIÓN\",VLOOKUP($D28,Busqueda_Cedula,5,0)))),\" \")","v":" "},{"$f":"IFERROR(IF($D28=0,\" \",IF(TEMA=\"NOMBRE\",VLOOKUP($D28,Datos[#All],7,0),IF(TEMA=\"IDENTIFICACIÓN\",VLOOKUP($D28,Busqueda_Cedula,6,0)))),\" \")","v":" "},{"$f":"IFERROR(IF($D28=0,\" \",IF(TEMA=\"NOMBRE\",VLOOKUP($D28,Datos[#All],8,0),IF(TEMA=\"IDENTIFICACIÓN\",VLOOKUP($D28,Busqueda_Cedula,7,0)))),\" \")","v":" "},{"$f":"IFERROR(IF($D28=0,\" \",IF(TEMA=\"NOMBRE\",VLOOKUP($D28,Datos[#All],9,0),IF(TEMA=\"IDENTIFICACIÓN\",VLOOKUP($D28,Busqueda_Cedula,8,0)))),\" \")","v":" "},{"$f":"IFERROR(IF($D28=0,\" \",IF(TEMA=\"NOMBRE\",VLOOKUP($D28,Datos[#All],10,0),IF(TEMA=\"IDENTIFICACIÓN\",VLOOKUP($D28,Busqueda_Cedula,9,0)))),\" \")","v":" "},{"$f":"IFERROR(IF($D28=0,\" \",IF(TEMA=\"NOMBRE\",VLOOKUP($D28,Datos[#All],11,0),IF(TEMA=\"IDENTIFICACIÓN\",VLOOKUP($D28,Busqueda_Cedula,10,0)))),\" \")","v":" "}]
[null,null,null," ",null,{"$f":"IFERROR(IF($D29=0,\" \",IF(TEMA=\"NOMBRE\",VLOOKUP($D29,Datos[#All],4,0),IF(TEMA=\"IDENTIFICACIÓN\",VLOOKUP($D29,Busqueda_Cedula,3,0)))),\" \")","v":" "},{"$f":"IFERROR(IF($D29=0,\" \",IF(TEMA=\"NOMBRE\",VLOOKUP($D29,Datos[#All],5,0),IF(TEMA=\"IDENTIFICACIÓN\",VLOOKUP($D29,Busqueda_Cedula,4,0)))),\" \")","v":" "},{"$f":"IFERROR(IF($D29=0,\" \",IF(TEMA=\"NOMBRE\",VLOOKUP($D29,Datos[#All],6,0),IF(TEMA=\"IDENTIFICACIÓN\",VLOOKUP($D29,Busqueda_Cedula,5,0)))),\" \")","v":" "},{"$f":"IFERROR(IF($D29=0,\" \",IF(TEMA=\"NOMBRE\",VLOOKUP($D29,Datos[#All],7,0),IF(TEMA=\"IDENTIFICACIÓN\",VLOOKUP($D29,Busqueda_Cedula,6,0)))),\" \")","v":" "},{"$f":"IFERROR(IF($D29=0,\" \",IF(TEMA=\"NOMBRE\",VLOOKUP($D29,Datos[#All],8,0),IF(TEMA=\"IDENTIFICACIÓN\",VLOOKUP($D29,Busqueda_Cedula,7,0)))),\" \")","v":" "},{"$f":"IFERROR(IF($D29=0,\" \",IF(TEMA=\"NOMBRE\",VLOOKUP($D29,Datos[#All],9,0),IF(TEMA=\"IDENTIFICACIÓN\",VLOOKUP($D29,Busqueda_Cedula,8,0)))),\" \")","v":" "},{"$f":"IFERROR(IF($D29=0,\" \",IF(TEMA=\"NOMBRE\",VLOOKUP($D29,Datos[#All],10,0),IF(TEMA=\"IDENTIFICACIÓN\",VLOOKUP($D29,Busqueda_Cedula,9,0)))),\" \")","v":" "},{"$f":"IFERROR(IF($D29=0,\" \",IF(TEMA=\"NOMBRE\",VLOOKUP($D29,Datos[#All],11,0),IF(TEMA=\"IDENTIFICACIÓN\",VLOOKUP($D29,Busqueda_Cedula,10,0)))),\" \")","v":" "}]
[null,null,null," ",null,{"$f":"IFERROR(IF($D30=0,\" \",IF(TEMA=\"NOMBRE\",VLOOKUP($D30,Datos[#All],4,0),IF(TEMA=\"IDENTIFICACIÓN\",VLOOKUP($D30,Busqueda_Cedula,3,0)))),\" \")","v":" "},{"$f":"IFERROR(IF($D30=0,\" \",IF(TEMA=\"NOMBRE\",VLOOKUP($D30,Datos[#All],5,0),IF(TEMA=\"IDENTIFICACIÓN\",VLOOKUP($D30,Busqueda_Cedula,4,0)))),\" \")","v":" "},{"$f":"IFERROR(IF($D30=0,\" \",IF(TEMA=\"NOMBRE\",VLOOKUP($D30,Datos[#All],6,0),IF(TEMA=\"IDENTIFICACIÓN\",VLOOKUP($D30,Busqueda_Cedula,5,0)))),\" \")","v":" "},{"$f":"IFERROR(IF($D30=0,\" \",IF(TEMA=\"NOMBRE\",VLOOKUP($D30,Datos[#All],7,0),IF(TEMA=\"IDENTIFICACIÓN\",VLOOKUP($D30,Busqueda_Cedula,6,0)))),\" \")","v":" "},{"$f":"IFERROR(IF($D30=0,\" \",IF(TEMA=\"NOMBRE\",VLOOKUP($D30,Datos[#All],8,0),IF(TEMA=\"IDENTIFICACIÓN\",VLOOKUP($D30,Busqueda_Cedula,7,0)))),\" \")","v":" "},{"$f":"IFERROR(IF($D30=0,\" \",IF(TEMA=\"NOMBRE\",VLOOKUP($D30,Datos[#All],9,0),IF(TEMA=\"IDENTIFICACIÓN\",VLOOKUP($D30,Busqueda_Cedula,8,0)))),\" \")","v":" "},{"$f":"IFERROR(IF($D30=0,\" \",IF(TEMA=\"NOMBRE\",VLOOKUP($D30,Datos[#All],10,0),IF(TEMA=\"IDENTIFICACIÓN\",VLOOKUP($D30,Busqueda_Cedula,9,0)))),\" \")","v":" "},{"$f":"IFERROR(IF($D30=0,\" \",IF(TEMA=\"NOMBRE\",VLOOKUP($D30,Datos[#All],11,0),IF(TEMA=\"IDENTIFICACIÓN\",VLOOKUP($D30,Busqueda_Cedula,10,0)))),\" \")","v":" "}]
[null,null,null," ",null,{"$f":"IFERROR(IF($D31=0,\" \",IF(TEMA=\"NOMBRE\",VLOOKUP($D31,Datos[#All],4,0),IF(TEMA=\"IDENTIFICACIÓN\",VLOOKUP($D31,Busqueda_Cedula,3,0)))),\" \")","v":" "},{"$f":"IFERROR(IF($D31=0,\" \",IF(TEMA=\"NOMBRE\",VLOOKUP($D31,Datos[#All],5,0),IF(TEMA=\"IDENTIFICACIÓN\",VLOOKUP($D31,Busqueda_Cedula,4,0)))),\" \")","v":" "},{"$f":"IFERROR(IF($D31=0,\" \",IF(TEMA=\"NOMBRE\",VLOOKUP($D31,Datos[#All],6,0),IF(TEMA=\"IDENTIFICACIÓN\",VLOOKUP($D31,Busqueda_Cedula,5,0)))),\" \")","v":" "},{"$f":"IFERROR(IF($D31=0,\" \",IF(TEMA=\"NOMBRE\",VLOOKUP($D31,Datos[#All],7,0),IF(TEMA=\"IDENTIFICACIÓN\",VLOOKUP($D31,Busqueda_Cedula,6,0)))),\" \")","v":" "},{"$f":"IFERROR(IF($D31=0,\" \",IF(TEMA=\"NOMBRE\",VLOOKUP($D31,Datos[#All],8,0),IF(TEMA=\"IDENTIFICACIÓN\",VLOOKUP($D31,Busqueda_Cedula,7,0)))),\" \")","v":" "},{"$f":"IFERROR(IF($D31=0,\" \",IF(TEMA=\"NOMBRE\",VLOOKUP($D31,Datos[#All],9,0),IF(TEMA=\"IDENTIFICACIÓN\",VLOOKUP($D31,Busqueda_Cedula,8,0)))),\" \")","v":" "},{"$f":"IFERROR(IF($D31=0,\" \",IF(TEMA=\"NOMBRE\",VLOOKUP($D31,Datos[#All],10,0),IF(TEMA=\"IDENTIFICACIÓN\",VLOOKUP($D31,Busqueda_Cedula,9,0)))),\" \")","v":" "},{"$f":"IFERROR(IF($D31=0,\" \",IF(TEMA=\"NOMBRE\",VLOOKUP($D31,Datos[#All],11,0),IF(TEMA=\"IDENTIFICACIÓN\",VLOOKUP($D31,Busqueda_Cedula,10,0)))),\" \")","v":" "}]
[null,null,null," ",null,{"$f":"IFERROR(IF($D32=0,\" \",IF(TEMA=\"NOMBRE\",VLOOKUP($D32,Datos[#All],4,0),IF(TEMA=\"IDENTIFICACIÓN\",VLOOKUP($D32,Busqueda_Cedula,3,0)))),\" \")","v":" "},{"$f":"IFERROR(IF($D32=0,\" \",IF(TEMA=\"NOMBRE\",VLOOKUP($D32,Datos[#All],5,0),IF(TEMA=\"IDENTIFICACIÓN\",VLOOKUP($D32,Busqueda_Cedula,4,0)))),\" \")","v":" "},{"$f":"IFERROR(IF($D32=0,\" \",IF(TEMA=\"NOMBRE\",VLOOKUP($D32,Datos[#All],6,0),IF(TEMA=\"IDENTIFICACIÓN\",VLOOKUP($D32,Busqueda_Cedula,5,0)))),\" \")","v":" "},{"$f":"IFERROR(IF($D32=0,\" \",IF(TEMA=\"NOMBRE\",VLOOKUP($D32,Datos[#All],7,0),IF(TEMA=\"IDENTIFICACIÓN\",VLOOKUP($D32,Busqueda_Cedula,6,0)))),\" \")","v":" "},{"$f":"IFERROR(IF($D32=0,\" \",IF(TEMA=\"NOMBRE\",VLOOKUP($D32,Datos[#All],8,0),IF(TEMA=\"IDENTIFICACIÓN\",VLOOKUP($D32,Busqueda_Cedula,7,0)))),\" \")","v":" "},{"$f":"IFERROR(IF($D32=0,\" \",IF(TEMA=\"NOMBRE\",VLOOKUP($D32,Datos[#All],9,0),IF(TEMA=\"IDENTIFICACIÓN\",VLOOKUP($D32,Busqueda_Cedula,8,0)))),\" \")","v":" "},{"$f":"IFERROR(IF($D32=0,\" \",IF(TEMA=\"NOMBRE\",VLOOKUP($D32,Datos[#All],10,0),IF(TEMA=\"IDENTIFICACIÓN\",VLOOKUP($D32,Busqueda_Cedula,9,0)))),\" \")","v":" "},{"$f":"IFERROR(IF($D32=0,\" \",IF(TEMA=\"NOMBRE\",VLOOKUP($D32,Datos[#All],11,0),IF(TEMA=\"IDENTIFICACIÓN\",VLOOKUP($D32,Busqueda_Cedula,10,0)))),\" \")","v":" "}]
[null,null,null," ",null,{"$f":"IFERROR(IF($D33=0,\" \",IF(TEMA=\"NOMBRE\",VLOOKUP($D33,Datos[#All],4,0),IF(TEMA=\"IDENTIFICACIÓN\",VLOOKUP($D33,Busqueda_Cedula,3,0)))),\" \")","v":" "},{"$f":"IFERROR(IF($D33=0,\" \",IF(TEMA=\"NOMBRE\",VLOOKUP($D33,Datos[#All],5,0),IF(TEMA=\"IDENTIFICACIÓN\",VLOOKUP($D33,Busqueda_Cedula,4,0)))),\" \")","v":" "},{"$f":"IFERROR(IF($D33=0,\" \",IF(TEMA=\"NOMBRE\",VLOOKUP($D33,Datos[#All],6,0),IF(TEMA=\"IDENTIFICACIÓN\",VLOOKUP($D33,Busqueda_Cedula,5,0)))),\" \")","v":" "},{"$f":"IFERROR(IF($D33=0,\" \",IF(TEMA=\"NOMBRE\",VLOOKUP($D33,Datos[#All],7,0),IF(TEMA=\"IDENTIFICACIÓN\",VLOOKUP($D33,Busqueda_Cedula,6,0)))),\" \")","v":" "},{"$f":"IFERROR(IF($D33=0,\" \",IF(TEMA=\"NOMBRE\",VLOOKUP($D33,Datos[#All],8,0),IF(TEMA=\"IDENTIFICACIÓN\",VLOOKUP($D33,Busqueda_Cedula,7,0)))),\" \")","v":" "},{"$f":"IFERROR(IF($D33=0,\" \",IF(TEMA=\"NOMBRE\",VLOOKUP($D33,Datos[#All],9,0),IF(TEMA=\"IDENTIFICACIÓN\",VLOOKUP($D33,Busqueda_Cedula,8,0)))),\" \")","v":" "},{"$f":"IFERROR(IF($D33=0,\" \",IF(TEMA=\"NOMBRE\",VLOOKUP($D33,Datos[#All],10,0),IF(TEMA=\"IDENTIFICACIÓN\",VLOOKUP($D33,Busqueda_Cedula,9,0)))),\" \")","v":" "},{"$f":"IFERROR(IF($D33=0,\" \",IF(TEMA=\"NOMBRE\",VLOOKUP($D33,Datos[#All],11,0),IF(TEMA=\"IDENTIFICACIÓN\",VLOOKUP($D33,Busqueda_Cedula,10,0)))),\" \")","v":" "}]
[null,null,null," ",null,{"$f":"IFERROR(IF($D34=0,\" \",IF(TEMA=\"NOMBRE\",VLOOKUP($D34,Datos[#All],4,0),IF(TEMA=\"IDENTIFICACIÓN\",VLOOKUP($D34,Busqueda_Cedula,3,0)))),\" \")","v":" "},{"$f":"IFERROR(IF($D34=0,\" \",IF(TEMA=\"NOMBRE\",VLOOKUP($D34,Datos[#All],5,0),IF(TEMA=\"IDENTIFICACIÓN\",VLOOKUP($D34,Busqueda_Cedula,4,0)))),\" \")","v":" "},{"$f":"IFERROR(IF($D34=0,\" \",IF(TEMA=\"NOMBRE\",VLOOKUP($D34,Datos[#All],6,0),IF(TEMA=\"IDENTIFICACIÓN\",VLOOKUP($D34,Busqueda_Cedula,5,0)))),\" \")","v":" "},{"$f":"IFERROR(IF($D34=0,\" \",IF(TEMA=\"NOMBRE\",VLOOKUP($D34,Datos[#All],7,0),IF(TEMA=\"IDENTIFICACIÓN\",VLOOKUP($D34,Busqueda_Cedula,6,0)))),\" \")","v":" "},{"$f":"IFERROR(IF($D34=0,\" \",IF(TEMA=\"NOMBRE\",VLOOKUP($D34,Datos[#All],8,0),IF(TEMA=\"IDENTIFICACIÓN\",VLOOKUP($D34,Busqueda_Cedula,7,0)))),\" \")","v":" "},{"$f":"IFERROR(IF($D34=0,\" \",IF(TEMA=\"NOMBRE\",VLOOKUP($D34,Datos[#All],9,0),IF(TEMA=\"IDENTIFICACIÓN\",VLOOKUP($D34,Busqueda_Cedula,8,0)))),\" \")","v":" "},{"$f":"IFERROR(IF($D34=0,\" \",IF(TEMA=\"NOMBRE\",VLOOKUP($D34,Datos[#All],10,0),IF(TEMA=\"IDENTIFICACIÓN\",VLOOKUP($D34,Busqueda_Cedula,9,0)))),\" \")","v":" "},{"$f":"IFERROR(IF($D34=0,\" \",IF(TEMA=\"NOMBRE\",VLOOKUP($D34,Datos[#All],11,0),IF(TEMA=\"IDENTIFICACIÓN\",VLOOKUP($D34,Busqueda_Cedula,10,0)))),\" \")","v":" "}]
[null,null,null," ",null,{"$f":"IFERROR(IF($D35=0,\" \",IF(TEMA=\"NOMBRE\",VLOOKUP($D35,Datos[#All],4,0),IF(TEMA=\"IDENTIFICACIÓN\",VLOOKUP($D35,Busqueda_Cedula,3,0)))),\" \")","v":" "},{"$f":"IFERROR(IF($D35=0,\" \",IF(TEMA=\"NOMBRE\",VLOOKUP($D35,Datos[#All],5,0),IF(TEMA=\"IDENTIFICACIÓN\",VLOOKUP($D35,Busqueda_Cedula,4,0)))),\" \")","v":" "},{"$f":"IFERROR(IF($D35=0,\" \",IF(TEMA=\"NOMBRE\",VLOOKUP($D35,Datos[#All],6,0),IF(TEMA=\"IDENTIFICACIÓN\",VLOOKUP($D35,Busqueda_Cedula,5,0)))),\" \")","v":" "},{"$f":"IFERROR(IF($D35=0,\" \",IF(TEMA=\"NOMBRE\",VLOOKUP($D35,Datos[#All],7,0),IF(TEMA=\"IDENTIFICACIÓN\",VLOOKUP($D35,Busqueda_Cedula,6,0)))),\" \")","v":" "},{"$f":"IFERROR(IF($D35=0,\" \",IF(TEMA=\"NOMBRE\",VLOOKUP($D35,Datos[#All],8,0),IF(TEMA=\"IDENTIFICACIÓN\",VLOOKUP($D35,Busqueda_Cedula,7,0)))),\" \")","v":" "},{"$f":"IFERROR(IF($D35=0,\" \",IF(TEMA=\"NOMBRE\",VLOOKUP($D35,Datos[#All],9,0),IF(TEMA=\"IDENTIFICACIÓN\",VLOOKUP($D35,Busqueda_Cedula,8,0)))),\" \")","v":" "},{"$f":"IFERROR(IF($D35=0,\" \",IF(TEMA=\"NOMBRE\",VLOOKUP($D35,Datos[#All],10,0),IF(TEMA=\"IDENTIFICACIÓN\",VLOOKUP($D35,Busqueda_Cedula,9,0)))),\" \")","v":" "},{"$f":"IFERROR(IF($D35=0,\" \",IF(TEMA=\"NOMBRE\",VLOOKUP($D35,Datos[#All],11,0),IF(TEMA=\"IDENTIFICACIÓN\",VLOOKUP($D35,Busqueda_Cedula,10,0)))),\" \")","v":" "}]
[null,null,null," ",null,{"$f":"IFERROR(IF($D36=0,\" \",IF(TEMA=\"NOMBRE\",VLOOKUP($D36,Datos[#All],4,0),IF(TEMA=\"IDENTIFICACIÓN\",VLOOKUP($D36,Busqueda_Cedula,3,0)))),\" \")","v":" "},{"$f":"IFERROR(IF($D36=0,\" \",IF(TEMA=\"NOMBRE\",VLOOKUP($D36,Datos[#All],5,0),IF(TEMA=\"IDENTIFICACIÓN\",VLOOKUP($D36,Busqueda_Cedula,4,0)))),\" \")","v":" "},{"$f":"IFERROR(IF($D36=0,\" \",IF(TEMA=\"NOMBRE\",VLOOKUP($D36,Datos[#All],6,0),IF(TEMA=\"IDENTIFICACIÓN\",VLOOKUP($D36,Busqueda_Cedula,5,0)))),\" \")","v":" "},{"$f":"IFERROR(IF($D36=0,\" \",IF(TEMA=\"NOMBRE\",VLOOKUP($D36,Datos[#All],7,0),IF(TEMA=\"IDENTIFICACIÓN\",VLOOKUP($D36,Busqueda_Cedula,6,0)))),\" \")","v":" "},{"$f":"IFERROR(IF($D36=0,\" \",IF(TEMA=\"NOMBRE\",VLOOKUP($D36,Datos[#All],8,0),IF(TEMA=\"IDENTIFICACIÓN\",VLOOKUP($D36,Busqueda_Cedula,7,0)))),\" \")","v":" "},{"$f":"IFERROR(IF($D36=0,\" \",IF(TEMA=\"NOMBRE\",VLOOKUP($D36,Datos[#All],9,0),IF(TEMA=\"IDENTIFICACIÓN\",VLOOKUP($D36,Busqueda_Cedula,8,0)))),\" \")","v":" "},{"$f":"IFERROR(IF($D36=0,\" \",IF(TEMA=\"NOMBRE\",VLOOKUP($D36,Datos[#All],10,0),IF(TEMA=\"IDENTIFICACIÓN\",VLOOKUP($D36,Busqueda_Cedula,9,0)))),\" \")","v":" "},{"$f":"IFERROR(IF($D36=0,\" \",IF(TEMA=\"NOMBRE\",VLOOKUP($D36,Datos[#All],11,0),IF(TEMA=\"IDENTIFICACIÓN\",VLOOKUP($D36,Busqueda_Cedula,10,0)))),\" \")","v":" "}]
[null,null,null," ",null,{"$f":"IFERROR(IF($D37=0,\" \",IF(TEMA=\"NOMBRE\",VLOOKUP($D37,Datos[#All],4,0),IF(TEMA=\"IDENTIFICACIÓN\",VLOOKUP($D37,Busqueda_Cedula,3,0)))),\" \")","v":" "},{"$f":"IFERROR(IF($D37=0,\" \",IF(TEMA=\"NOMBRE\",VLOOKUP($D37,Datos[#All],5,0),IF(TEMA=\"IDENTIFICACIÓN\",VLOOKUP($D37,Busqueda_Cedula,4,0)))),\" \")","v":" "},{"$f":"IFERROR(IF($D37=0,\" \",IF(TEMA=\"NOMBRE\",VLOOKUP($D37,Datos[#All],6,0),IF(TEMA=\"IDENTIFICACIÓN\",VLOOKUP($D37,Busqueda_Cedula,5,0)))),\" \")","v":" "},{"$f":"IFERROR(IF($D37=0,\" \",IF(TEMA=\"NOMBRE\",VLOOKUP($D37,Datos[#All],7,0),IF(TEMA=\"IDENTIFICACIÓN\",VLOOKUP($D37,Busqueda_Cedula,6,0)))),\" \")","v":" "},{"$f":"IFERROR(IF($D37=0,\" \",IF(TEMA=\"NOMBRE\",VLOOKUP($D37,Datos[#All],8,0),IF(TEMA=\"IDENTIFICACIÓN\",VLOOKUP($D37,Busqueda_Cedula,7,0)))),\" \")","v":" "},{"$f":"IFERROR(IF($D37=0,\" \",IF(TEMA=\"NOMBRE\",VLOOKUP($D37,Datos[#All],9,0),IF(TEMA=\"IDENTIFICACIÓN\",VLOOKUP($D37,Busqueda_Cedula,8,0)))),\" \")","v":" "},{"$f":"IFERROR(IF($D37=0,\" \",IF(TEMA=\"NOMBRE\",VLOOKUP($D37,Datos[#All],10,0),IF(TEMA=\"IDENTIFICACIÓN\",VLOOKUP($D37,Busqueda_Cedula,9,0)))),\" \")","v":" "},{"$f":"IFERROR(IF($D37=0,\" \",IF(TEMA=\"NOMBRE\",VLOOKUP($D37,Datos[#All],11,0),IF(TEMA=\"IDENTIFICACIÓN\",VLOOKUP($D37,Busqueda_Cedula,10,0)))),\" \")","v":" "}]
[null,null,null," ",null,{"$f":"IFERROR(IF($D38=0,\" \",IF(TEMA=\"NOMBRE\",VLOOKUP($D38,Datos[#All],4,0),IF(TEMA=\"IDENTIFICACIÓN\",VLOOKUP($D38,Busqueda_Cedula,3,0)))),\" \")","v":" "},{"$f":"IFERROR(IF($D38=0,\" \",IF(TEMA=\"NOMBRE\",VLOOKUP($D38,Datos[#All],5,0),IF(TEMA=\"IDENTIFICACIÓN\",VLOOKUP($D38,Busqueda_Cedula,4,0)))),\" \")","v":" "},{"$f":"IFERROR(IF($D38=0,\" \",IF(TEMA=\"NOMBRE\",VLOOKUP($D38,Datos[#All],6,0),IF(TEMA=\"IDENTIFICACIÓN\",VLOOKUP($D38,Busqueda_Cedula,5,0)))),\" \")","v":" "},{"$f":"IFERROR(IF($D38=0,\" \",IF(TEMA=\"NOMBRE\",VLOOKUP($D38,Datos[#All],7,0),IF(TEMA=\"IDENTIFICACIÓN\",VLOOKUP($D38,Busqueda_Cedula,6,0)))),\" \")","v":" "},{"$f":"IFERROR(IF($D38=0,\" \",IF(TEMA=\"NOMBRE\",VLOOKUP($D38,Datos[#All],8,0),IF(TEMA=\"IDENTIFICACIÓN\",VLOOKUP($D38,Busqueda_Cedula,7,0)))),\" \")","v":" "},{"$f":"IFERROR(IF($D38=0,\" \",IF(TEMA=\"NOMBRE\",VLOOKUP($D38,Datos[#All],9,0),IF(TEMA=\"IDENTIFICACIÓN\",VLOOKUP($D38,Busqueda_Cedula,8,0)))),\" \")","v":" "},{"$f":"IFERROR(IF($D38=0,\" \",IF(TEMA=\"NOMBRE\",VLOOKUP($D38,Datos[#All],10,0),IF(TEMA=\"IDENTIFICACIÓN\",VLOOKUP($D38,Busqueda_Cedula,9,0)))),\" \")","v":" "},{"$f":"IFERROR(IF($D38=0,\" \",IF(TEMA=\"NOMBRE\",VLOOKUP($D38,Datos[#All],11,0),IF(TEMA=\"IDENTIFICACIÓN\",VLOOKUP($D38,Busqueda_Cedula,10,0)))),\" \")","v":" "}]
[null,null,null," ",null,{"$f":"IFERROR(IF($D39=0,\" \",IF(TEMA=\"NOMBRE\",VLOOKUP($D39,Datos[#All],4,0),IF(TEMA=\"IDENTIFICACIÓN\",VLOOKUP($D39,Busqueda_Cedula,3,0)))),\" \")","v":" "},{"$f":"IFERROR(IF($D39=0,\" \",IF(TEMA=\"NOMBRE\",VLOOKUP($D39,Datos[#All],5,0),IF(TEMA=\"IDENTIFICACIÓN\",VLOOKUP($D39,Busqueda_Cedula,4,0)))),\" \")","v":" "},{"$f":"IFERROR(IF($D39=0,\" \",IF(TEMA=\"NOMBRE\",VLOOKUP($D39,Datos[#All],6,0),IF(TEMA=\"IDENTIFICACIÓN\",VLOOKUP($D39,Busqueda_Cedula,5,0)))),\" \")","v":" "},{"$f":"IFERROR(IF($D39=0,\" \",IF(TEMA=\"NOMBRE\",VLOOKUP($D39,Datos[#All],7,0),IF(TEMA=\"IDENTIFICACIÓN\",VLOOKUP($D39,Busqueda_Cedula,6,0)))),\" \")","v":" "},{"$f":"IFERROR(IF($D39=0,\" \",IF(TEMA=\"NOMBRE\",VLOOKUP($D39,Datos[#All],8,0),IF(TEMA=\"IDENTIFICACIÓN\",VLOOKUP($D39,Busqueda_Cedula,7,0)))),\" \")","v":" "},{"$f":"IFERROR(IF($D39=0,\" \",IF(TEMA=\"NOMBRE\",VLOOKUP($D39,Datos[#All],9,0),IF(TEMA=\"IDENTIFICACIÓN\",VLOOKUP($D39,Busqueda_Cedula,8,0)))),\" \")","v":" "},{"$f":"IFERROR(IF($D39=0,\" \",IF(TEMA=\"NOMBRE\",VLOOKUP($D39,Datos[#All],10,0),IF(TEMA=\"IDENTIFICACIÓN\",VLOOKUP($D39,Busqueda_Cedula,9,0)))),\" \")","v":" "},{"$f":"IFERROR(IF($D39=0,\" \",IF(TEMA=\"NOMBRE\",VLOOKUP($D39,Datos[#All],11,0),IF(TEMA=\"IDENTIFICACIÓN\",VLOOKUP($D39,Busqueda_Cedula,10,0)))),\" \")","v":" "}]
[null,null,null," ",null,{"$f":"IFERROR(IF($D40=0,\" \",IF(TEMA=\"NOMBRE\",VLOOKUP($D40,Datos[#All],4,0),IF(TEMA=\"IDENTIFICACIÓN\",VLOOKUP($D40,Busqueda_Cedula,3,0)))),\" \")","v":" "},{"$f":"IFERROR(IF($D40=0,\" \",IF(TEMA=\"NOMBRE\",VLOOKUP($D40,Datos[#All],5,0),IF(TEMA=\"IDENTIFICACIÓN\",VLOOKUP($D40,Busqueda_Cedula,4,0)))),\" \")","v":" "},{"$f":"IFERROR(IF($D40=0,\" \",IF(TEMA=\"NOMBRE\",VLOOKUP($D40,Datos[#All],6,0),IF(TEMA=\"IDENTIFICACIÓN\",VLOOKUP($D40,Busqueda_Cedula,5,0)))),\" \")","v":" "},{"$f":"IFERROR(IF($D40=0,\" \",IF(TEMA=\"NOMBRE\",VLOOKUP($D40,Datos[#All],7,0),IF(TEMA=\"IDENTIFICACIÓN\",VLOOKUP($D40,Busqueda_Cedula,6,0)))),\" \")","v":" "},{"$f":"IFERROR(IF($D40=0,\" \",IF(TEMA=\"NOMBRE\",VLOOKUP($D40,Datos[#All],8,0),IF(TEMA=\"IDENTIFICACIÓN\",VLOOKUP($D40,Busqueda_Cedula,7,0)))),\" \")","v":" "},{"$f":"IFERROR(IF($D40=0,\" \",IF(TEMA=\"NOMBRE\",VLOOKUP($D40,Datos[#All],9,0),IF(TEMA=\"IDENTIFICACIÓN\",VLOOKUP($D40,Busqueda_Cedula,8,0)))),\" \")","v":" "},{"$f":"IFERROR(IF($D40=0,\" \",IF(TEMA=\"NOMBRE\",VLOOKUP($D40,Datos[#All],10,0),IF(TEMA=\"IDENTIFICACIÓN\",VLOOKUP($D40,Busqueda_Cedula,9,0)))),\" \")","v":" "},{"$f":"IFERROR(IF($D40=0,\" \",IF(TEMA=\"NOMBRE\",VLOOKUP($D40,Datos[#All],11,0),IF(TEMA=\"IDENTIFICACIÓN\",VLOOKUP($D40,Busqueda_Cedula,10,0)))),\" \")","v":" "}]
[null,null,null," ",null,{"$f":"IFERROR(IF($D41=0,\" \",IF(TEMA=\"NOMBRE\",VLOOKUP($D41,Datos[#All],4,0),IF(TEMA=\"IDENTIFICACIÓN\",VLOOKUP($D41,Busqueda_Cedula,3,0)))),\" \")","v":" "},{"$f":"IFERROR(IF($D41=0,\" \",IF(TEMA=\"NOMBRE\",VLOOKUP($D41,Datos[#All],5,0),IF(TEMA=\"IDENTIFICACIÓN\",VLOOKUP($D41,Busqueda_Cedula,4,0)))),\" \")","v":" "},{"$f":"IFERROR(IF($D41=0,\" \",IF(TEMA=\"NOMBRE\",VLOOKUP($D41,Datos[#All],6,0),IF(TEMA=\"IDENTIFICACIÓN\",VLOOKUP($D41,Busqueda_Cedula,5,0)))),\" \")","v":" "},{"$f":"IFERROR(IF($D41=0,\" \",IF(TEMA=\"NOMBRE\",VLOOKUP($D41,Datos[#All],7,0),IF(TEMA=\"IDENTIFICACIÓN\",VLOOKUP($D41,Busqueda_Cedula,6,0)))),\" \")","v":" "},{"$f":"IFERROR(IF($D41=0,\" \",IF(TEMA=\"NOMBRE\",VLOOKUP($D41,Datos[#All],8,0),IF(TEMA=\"IDENTIFICACIÓN\",VLOOKUP($D41,Busqueda_Cedula,7,0)))),\" \")","v":" "},{"$f":"IFERROR(IF($D41=0,\" \",IF(TEMA=\"NOMBRE\",VLOOKUP($D41,Datos[#All],9,0),IF(TEMA=\"IDENTIFICACIÓN\",VLOOKUP($D41,Busqueda_Cedula,8,0)))),\" \")","v":" "},{"$f":"IFERROR(IF($D41=0,\" \",IF(TEMA=\"NOMBRE\",VLOOKUP($D41,Datos[#All],10,0),IF(TEMA=\"IDENTIFICACIÓN\",VLOOKUP($D41,Busqueda_Cedula,9,0)))),\" \")","v":" "},{"$f":"IFERROR(IF($D41=0,\" \",IF(TEMA=\"NOMBRE\",VLOOKUP($D41,Datos[#All],11,0),IF(TEMA=\"IDENTIFICACIÓN\",VLOOKUP($D41,Busqueda_Cedula,10,0)))),\" \")","v":" "}]
[null,null,null," ",null,{"$f":"IFERROR(IF($D42=0,\" \",IF(TEMA=\"NOMBRE\",VLOOKUP($D42,Datos[#All],4,0),IF(TEMA=\"IDENTIFICACIÓN\",VLOOKUP($D42,Busqueda_Cedula,3,0)))),\" \")","v":" "},{"$f":"IFERROR(IF($D42=0,\" \",IF(TEMA=\"NOMBRE\",VLOOKUP($D42,Datos[#All],5,0),IF(TEMA=\"IDENTIFICACIÓN\",VLOOKUP($D42,Busqueda_Cedula,4,0)))),\" \")","v":" "},{"$f":"IFERROR(IF($D42=0,\" \",IF(TEMA=\"NOMBRE\",VLOOKUP($D42,Datos[#All],6,0),IF(TEMA=\"IDENTIFICACIÓN\",VLOOKUP($D42,Busqueda_Cedula,5,0)))),\" \")","v":" "},{"$f":"IFERROR(IF($D42=0,\" \",IF(TEMA=\"NOMBRE\",VLOOKUP($D42,Datos[#All],7,0),IF(TEMA=\"IDENTIFICACIÓN\",VLOOKUP($D42,Busqueda_Cedula,6,0)))),\" \")","v":" "},{"$f":"IFERROR(IF($D42=0,\" \",IF(TEMA=\"NOMBRE\",VLOOKUP($D42,Datos[#All],8,0),IF(TEMA=\"IDENTIFICACIÓN\",VLOOKUP($D42,Busqueda_Cedula,7,0)))),\" \")","v":" "},{"$f":"IFERROR(IF($D42=0,\" \",IF(TEMA=\"NOMBRE\",VLOOKUP($D42,Datos[#All],9,0),IF(TEMA=\"IDENTIFICACIÓN\",VLOOKUP($D42,Busqueda_Cedula,8,0)))),\" \")","v":" "},{"$f":"IFERROR(IF($D42=0,\" \",IF(TEMA=\"NOMBRE\",VLOOKUP($D42,Datos[#All],10,0),IF(TEMA=\"IDENTIFICACIÓN\",VLOOKUP($D42,Busqueda_Cedula,9,0)))),\" \")","v":" "},{"$f":"IFERROR(IF($D42=0,\" \",IF(TEMA=\"NOMBRE\",VLOOKUP($D42,Datos[#All],11,0),IF(TEMA=\"IDENTIFICACIÓN\",VLOOKUP($D42,Busqueda_Cedula,10,0)))),\" \")","v":" "}]
[null,null,null," ",null,{"$f":"IFERROR(IF($D43=0,\" \",IF(TEMA=\"NOMBRE\",VLOOKUP($D43,Datos[#All],4,0),IF(TEMA=\"IDENTIFICACIÓN\",VLOOKUP($D43,Busqueda_Cedula,3,0)))),\" \")","v":" "},{"$f":"IFERROR(IF($D43=0,\" \",IF(TEMA=\"NOMBRE\",VLOOKUP($D43,Datos[#All],5,0),IF(TEMA=\"IDENTIFICACIÓN\",VLOOKUP($D43,Busqueda_Cedula,4,0)))),\" \")","v":" "},{"$f":"IFERROR(IF($D43=0,\" \",IF(TEMA=\"NOMBRE\",VLOOKUP($D43,Datos[#All],6,0),IF(TEMA=\"IDENTIFICACIÓN\",VLOOKUP($D43,Busqueda_Cedula,5,0)))),\" \")","v":" "},{"$f":"IFERROR(IF($D43=0,\" \",IF(TEMA=\"NOMBRE\",VLOOKUP($D43,Datos[#All],7,0),IF(TEMA=\"IDENTIFICACIÓN\",VLOOKUP($D43,Busqueda_Cedula,6,0)))),\" \")","v":" "},{"$f":"IFERROR(IF($D43=0,\" \",IF(TEMA=\"NOMBRE\",VLOOKUP($D43,Datos[#All],8,0),IF(TEMA=\"IDENTIFICACIÓN\",VLOOKUP($D43,Busqueda_Cedula,7,0)))),\" \")","v":" "},{"$f":"IFERROR(IF($D43=0,\" \",IF(TEMA=\"NOMBRE\",VLOOKUP($D43,Datos[#All],9,0),IF(TEMA=\"IDENTIFICACIÓN\",VLOOKUP($D43,Busqueda_Cedula,8,0)))),\" \")","v":" "},{"$f":"IFERROR(IF($D43=0,\" \",IF(TEMA=\"NOMBRE\",VLOOKUP($D43,Datos[#All],10,0),IF(TEMA=\"IDENTIFICACIÓN\",VLOOKUP($D43,Busqueda_Cedula,9,0)))),\" \")","v":" "},{"$f":"IFERROR(IF($D43=0,\" \",IF(TEMA=\"NOMBRE\",VLOOKUP($D43,Datos[#All],11,0),IF(TEMA=\"IDENTIFICACIÓN\",VLOOKUP($D43,Busqueda_Cedula,10,0)))),\" \")","v":" "}]
[null,null,null," ",null,{"$f":"IFERROR(IF($D44=0,\" \",IF(TEMA=\"NOMBRE\",VLOOKUP($D44,Datos[#All],4,0),IF(TEMA=\"IDENTIFICACIÓN\",VLOOKUP($D44,Busqueda_Cedula,3,0)))),\" \")","v":" "},{"$f":"IFERROR(IF($D44=0,\" \",IF(TEMA=\"NOMBRE\",VLOOKUP($D44,Datos[#All],5,0),IF(TEMA=\"IDENTIFICACIÓN\",VLOOKUP($D44,Busqueda_Cedula,4,0)))),\" \")","v":" "},{"$f":"IFERROR(IF($D44=0,\" \",IF(TEMA=\"NOMBRE\",VLOOKUP($D44,Datos[#All],6,0),IF(TEMA=\"IDENTIFICACIÓN\",VLOOKUP($D44,Busqueda_Cedula,5,0)))),\" \")","v":" "},{"$f":"IFERROR(IF($D44=0,\" \",IF(TEMA=\"NOMBRE\",VLOOKUP($D44,Datos[#All],7,0),IF(TEMA=\"IDENTIFICACIÓN\",VLOOKUP($D44,Busqueda_Cedula,6,0)))),\" \")","v":" "},{"$f":"IFERROR(IF($D44=0,\" \",IF(TEMA=\"NOMBRE\",VLOOKUP($D44,Datos[#All],8,0),IF(TEMA=\"IDENTIFICACIÓN\",VLOOKUP($D44,Busqueda_Cedula,7,0)))),\" \")","v":" "},{"$f":"IFERROR(IF($D44=0,\" \",IF(TEMA=\"NOMBRE\",VLOOKUP($D44,Datos[#All],9,0),IF(TEMA=\"IDENTIFICACIÓN\",VLOOKUP($D44,Busqueda_Cedula,8,0)))),\" \")","v":" "},{"$f":"IFERROR(IF($D44=0,\" \",IF(TEMA=\"NOMBRE\",VLOOKUP($D44,Datos[#All],10,0),IF(TEMA=\"IDENTIFICACIÓN\",VLOOKUP($D44,Busqueda_Cedula,9,0)))),\" \")","v":" "},{"$f":"IFERROR(IF($D44=0,\" \",IF(TEMA=\"NOMBRE\",VLOOKUP($D44,Datos[#All],11,0),IF(TEMA=\"IDENTIFICACIÓN\",VLOOKUP($D44,Busqueda_Cedula,10,0)))),\" \")","v":" "}]
[null,null,null," ",null,{"$f":"IFERROR(IF($D45=0,\" \",IF(TEMA=\"NOMBRE\",VLOOKUP($D45,Datos[#All],4,0),IF(TEMA=\"IDENTIFICACIÓN\",VLOOKUP($D45,Busqueda_Cedula,3,0)))),\" \")","v":" "},{"$f":"IFERROR(IF($D45=0,\" \",IF(TEMA=\"NOMBRE\",VLOOKUP($D45,Datos[#All],5,0),IF(TEMA=\"IDENTIFICACIÓN\",VLOOKUP($D45,Busqueda_Cedula,4,0)))),\" \")","v":" "},{"$f":"IFERROR(IF($D45=0,\" \",IF(TEMA=\"NOMBRE\",VLOOKUP($D45,Datos[#All],6,0),IF(TEMA=\"IDENTIFICACIÓN\",VLOOKUP($D45,Busqueda_Cedula,5,0)))),\" \")","v":" "},{"$f":"IFERROR(IF($D45=0,\" \",IF(TEMA=\"NOMBRE\",VLOOKUP($D45,Datos[#All],7,0),IF(TEMA=\"IDENTIFICACIÓN\",VLOOKUP($D45,Busqueda_Cedula,6,0)))),\" \")","v":" "},{"$f":"IFERROR(IF($D45=0,\" \",IF(TEMA=\"NOMBRE\",VLOOKUP($D45,Datos[#All],8,0),IF(TEMA=\"IDENTIFICACIÓN\",VLOOKUP($D45,Busqueda_Cedula,7,0)))),\" \")","v":" "},{"$f":"IFERROR(IF($D45=0,\" \",IF(TEMA=\"NOMBRE\",VLOOKUP($D45,Datos[#All],9,0),IF(TEMA=\"IDENTIFICACIÓN\",VLOOKUP($D45,Busqueda_Cedula,8,0)))),\" \")","v":" "},{"$f":"IFERROR(IF($D45=0,\" \",IF(TEMA=\"NOMBRE\",VLOOKUP($D45,Datos[#All],10,0),IF(TEMA=\"IDENTIFICACIÓN\",VLOOKUP($D45,Busqueda_Cedula,9,0)))),\" \")","v":" "},{"$f":"IFERROR(IF($D45=0,\" \",IF(TEMA=\"NOMBRE\",VLOOKUP($D45,Datos[#All],11,0),IF(TEMA=\"IDENTIFICACIÓN\",VLOOKUP($D45,Busqueda_Cedula,10,0)))),\" \")","v":" "}]
[null,null,null," ",null,{"$f":"IFERROR(IF($D46=0,\" \",IF(TEMA=\"NOMBRE\",VLOOKUP($D46,Datos[#All],4,0),IF(TEMA=\"IDENTIFICACIÓN\",VLOOKUP($D46,Busqueda_Cedula,3,0)))),\" \")","v":" "},{"$f":"IFERROR(IF($D46=0,\" \",IF(TEMA=\"NOMBRE\",VLOOKUP($D46,Datos[#All],5,0),IF(TEMA=\"IDENTIFICACIÓN\",VLOOKUP($D46,Busqueda_Cedula,4,0)))),\" \")","v":" "},{"$f":"IFERROR(IF($D46=0,\" \",IF(TEMA=\"NOMBRE\",VLOOKUP($D46,Datos[#All],6,0),IF(TEMA=\"IDENTIFICACIÓN\",VLOOKUP($D46,Busqueda_Cedula,5,0)))),\" \")","v":" "},{"$f":"IFERROR(IF($D46=0,\" \",IF(TEMA=\"NOMBRE\",VLOOKUP($D46,Datos[#All],7,0),IF(TEMA=\"IDENTIFICACIÓN\",VLOOKUP($D46,Busqueda_Cedula,6,0)))),\" \")","v":" "},{"$f":"IFERROR(IF($D46=0,\" \",IF(TEMA=\"NOMBRE\",VLOOKUP($D46,Datos[#All],8,0),IF(TEMA=\"IDENTIFICACIÓN\",VLOOKUP($D46,Busqueda_Cedula,7,0)))),\" \")","v":" "},{"$f":"IFERROR(IF($D46=0,\" \",IF(TEMA=\"NOMBRE\",VLOOKUP($D46,Datos[#All],9,0),IF(TEMA=\"IDENTIFICACIÓN\",VLOOKUP($D46,Busqueda_Cedula,8,0)))),\" \")","v":" "},{"$f":"IFERROR(IF($D46=0,\" \",IF(TEMA=\"NOMBRE\",VLOOKUP($D46,Datos[#All],10,0),IF(TEMA=\"IDENTIFICACIÓN\",VLOOKUP($D46,Busqueda_Cedula,9,0)))),\" \")","v":" "},{"$f":"IFERROR(IF($D46=0,\" \",IF(TEMA=\"NOMBRE\",VLOOKUP($D46,Datos[#All],11,0),IF(TEMA=\"IDENTIFICACIÓN\",VLOOKUP($D46,Busqueda_Cedula,10,0)))),\" \")","v":" "}]
[null,null,null," ",null,{"$f":"IFERROR(IF($D47=0,\" \",IF(TEMA=\"NOMBRE\",VLOOKUP($D47,Datos[#All],4,0),IF(TEMA=\"IDENTIFICACIÓN\",VLOOKUP($D47,Busqueda_Cedula,3,0)))),\" \")","v":" "},{"$f":"IFERROR(IF($D47=0,\" \",IF(TEMA=\"NOMBRE\",VLOOKUP($D47,Datos[#All],5,0),IF(TEMA=\"IDENTIFICACIÓN\",VLOOKUP($D47,Busqueda_Cedula,4,0)))),\" \")","v":" "},{"$f":"IFERROR(IF($D47=0,\" \",IF(TEMA=\"NOMBRE\",VLOOKUP($D47,Datos[#All],6,0),IF(TEMA=\"IDENTIFICACIÓN\",VLOOKUP($D47,Busqueda_Cedula,5,0)))),\" \")","v":" "},{"$f":"IFERROR(IF($D47=0,\" \",IF(TEMA=\"NOMBRE\",VLOOKUP($D47,Datos[#All],7,0),IF(TEMA=\"IDENTIFICACIÓN\",VLOOKUP($D47,Busqueda_Cedula,6,0)))),\" \")","v":" "},{"$f":"IFERROR(IF($D47=0,\" \",IF(TEMA=\"NOMBRE\",VLOOKUP($D47,Datos[#All],8,0),IF(TEMA=\"IDENTIFICACIÓN\",VLOOKUP($D47,Busqueda_Cedula,7,0)))),\" \")","v":" "},{"$f":"IFERROR(IF($D47=0,\" \",IF(TEMA=\"NOMBRE\",VLOOKUP($D47,Datos[#All],9,0),IF(TEMA=\"IDENTIFICACIÓN\",VLOOKUP($D47,Busqueda_Cedula,8,0)))),\" \")","v":" "},{"$f":"IFERROR(IF($D47=0,\" \",IF(TEMA=\"NOMBRE\",VLOOKUP($D47,Datos[#All],10,0),IF(TEMA=\"IDENTIFICACIÓN\",VLOOKUP($D47,Busqueda_Cedula,9,0)))),\" \")","v":" "},{"$f":"IFERROR(IF($D47=0,\" \",IF(TEMA=\"NOMBRE\",VLOOKUP($D47,Datos[#All],11,0),IF(TEMA=\"IDENTIFICACIÓN\",VLOOKUP($D47,Busqueda_Cedula,10,0)))),\" \")","v":" "}]
[null,null,null," ",null,{"$f":"IFERROR(IF($D48=0,\" \",IF(TEMA=\"NOMBRE\",VLOOKUP($D48,Datos[#All],4,0),IF(TEMA=\"IDENTIFICACIÓN\",VLOOKUP($D48,Busqueda_Cedula,3,0)))),\" \")","v":" "},{"$f":"IFERROR(IF($D48=0,\" \",IF(TEMA=\"NOMBRE\",VLOOKUP($D48,Datos[#All],5,0),IF(TEMA=\"IDENTIFICACIÓN\",VLOOKUP($D48,Busqueda_Cedula,4,0)))),\" \")","v":" "},{"$f":"IFERROR(IF($D48=0,\" \",IF(TEMA=\"NOMBRE\",VLOOKUP($D48,Datos[#All],6,0),IF(TEMA=\"IDENTIFICACIÓN\",VLOOKUP($D48,Busqueda_Cedula,5,0)))),\" \")","v":" "},{"$f":"IFERROR(IF($D48=0,\" \",IF(TEMA=\"NOMBRE\",VLOOKUP($D48,Datos[#All],7,0),IF(TEMA=\"IDENTIFICACIÓN\",VLOOKUP($D48,Busqueda_Cedula,6,0)))),\" \")","v":" "},{"$f":"IFERROR(IF($D48=0,\" \",IF(TEMA=\"NOMBRE\",VLOOKUP($D48,Datos[#All],8,0),IF(TEMA=\"IDENTIFICACIÓN\",VLOOKUP($D48,Busqueda_Cedula,7,0)))),\" \")","v":" "},{"$f":"IFERROR(IF($D48=0,\" \",IF(TEMA=\"NOMBRE\",VLOOKUP($D48,Datos[#All],9,0),IF(TEMA=\"IDENTIFICACIÓN\",VLOOKUP($D48,Busqueda_Cedula,8,0)))),\" \")","v":" "},{"$f":"IFERROR(IF($D48=0,\" \",IF(TEMA=\"NOMBRE\",VLOOKUP($D48,Datos[#All],10,0),IF(TEMA=\"IDENTIFICACIÓN\",VLOOKUP($D48,Busqueda_Cedula,9,0)))),\" \")","v":" "},{"$f":"IFERROR(IF($D48=0,\" \",IF(TEMA=\"NOMBRE\",VLOOKUP($D48,Datos[#All],11,0),IF(TEMA=\"IDENTIFICACIÓN\",VLOOKUP($D48,Busqueda_Cedula,10,0)))),\" \")","v":" "}]
[null,null,null," ",null,{"$f":"IFERROR(IF($D49=0,\" \",IF(TEMA=\"NOMBRE\",VLOOKUP($D49,Datos[#All],4,0),IF(TEMA=\"IDENTIFICACIÓN\",VLOOKUP($D49,Busqueda_Cedula,3,0)))),\" \")","v":" "},{"$f":"IFERROR(IF($D49=0,\" \",IF(TEMA=\"NOMBRE\",VLOOKUP($D49,Datos[#All],5,0),IF(TEMA=\"IDENTIFICACIÓN\",VLOOKUP($D49,Busqueda_Cedula,4,0)))),\" \")","v":" "},{"$f":"IFERROR(IF($D49=0,\" \",IF(TEMA=\"NOMBRE\",VLOOKUP($D49,Datos[#All],6,0),IF(TEMA=\"IDENTIFICACIÓN\",VLOOKUP($D49,Busqueda_Cedula,5,0)))),\" \")","v":" "},{"$f":"IFERROR(IF($D49=0,\" \",IF(TEMA=\"NOMBRE\",VLOOKUP($D49,Datos[#All],7,0),IF(TEMA=\"IDENTIFICACIÓN\",VLOOKUP($D49,Busqueda_Cedula,6,0)))),\" \")","v":" "},{"$f":"IFERROR(IF($D49=0,\" \",IF(TEMA=\"NOMBRE\",VLOOKUP($D49,Datos[#All],8,0),IF(TEMA=\"IDENTIFICACIÓN\",VLOOKUP($D49,Busqueda_Cedula,7,0)))),\" \")","v":" "},{"$f":"IFERROR(IF($D49=0,\" \",IF(TEMA=\"NOMBRE\",VLOOKUP($D49,Datos[#All],9,0),IF(TEMA=\"IDENTIFICACIÓN\",VLOOKUP($D49,Busqueda_Cedula,8,0)))),\" \")","v":" "},{"$f":"IFERROR(IF($D49=0,\" \",IF(TEMA=\"NOMBRE\",VLOOKUP($D49,Datos[#All],10,0),IF(TEMA=\"IDENTIFICACIÓN\",VLOOKUP($D49,Busqueda_Cedula,9,0)))),\" \")","v":" "},{"$f":"IFERROR(IF($D49=0,\" \",IF(TEMA=\"NOMBRE\",VLOOKUP($D49,Datos[#All],11,0),IF(TEMA=\"IDENTIFICACIÓN\",VLOOKUP($D49,Busqueda_Cedula,10,0)))),\" \")","v":" "}]
[null,null,null," ",null,{"$f":"IFERROR(IF($D50=0,\" \",IF(TEMA=\"NOMBRE\",VLOOKUP($D50,Datos[#All],4,0),IF(TEMA=\"IDENTIFICACIÓN\",VLOOKUP($D50,Busqueda_Cedula,3,0)))),\" \")","v":" "},{"$f":"IFERROR(IF($D50=0,\" \",IF(TEMA=\"NOMBRE\",VLOOKUP($D50,Datos[#All],5,0),IF(TEMA=\"IDENTIFICACIÓN\",VLOOKUP($D50,Busqueda_Cedula,4,0)))),\" \")","v":" "},{"$f":"IFERROR(IF($D50=0,\" \",IF(TEMA=\"NOMBRE\",VLOOKUP($D50,Datos[#All],6,0),IF(TEMA=\"IDENTIFICACIÓN\",VLOOKUP($D50,Busqueda_Cedula,5,0)))),\" \")","v":" "},{"$f":"IFERROR(IF($D50=0,\" \",IF(TEMA=\"NOMBRE\",VLOOKUP($D50,Datos[#All],7,0),IF(TEMA=\"IDENTIFICACIÓN\",VLOOKUP($D50,Busqueda_Cedula,6,0)))),\" \")","v":" "},{"$f":"IFERROR(IF($D50=0,\" \",IF(TEMA=\"NOMBRE\",VLOOKUP($D50,Datos[#All],8,0),IF(TEMA=\"IDENTIFICACIÓN\",VLOOKUP($D50,Busqueda_Cedula,7,0)))),\" \")","v":" "},{"$f":"IFERROR(IF($D50=0,\" \",IF(TEMA=\"NOMBRE\",VLOOKUP($D50,Datos[#All],9,0),IF(TEMA=\"IDENTIFICACIÓN\",VLOOKUP($D50,Busqueda_Cedula,8,0)))),\" \")","v":" "},{"$f":"IFERROR(IF($D50=0,\" \",IF(TEMA=\"NOMBRE\",VLOOKUP($D50,Datos[#All],10,0),IF(TEMA=\"IDENTIFICACIÓN\",VLOOKUP($D50,Busqueda_Cedula,9,0)))),\" \")","v":" "},{"$f":"IFERROR(IF($D50=0,\" \",IF(TEMA=\"NOMBRE\",VLOOKUP($D50,Datos[#All],11,0),IF(TEMA=\"IDENTIFICACIÓN\",VLOOKUP($D50,Busqueda_Cedula,10,0)))),\" \")","v":" "}]
[null,null,null," ",null,{"$f":"IFERROR(IF($D51=0,\" \",IF(TEMA=\"NOMBRE\",VLOOKUP($D51,Datos[#All],4,0),IF(TEMA=\"IDENTIFICACIÓN\",VLOOKUP($D51,Busqueda_Cedula,3,0)))),\" \")","v":" "},{"$f":"IFERROR(IF($D51=0,\" \",IF(TEMA=\"NOMBRE\",VLOOKUP($D51,Datos[#All],5,0),IF(TEMA=\"IDENTIFICACIÓN\",VLOOKUP($D51,Busqueda_Cedula,4,0)))),\" \")","v":" "},{"$f":"IFERROR(IF($D51=0,\" \",IF(TEMA=\"NOMBRE\",VLOOKUP($D51,Datos[#All],6,0),IF(TEMA=\"IDENTIFICACIÓN\",VLOOKUP($D51,Busqueda_Cedula,5,0)))),\" \")","v":" "},{"$f":"IFERROR(IF($D51=0,\" \",IF(TEMA=\"NOMBRE\",VLOOKUP($D51,Datos[#All],7,0),IF(TEMA=\"IDENTIFICACIÓN\",VLOOKUP($D51,Busqueda_Cedula,6,0)))),\" \")","v":" "},{"$f":"IFERROR(IF($D51=0,\" \",IF(TEMA=\"NOMBRE\",VLOOKUP($D51,Datos[#All],8,0),IF(TEMA=\"IDENTIFICACIÓN\",VLOOKUP($D51,Busqueda_Cedula,7,0)))),\" \")","v":" "},{"$f":"IFERROR(IF($D51=0,\" \",IF(TEMA=\"NOMBRE\",VLOOKUP($D51,Datos[#All],9,0),IF(TEMA=\"IDENTIFICACIÓN\",VLOOKUP($D51,Busqueda_Cedula,8,0)))),\" \")","v":" "},{"$f":"IFERROR(IF($D51=0,\" \",IF(TEMA=\"NOMBRE\",VLOOKUP($D51,Datos[#All],10,0),IF(TEMA=\"IDENTIFICACIÓN\",VLOOKUP($D51,Busqueda_Cedula,9,0)))),\" \")","v":" "},{"$f":"IFERROR(IF($D51=0,\" \",IF(TEMA=\"NOMBRE\",VLOOKUP($D51,Datos[#All],11,0),IF(TEMA=\"IDENTIFICACIÓN\",VLOOKUP($D51,Busqueda_Cedula,10,0)))),\" \")","v":" "}]
[null,null,null," ",null,{"$f":"IFERROR(IF($D52=0,\" \",IF(TEMA=\"NOMBRE\",VLOOKUP($D52,Datos[#All],4,0),IF(TEMA=\"IDENTIFICACIÓN\",VLOOKUP($D52,Busqueda_Cedula,3,0)))),\" \")","v":" "},{"$f":"IFERROR(IF($D52=0,\" \",IF(TEMA=\"NOMBRE\",VLOOKUP($D52,Datos[#All],5,0),IF(TEMA=\"IDENTIFICACIÓN\",VLOOKUP($D52,Busqueda_Cedula,4,0)))),\" \")","v":" "},{"$f":"IFERROR(IF($D52=0,\" \",IF(TEMA=\"NOMBRE\",VLOOKUP($D52,Datos[#All],6,0),IF(TEMA=\"IDENTIFICACIÓN\",VLOOKUP($D52,Busqueda_Cedula,5,0)))),\" \")","v":" "},{"$f":"IFERROR(IF($D52=0,\" \",IF(TEMA=\"NOMBRE\",VLOOKUP($D52,Datos[#All],7,0),IF(TEMA=\"IDENTIFICACIÓN\",VLOOKUP($D52,Busqueda_Cedula,6,0)))),\" \")","v":" "},{"$f":"IFERROR(IF($D52=0,\" \",IF(TEMA=\"NOMBRE\",VLOOKUP($D52,Datos[#All],8,0),IF(TEMA=\"IDENTIFICACIÓN\",VLOOKUP($D52,Busqueda_Cedula,7,0)))),\" \")","v":" "},{"$f":"IFERROR(IF($D52=0,\" \",IF(TEMA=\"NOMBRE\",VLOOKUP($D52,Datos[#All],9,0),IF(TEMA=\"IDENTIFICACIÓN\",VLOOKUP($D52,Busqueda_Cedula,8,0)))),\" \")","v":" "},{"$f":"IFERROR(IF($D52=0,\" \",IF(TEMA=\"NOMBRE\",VLOOKUP($D52,Datos[#All],10,0),IF(TEMA=\"IDENTIFICACIÓN\",VLOOKUP($D52,Busqueda_Cedula,9,0)))),\" \")","v":" "},{"$f":"IFERROR(IF($D52=0,\" \",IF(TEMA=\"NOMBRE\",VLOOKUP($D52,Datos[#All],11,0),IF(TEMA=\"IDENTIFICACIÓN\",VLOOKUP($D52,Busqueda_Cedula,10,0)))),\" \")","v":" "}]
[null,null,null," ",null,{"$f":"IFERROR(IF($D53=0,\" \",IF(TEMA=\"NOMBRE\",VLOOKUP($D53,Datos[#All],4,0),IF(TEMA=\"IDENTIFICACIÓN\",VLOOKUP($D53,Busqueda_Cedula,3,0)))),\" \")","v":" "},{"$f":"IFERROR(IF($D53=0,\" \",IF(TEMA=\"NOMBRE\",VLOOKUP($D53,Datos[#All],5,0),IF(TEMA=\"IDENTIFICACIÓN\",VLOOKUP($D53,Busqueda_Cedula,4,0)))),\" \")","v":" "},{"$f":"IFERROR(IF($D53=0,\" \",IF(TEMA=\"NOMBRE\",VLOOKUP($D53,Datos[#All],6,0),IF(TEMA=\"IDENTIFICACIÓN\",VLOOKUP($D53,Busqueda_Cedula,5,0)))),\" \")","v":" "},{"$f":"IFERROR(IF($D53=0,\" \",IF(TEMA=\"NOMBRE\",VLOOKUP($D53,Datos[#All],7,0),IF(TEMA=\"IDENTIFICACIÓN\",VLOOKUP($D53,Busqueda_Cedula,6,0)))),\" \")","v":" "},{"$f":"IFERROR(IF($D53=0,\" \",IF(TEMA=\"NOMBRE\",VLOOKUP($D53,Datos[#All],8,0),IF(TEMA=\"IDENTIFICACIÓN\",VLOOKUP($D53,Busqueda_Cedula,7,0)))),\" \")","v":" "},{"$f":"IFERROR(IF($D53=0,\" \",IF(TEMA=\"NOMBRE\",VLOOKUP($D53,Datos[#All],9,0),IF(TEMA=\"IDENTIFICACIÓN\",VLOOKUP($D53,Busqueda_Cedula,8,0)))),\" \")","v":" "},{"$f":"IFERROR(IF($D53=0,\" \",IF(TEMA=\"NOMBRE\",VLOOKUP($D53,Datos[#All],10,0),IF(TEMA=\"IDENTIFICACIÓN\",VLOOKUP($D53,Busqueda_Cedula,9,0)))),\" \")","v":" "},{"$f":"IFERROR(IF($D53=0,\" \",IF(TEMA=\"NOMBRE\",VLOOKUP($D53,Datos[#All],11,0),IF(TEMA=\"IDENTIFICACIÓN\",VLOOKUP($D53,Busqueda_Cedula,10,0)))),\" \")","v":" "}]
[null,null,null," ",null,{"$f":"IFERROR(IF($D54=0,\" \",IF(TEMA=\"NOMBRE\",VLOOKUP($D54,Datos[#All],4,0),IF(TEMA=\"IDENTIFICACIÓN\",VLOOKUP($D54,Busqueda_Cedula,3,0)))),\" \")","v":" "},{"$f":"IFERROR(IF($D54=0,\" \",IF(TEMA=\"NOMBRE\",VLOOKUP($D54,Datos[#All],5,0),IF(TEMA=\"IDENTIFICACIÓN\",VLOOKUP($D54,Busqueda_Cedula,4,0)))),\" \")","v":" "},{"$f":"IFERROR(IF($D54=0,\" \",IF(TEMA=\"NOMBRE\",VLOOKUP($D54,Datos[#All],6,0),IF(TEMA=\"IDENTIFICACIÓN\",VLOOKUP($D54,Busqueda_Cedula,5,0)))),\" \")","v":" "},{"$f":"IFERROR(IF($D54=0,\" \",IF(TEMA=\"NOMBRE\",VLOOKUP($D54,Datos[#All],7,0),IF(TEMA=\"IDENTIFICACIÓN\",VLOOKUP($D54,Busqueda_Cedula,6,0)))),\" \")","v":" "},{"$f":"IFERROR(IF($D54=0,\" \",IF(TEMA=\"NOMBRE\",VLOOKUP($D54,Datos[#All],8,0),IF(TEMA=\"IDENTIFICACIÓN\",VLOOKUP($D54,Busqueda_Cedula,7,0)))),\" \")","v":" "},{"$f":"IFERROR(IF($D54=0,\" \",IF(TEMA=\"NOMBRE\",VLOOKUP($D54,Datos[#All],9,0),IF(TEMA=\"IDENTIFICACIÓN\",VLOOKUP($D54,Busqueda_Cedula,8,0)))),\" \")","v":" "},{"$f":"IFERROR(IF($D54=0,\" \",IF(TEMA=\"NOMBRE\",VLOOKUP($D54,Datos[#All],10,0),IF(TEMA=\"IDENTIFICACIÓN\",VLOOKUP($D54,Busqueda_Cedula,9,0)))),\" \")","v":" "},{"$f":"IFERROR(IF($D54=0,\" \",IF(TEMA=\"NOMBRE\",VLOOKUP($D54,Datos[#All],11,0),IF(TEMA=\"IDENTIFICACIÓN\",VLOOKUP($D54,Busqueda_Cedula,10,0)))),\" \")","v":" "}]
[null,null,null," ",null,{"$f":"IFERROR(IF($D55=0,\" \",IF(TEMA=\"NOMBRE\",VLOOKUP($D55,Datos[#All],4,0),IF(TEMA=\"IDENTIFICACIÓN\",VLOOKUP($D55,Busqueda_Cedula,3,0)))),\" \")","v":" "},{"$f":"IFERROR(IF($D55=0,\" \",IF(TEMA=\"NOMBRE\",VLOOKUP($D55,Datos[#All],5,0),IF(TEMA=\"IDENTIFICACIÓN\",VLOOKUP($D55,Busqueda_Cedula,4,0)))),\" \")","v":" "},{"$f":"IFERROR(IF($D55=0,\" \",IF(TEMA=\"NOMBRE\",VLOOKUP($D55,Datos[#All],6,0),IF(TEMA=\"IDENTIFICACIÓN\",VLOOKUP($D55,Busqueda_Cedula,5,0)))),\" \")","v":" "},{"$f":"IFERROR(IF($D55=0,\" \",IF(TEMA=\"NOMBRE\",VLOOKUP($D55,Datos[#All],7,0),IF(TEMA=\"IDENTIFICACIÓN\",VLOOKUP($D55,Busqueda_Cedula,6,0)))),\" \")","v":" "},{"$f":"IFERROR(IF($D55=0,\" \",IF(TEMA=\"NOMBRE\",VLOOKUP($D55,Datos[#All],8,0),IF(TEMA=\"IDENTIFICACIÓN\",VLOOKUP($D55,Busqueda_Cedula,7,0)))),\" \")","v":" "},{"$f":"IFERROR(IF($D55=0,\" \",IF(TEMA=\"NOMBRE\",VLOOKUP($D55,Datos[#All],9,0),IF(TEMA=\"IDENTIFICACIÓN\",VLOOKUP($D55,Busqueda_Cedula,8,0)))),\" \")","v":" "},{"$f":"IFERROR(IF($D55=0,\" \",IF(TEMA=\"NOMBRE\",VLOOKUP($D55,Datos[#All],10,0),IF(TEMA=\"IDENTIFICACIÓN\",VLOOKUP($D55,Busqueda_Cedula,9,0)))),\" \")","v":" "},{"$f":"IFERROR(IF($D55=0,\" \",IF(TEMA=\"NOMBRE\",VLOOKUP($D55,Datos[#All],11,0),IF(TEMA=\"IDENTIFICACIÓN\",VLOOKUP($D55,Busqueda_Cedula,10,0)))),\" \")","v":" "}]
[null,null,null," ",null,{"$f":"IFERROR(IF($D56=0,\" \",IF(TEMA=\"NOMBRE\",VLOOKUP($D56,Datos[#All],4,0),IF(TEMA=\"IDENTIFICACIÓN\",VLOOKUP($D56,Busqueda_Cedula,3,0)))),\" \")","v":" "},{"$f":"IFERROR(IF($D56=0,\" \",IF(TEMA=\"NOMBRE\",VLOOKUP($D56,Datos[#All],5,0),IF(TEMA=\"IDENTIFICACIÓN\",VLOOKUP($D56,Busqueda_Cedula,4,0)))),\" \")","v":" "},{"$f":"IFERROR(IF($D56=0,\" \",IF(TEMA=\"NOMBRE\",VLOOKUP($D56,Datos[#All],6,0),IF(TEMA=\"IDENTIFICACIÓN\",VLOOKUP($D56,Busqueda_Cedula,5,0)))),\" \")","v":" "},{"$f":"IFERROR(IF($D56=0,\" \",IF(TEMA=\"NOMBRE\",VLOOKUP($D56,Datos[#All],7,0),IF(TEMA=\"IDENTIFICACIÓN\",VLOOKUP($D56,Busqueda_Cedula,6,0)))),\" \")","v":" "},{"$f":"IFERROR(IF($D56=0,\" \",IF(TEMA=\"NOMBRE\",VLOOKUP($D56,Datos[#All],8,0),IF(TEMA=\"IDENTIFICACIÓN\",VLOOKUP($D56,Busqueda_Cedula,7,0)))),\" \")","v":" "},{"$f":"IFERROR(IF($D56=0,\" \",IF(TEMA=\"NOMBRE\",VLOOKUP($D56,Datos[#All],9,0),IF(TEMA=\"IDENTIFICACIÓN\",VLOOKUP($D56,Busqueda_Cedula,8,0)))),\" \")","v":" "},{"$f":"IFERROR(IF($D56=0,\" \",IF(TEMA=\"NOMBRE\",VLOOKUP($D56,Datos[#All],10,0),IF(TEMA=\"IDENTIFICACIÓN\",VLOOKUP($D56,Busqueda_Cedula,9,0)))),\" \")","v":" "},{"$f":"IFERROR(IF($D56=0,\" \",IF(TEMA=\"NOMBRE\",VLOOKUP($D56,Datos[#All],11,0),IF(TEMA=\"IDENTIFICACIÓN\",VLOOKUP($D56,Busqueda_Cedula,10,0)))),\" \")","v":" "}]
[null,null,null," ",null,{"$f":"IFERROR(IF($D57=0,\" \",IF(TEMA=\"NOMBRE\",VLOOKUP($D57,Datos[#All],4,0),IF(TEMA=\"IDENTIFICACIÓN\",VLOOKUP($D57,Busqueda_Cedula,3,0)))),\" \")","v":" "},{"$f":"IFERROR(IF($D57=0,\" \",IF(TEMA=\"NOMBRE\",VLOOKUP($D57,Datos[#All],5,0),IF(TEMA=\"IDENTIFICACIÓN\",VLOOKUP($D57,Busqueda_Cedula,4,0)))),\" \")","v":" "},{"$f":"IFERROR(IF($D57=0,\" \",IF(TEMA=\"NOMBRE\",VLOOKUP($D57,Datos[#All],6,0),IF(TEMA=\"IDENTIFICACIÓN\",VLOOKUP($D57,Busqueda_Cedula,5,0)))),\" \")","v":" "},{"$f":"IFERROR(IF($D57=0,\" \",IF(TEMA=\"NOMBRE\",VLOOKUP($D57,Datos[#All],7,0),IF(TEMA=\"IDENTIFICACIÓN\",VLOOKUP($D57,Busqueda_Cedula,6,0)))),\" \")","v":" "},{"$f":"IFERROR(IF($D57=0,\" \",IF(TEMA=\"NOMBRE\",VLOOKUP($D57,Datos[#All],8,0),IF(TEMA=\"IDENTIFICACIÓN\",VLOOKUP($D57,Busqueda_Cedula,7,0)))),\" \")","v":" "},{"$f":"IFERROR(IF($D57=0,\" \",IF(TEMA=\"NOMBRE\",VLOOKUP($D57,Datos[#All],9,0),IF(TEMA=\"IDENTIFICACIÓN\",VLOOKUP($D57,Busqueda_Cedula,8,0)))),\" \")","v":" "},{"$f":"IFERROR(IF($D57=0,\" \",IF(TEMA=\"NOMBRE\",VLOOKUP($D57,Datos[#All],10,0),IF(TEMA=\"IDENTIFICACIÓN\",VLOOKUP($D57,Busqueda_Cedula,9,0)))),\" \")","v":" "},{"$f":"IFERROR(IF($D57=0,\" \",IF(TEMA=\"NOMBRE\",VLOOKUP($D57,Datos[#All],11,0),IF(TEMA=\"IDENTIFICACIÓN\",VLOOKUP($D57,Busqueda_Cedula,10,0)))),\" \")","v":" "}]
[null,null,null," ",null,{"$f":"IFERROR(IF($D58=0,\" \",IF(TEMA=\"NOMBRE\",VLOOKUP($D58,Datos[#All],4,0),IF(TEMA=\"IDENTIFICACIÓN\",VLOOKUP($D58,Busqueda_Cedula,3,0)))),\" \")","v":" "},{"$f":"IFERROR(IF($D58=0,\" \",IF(TEMA=\"NOMBRE\",VLOOKUP($D58,Datos[#All],5,0),IF(TEMA=\"IDENTIFICACIÓN\",VLOOKUP($D58,Busqueda_Cedula,4,0)))),\" \")","v":" "},{"$f":"IFERROR(IF($D58=0,\" \",IF(TEMA=\"NOMBRE\",VLOOKUP($D58,Datos[#All],6,0),IF(TEMA=\"IDENTIFICACIÓN\",VLOOKUP($D58,Busqueda_Cedula,5,0)))),\" \")","v":" "},{"$f":"IFERROR(IF($D58=0,\" \",IF(TEMA=\"NOMBRE\",VLOOKUP($D58,Datos[#All],7,0),IF(TEMA=\"IDENTIFICACIÓN\",VLOOKUP($D58,Busqueda_Cedula,6,0)))),\" \")","v":" "},{"$f":"IFERROR(IF($D58=0,\" \",IF(TEMA=\"NOMBRE\",VLOOKUP($D58,Datos[#All],8,0),IF(TEMA=\"IDENTIFICACIÓN\",VLOOKUP($D58,Busqueda_Cedula,7,0)))),\" \")","v":" "},{"$f":"IFERROR(IF($D58=0,\" \",IF(TEMA=\"NOMBRE\",VLOOKUP($D58,Datos[#All],9,0),IF(TEMA=\"IDENTIFICACIÓN\",VLOOKUP($D58,Busqueda_Cedula,8,0)))),\" \")","v":" "},{"$f":"IFERROR(IF($D58=0,\" \",IF(TEMA=\"NOMBRE\",VLOOKUP($D58,Datos[#All],10,0),IF(TEMA=\"IDENTIFICACIÓN\",VLOOKUP($D58,Busqueda_Cedula,9,0)))),\" \")","v":" "},{"$f":"IFERROR(IF($D58=0,\" \",IF(TEMA=\"NOMBRE\",VLOOKUP($D58,Datos[#All],11,0),IF(TEMA=\"IDENTIFICACIÓN\",VLOOKUP($D58,Busqueda_Cedula,10,0)))),\" \")","v":" "}]
[null,null,null," ",null,{"$f":"IFERROR(IF($D59=0,\" \",IF(TEMA=\"NOMBRE\",VLOOKUP($D59,Datos[#All],4,0),IF(TEMA=\"IDENTIFICACIÓN\",VLOOKUP($D59,Busqueda_Cedula,3,0)))),\" \")","v":" "},{"$f":"IFERROR(IF($D59=0,\" \",IF(TEMA=\"NOMBRE\",VLOOKUP($D59,Datos[#All],5,0),IF(TEMA=\"IDENTIFICACIÓN\",VLOOKUP($D59,Busqueda_Cedula,4,0)))),\" \")","v":" "},{"$f":"IFERROR(IF($D59=0,\" \",IF(TEMA=\"NOMBRE\",VLOOKUP($D59,Datos[#All],6,0),IF(TEMA=\"IDENTIFICACIÓN\",VLOOKUP($D59,Busqueda_Cedula,5,0)))),\" \")","v":" "},{"$f":"IFERROR(IF($D59=0,\" \",IF(TEMA=\"NOMBRE\",VLOOKUP($D59,Datos[#All],7,0),IF(TEMA=\"IDENTIFICACIÓN\",VLOOKUP($D59,Busqueda_Cedula,6,0)))),\" \")","v":" "},{"$f":"IFERROR(IF($D59=0,\" \",IF(TEMA=\"NOMBRE\",VLOOKUP($D59,Datos[#All],8,0),IF(TEMA=\"IDENTIFICACIÓN\",VLOOKUP($D59,Busqueda_Cedula,7,0)))),\" \")","v":" "},{"$f":"IFERROR(IF($D59=0,\" \",IF(TEMA=\"NOMBRE\",VLOOKUP($D59,Datos[#All],9,0),IF(TEMA=\"IDENTIFICACIÓN\",VLOOKUP($D59,Busqueda_Cedula,8,0)))),\" \")","v":" "},{"$f":"IFERROR(IF($D59=0,\" \",IF(TEMA=\"NOMBRE\",VLOOKUP($D59,Datos[#All],10,0),IF(TEMA=\"IDENTIFICACIÓN\",VLOOKUP($D59,Busqueda_Cedula,9,0)))),\" \")","v":" "},{"$f":"IFERROR(IF($D59=0,\" \",IF(TEMA=\"NOMBRE\",VLOOKUP($D59,Datos[#All],11,0),IF(TEMA=\"IDENTIFICACIÓN\",VLOOKUP($D59,Busqueda_Cedula,10,0)))),\" \")","v":" "}]
[null,null,null," ",null,{"$f":"IFERROR(IF($D60=0,\" \",IF(TEMA=\"NOMBRE\",VLOOKUP($D60,Datos[#All],4,0),IF(TEMA=\"IDENTIFICACIÓN\",VLOOKUP($D60,Busqueda_Cedula,3,0)))),\" \")","v":" "},{"$f":"IFERROR(IF($D60=0,\" \",IF(TEMA=\"NOMBRE\",VLOOKUP($D60,Datos[#All],5,0),IF(TEMA=\"IDENTIFICACIÓN\",VLOOKUP($D60,Busqueda_Cedula,4,0)))),\" \")","v":" "},{"$f":"IFERROR(IF($D60=0,\" \",IF(TEMA=\"NOMBRE\",VLOOKUP($D60,Datos[#All],6,0),IF(TEMA=\"IDENTIFICACIÓN\",VLOOKUP($D60,Busqueda_Cedula,5,0)))),\" \")","v":" "},{"$f":"IFERROR(IF($D60=0,\" \",IF(TEMA=\"NOMBRE\",VLOOKUP($D60,Datos[#All],7,0),IF(TEMA=\"IDENTIFICACIÓN\",VLOOKUP($D60,Busqueda_Cedula,6,0)))),\" \")","v":" "},{"$f":"IFERROR(IF($D60=0,\" \",IF(TEMA=\"NOMBRE\",VLOOKUP($D60,Datos[#All],8,0),IF(TEMA=\"IDENTIFICACIÓN\",VLOOKUP($D60,Busqueda_Cedula,7,0)))),\" \")","v":" "},{"$f":"IFERROR(IF($D60=0,\" \",IF(TEMA=\"NOMBRE\",VLOOKUP($D60,Datos[#All],9,0),IF(TEMA=\"IDENTIFICACIÓN\",VLOOKUP($D60,Busqueda_Cedula,8,0)))),\" \")","v":" "},{"$f":"IFERROR(IF($D60=0,\" \",IF(TEMA=\"NOMBRE\",VLOOKUP($D60,Datos[#All],10,0),IF(TEMA=\"IDENTIFICACIÓN\",VLOOKUP($D60,Busqueda_Cedula,9,0)))),\" \")","v":" "},{"$f":"IFERROR(IF($D60=0,\" \",IF(TEMA=\"NOMBRE\",VLOOKUP($D60,Datos[#All],11,0),IF(TEMA=\"IDENTIFICACIÓN\",VLOOKUP($D60,Busqueda_Cedula,10,0)))),\" \")","v":" "}]
[null,null,null," ",null,{"$f":"IFERROR(IF($D61=0,\" \",IF(TEMA=\"NOMBRE\",VLOOKUP($D61,Datos[#All],4,0),IF(TEMA=\"IDENTIFICACIÓN\",VLOOKUP($D61,Busqueda_Cedula,3,0)))),\" \")","v":" "},{"$f":"IFERROR(IF($D61=0,\" \",IF(TEMA=\"NOMBRE\",VLOOKUP($D61,Datos[#All],5,0),IF(TEMA=\"IDENTIFICACIÓN\",VLOOKUP($D61,Busqueda_Cedula,4,0)))),\" \")","v":" "},{"$f":"IFERROR(IF($D61=0,\" \",IF(TEMA=\"NOMBRE\",VLOOKUP($D61,Datos[#All],6,0),IF(TEMA=\"IDENTIFICACIÓN\",VLOOKUP($D61,Busqueda_Cedula,5,0)))),\" \")","v":" "},{"$f":"IFERROR(IF($D61=0,\" \",IF(TEMA=\"NOMBRE\",VLOOKUP($D61,Datos[#All],7,0),IF(TEMA=\"IDENTIFICACIÓN\",VLOOKUP($D61,Busqueda_Cedula,6,0)))),\" \")","v":" "},{"$f":"IFERROR(IF($D61=0,\" \",IF(TEMA=\"NOMBRE\",VLOOKUP($D61,Datos[#All],8,0),IF(TEMA=\"IDENTIFICACIÓN\",VLOOKUP($D61,Busqueda_Cedula,7,0)))),\" \")","v":" "},{"$f":"IFERROR(IF($D61=0,\" \",IF(TEMA=\"NOMBRE\",VLOOKUP($D61,Datos[#All],9,0),IF(TEMA=\"IDENTIFICACIÓN\",VLOOKUP($D61,Busqueda_Cedula,8,0)))),\" \")","v":" "},{"$f":"IFERROR(IF($D61=0,\" \",IF(TEMA=\"NOMBRE\",VLOOKUP($D61,Datos[#All],10,0),IF(TEMA=\"IDENTIFICACIÓN\",VLOOKUP($D61,Busqueda_Cedula,9,0)))),\" \")","v":" "},{"$f":"IFERROR(IF($D61=0,\" \",IF(TEMA=\"NOMBRE\",VLOOKUP($D61,Datos[#All],11,0),IF(TEMA=\"IDENTIFICACIÓN\",VLOOKUP($D61,Busqueda_Cedula,10,0)))),\" \")","v":" "}]
[null,null,null," ",null,{"$f":"IFERROR(IF($D62=0,\" \",IF(TEMA=\"NOMBRE\",VLOOKUP($D62,Datos[#All],4,0),IF(TEMA=\"IDENTIFICACIÓN\",VLOOKUP($D62,Busqueda_Cedula,3,0)))),\" \")","v":" "},{"$f":"IFERROR(IF($D62=0,\" \",IF(TEMA=\"NOMBRE\",VLOOKUP($D62,Datos[#All],5,0),IF(TEMA=\"IDENTIFICACIÓN\",VLOOKUP($D62,Busqueda_Cedula,4,0)))),\" \")","v":" "},{"$f":"IFERROR(IF($D62=0,\" \",IF(TEMA=\"NOMBRE\",VLOOKUP($D62,Datos[#All],6,0),IF(TEMA=\"IDENTIFICACIÓN\",VLOOKUP($D62,Busqueda_Cedula,5,0)))),\" \")","v":" "},{"$f":"IFERROR(IF($D62=0,\" \",IF(TEMA=\"NOMBRE\",VLOOKUP($D62,Datos[#All],7,0),IF(TEMA=\"IDENTIFICACIÓN\",VLOOKUP($D62,Busqueda_Cedula,6,0)))),\" \")","v":" "},{"$f":"IFERROR(IF($D62=0,\" \",IF(TEMA=\"NOMBRE\",VLOOKUP($D62,Datos[#All],8,0),IF(TEMA=\"IDENTIFICACIÓN\",VLOOKUP($D62,Busqueda_Cedula,7,0)))),\" \")","v":" "},{"$f":"IFERROR(IF($D62=0,\" \",IF(TEMA=\"NOMBRE\",VLOOKUP($D62,Datos[#All],9,0),IF(TEMA=\"IDENTIFICACIÓN\",VLOOKUP($D62,Busqueda_Cedula,8,0)))),\" \")","v":" "},{"$f":"IFERROR(IF($D62=0,\" \",IF(TEMA=\"NOMBRE\",VLOOKUP($D62,Datos[#All],10,0),IF(TEMA=\"IDENTIFICACIÓN\",VLOOKUP($D62,Busqueda_Cedula,9,0)))),\" \")","v":" "},{"$f":"IFERROR(IF($D62=0,\" \",IF(TEMA=\"NOMBRE\",VLOOKUP($D62,Datos[#All],11,0),IF(TEMA=\"IDENTIFICACIÓN\",VLOOKUP($D62,Busqueda_Cedula,10,0)))),\" \")","v":" "}]
[null,null,null," ",null,{"$f":"IFERROR(IF($D63=0,\" \",IF(TEMA=\"NOMBRE\",VLOOKUP($D63,Datos[#All],4,0),IF(TEMA=\"IDENTIFICACIÓN\",VLOOKUP($D63,Busqueda_Cedula,3,0)))),\" \")","v":" "},{"$f":"IFERROR(IF($D63=0,\" \",IF(TEMA=\"NOMBRE\",VLOOKUP($D63,Datos[#All],5,0),IF(TEMA=\"IDENTIFICACIÓN\",VLOOKUP($D63,Busqueda_Cedula,4,0)))),\" \")","v":" "},{"$f":"IFERROR(IF($D63=0,\" \",IF(TEMA=\"NOMBRE\",VLOOKUP($D63,Datos[#All],6,0),IF(TEMA=\"IDENTIFICACIÓN\",VLOOKUP($D63,Busqueda_Cedula,5,0)))),\" \")","v":" "},{"$f":"IFERROR(IF($D63=0,\" \",IF(TEMA=\"NOMBRE\",VLOOKUP($D63,Datos[#All],7,0),IF(TEMA=\"IDENTIFICACIÓN\",VLOOKUP($D63,Busqueda_Cedula,6,0)))),\" \")","v":" "},{"$f":"IFERROR(IF($D63=0,\" \",IF(TEMA=\"NOMBRE\",VLOOKUP($D63,Datos[#All],8,0),IF(TEMA=\"IDENTIFICACIÓN\",VLOOKUP($D63,Busqueda_Cedula,7,0)))),\" \")","v":" "},{"$f":"IFERROR(IF($D63=0,\" \",IF(TEMA=\"NOMBRE\",VLOOKUP($D63,Datos[#All],9,0),IF(TEMA=\"IDENTIFICACIÓN\",VLOOKUP($D63,Busqueda_Cedula,8,0)))),\" \")","v":" "},{"$f":"IFERROR(IF($D63=0,\" \",IF(TEMA=\"NOMBRE\",VLOOKUP($D63,Datos[#All],10,0),IF(TEMA=\"IDENTIFICACIÓN\",VLOOKUP($D63,Busqueda_Cedula,9,0)))),\" \")","v":" "},{"$f":"IFERROR(IF($D63=0,\" \",IF(TEMA=\"NOMBRE\",VLOOKUP($D63,Datos[#All],11,0),IF(TEMA=\"IDENTIFICACIÓN\",VLOOKUP($D63,Busqueda_Cedula,10,0)))),\" \")","v":" "}]
[null,null,null," ",null,{"$f":"IFERROR(IF($D64=0,\" \",IF(TEMA=\"NOMBRE\",VLOOKUP($D64,Datos[#All],4,0),IF(TEMA=\"IDENTIFICACIÓN\",VLOOKUP($D64,Busqueda_Cedula,3,0)))),\" \")","v":" "},{"$f":"IFERROR(IF($D64=0,\" \",IF(TEMA=\"NOMBRE\",VLOOKUP($D64,Datos[#All],5,0),IF(TEMA=\"IDENTIFICACIÓN\",VLOOKUP($D64,Busqueda_Cedula,4,0)))),\" \")","v":" "},{"$f":"IFERROR(IF($D64=0,\" \",IF(TEMA=\"NOMBRE\",VLOOKUP($D64,Datos[#All],6,0),IF(TEMA=\"IDENTIFICACIÓN\",VLOOKUP($D64,Busqueda_Cedula,5,0)))),\" \")","v":" "},{"$f":"IFERROR(IF($D64=0,\" \",IF(TEMA=\"NOMBRE\",VLOOKUP($D64,Datos[#All],7,0),IF(TEMA=\"IDENTIFICACIÓN\",VLOOKUP($D64,Busqueda_Cedula,6,0)))),\" \")","v":" "},{"$f":"IFERROR(IF($D64=0,\" \",IF(TEMA=\"NOMBRE\",VLOOKUP($D64,Datos[#All],8,0),IF(TEMA=\"IDENTIFICACIÓN\",VLOOKUP($D64,Busqueda_Cedula,7,0)))),\" \")","v":" "},{"$f":"IFERROR(IF($D64=0,\" \",IF(TEMA=\"NOMBRE\",VLOOKUP($D64,Datos[#All],9,0),IF(TEMA=\"IDENTIFICACIÓN\",VLOOKUP($D64,Busqueda_Cedula,8,0)))),\" \")","v":" "},{"$f":"IFERROR(IF($D64=0,\" \",IF(TEMA=\"NOMBRE\",VLOOKUP($D64,Datos[#All],10,0),IF(TEMA=\"IDENTIFICACIÓN\",VLOOKUP($D64,Busqueda_Cedula,9,0)))),\" \")","v":" "},{"$f":"IFERROR(IF($D64=0,\" \",IF(TEMA=\"NOMBRE\",VLOOKUP($D64,Datos[#All],11,0),IF(TEMA=\"IDENTIFICACIÓN\",VLOOKUP($D64,Busqueda_Cedula,10,0)))),\" \")","v":" "}]
[null,null,null," ",null,{"$f":"IFERROR(IF($D65=0,\" \",IF(TEMA=\"NOMBRE\",VLOOKUP($D65,Datos[#All],4,0),IF(TEMA=\"IDENTIFICACIÓN\",VLOOKUP($D65,Busqueda_Cedula,3,0)))),\" \")","v":" "},{"$f":"IFERROR(IF($D65=0,\" \",IF(TEMA=\"NOMBRE\",VLOOKUP($D65,Datos[#All],5,0),IF(TEMA=\"IDENTIFICACIÓN\",VLOOKUP($D65,Busqueda_Cedula,4,0)))),\" \")","v":" "},{"$f":"IFERROR(IF($D65=0,\" \",IF(TEMA=\"NOMBRE\",VLOOKUP($D65,Datos[#All],6,0),IF(TEMA=\"IDENTIFICACIÓN\",VLOOKUP($D65,Busqueda_Cedula,5,0)))),\" \")","v":" "},{"$f":"IFERROR(IF($D65=0,\" \",IF(TEMA=\"NOMBRE\",VLOOKUP($D65,Datos[#All],7,0),IF(TEMA=\"IDENTIFICACIÓN\",VLOOKUP($D65,Busqueda_Cedula,6,0)))),\" \")","v":" "},{"$f":"IFERROR(IF($D65=0,\" \",IF(TEMA=\"NOMBRE\",VLOOKUP($D65,Datos[#All],8,0),IF(TEMA=\"IDENTIFICACIÓN\",VLOOKUP($D65,Busqueda_Cedula,7,0)))),\" \")","v":" "},{"$f":"IFERROR(IF($D65=0,\" \",IF(TEMA=\"NOMBRE\",VLOOKUP($D65,Datos[#All],9,0),IF(TEMA=\"IDENTIFICACIÓN\",VLOOKUP($D65,Busqueda_Cedula,8,0)))),\" \")","v":" "},{"$f":"IFERROR(IF($D65=0,\" \",IF(TEMA=\"NOMBRE\",VLOOKUP($D65,Datos[#All],10,0),IF(TEMA=\"IDENTIFICACIÓN\",VLOOKUP($D65,Busqueda_Cedula,9,0)))),\" \")","v":" "},{"$f":"IFERROR(IF($D65=0,\" \",IF(TEMA=\"NOMBRE\",VLOOKUP($D65,Datos[#All],11,0),IF(TEMA=\"IDENTIFICACIÓN\",VLOOKUP($D65,Busqueda_Cedula,10,0)))),\" \")","v":" "}]
[null,null,null," ",null,{"$f":"IFERROR(IF($D66=0,\" \",IF(TEMA=\"NOMBRE\",VLOOKUP($D66,Datos[#All],4,0),IF(TEMA=\"IDENTIFICACIÓN\",VLOOKUP($D66,Busqueda_Cedula,3,0)))),\" \")","v":" "},{"$f":"IFERROR(IF($D66=0,\" \",IF(TEMA=\"NOMBRE\",VLOOKUP($D66,Datos[#All],5,0),IF(TEMA=\"IDENTIFICACIÓN\",VLOOKUP($D66,Busqueda_Cedula,4,0)))),\" \")","v":" "},{"$f":"IFERROR(IF($D66=0,\" \",IF(TEMA=\"NOMBRE\",VLOOKUP($D66,Datos[#All],6,0),IF(TEMA=\"IDENTIFICACIÓN\",VLOOKUP($D66,Busqueda_Cedula,5,0)))),\" \")","v":" "},{"$f":"IFERROR(IF($D66=0,\" \",IF(TEMA=\"NOMBRE\",VLOOKUP($D66,Datos[#All],7,0),IF(TEMA=\"IDENTIFICACIÓN\",VLOOKUP($D66,Busqueda_Cedula,6,0)))),\" \")","v":" "},{"$f":"IFERROR(IF($D66=0,\" \",IF(TEMA=\"NOMBRE\",VLOOKUP($D66,Datos[#All],8,0),IF(TEMA=\"IDENTIFICACIÓN\",VLOOKUP($D66,Busqueda_Cedula,7,0)))),\" \")","v":" "},{"$f":"IFERROR(IF($D66=0,\" \",IF(TEMA=\"NOMBRE\",VLOOKUP($D66,Datos[#All],9,0),IF(TEMA=\"IDENTIFICACIÓN\",VLOOKUP($D66,Busqueda_Cedula,8,0)))),\" \")","v":" "},{"$f":"IFERROR(IF($D66=0,\" \",IF(TEMA=\"NOMBRE\",VLOOKUP($D66,Datos[#All],10,0),IF(TEMA=\"IDENTIFICACIÓN\",VLOOKUP($D66,Busqueda_Cedula,9,0)))),\" \")","v":" "},{"$f":"IFERROR(IF($D66=0,\" \",IF(TEMA=\"NOMBRE\",VLOOKUP($D66,Datos[#All],11,0),IF(TEMA=\"IDENTIFICACIÓN\",VLOOKUP($D66,Busqueda_Cedula,10,0)))),\" \")","v":" "}]
[null,null,null," ",null,{"$f":"IFERROR(IF($D67=0,\" \",IF(TEMA=\"NOMBRE\",VLOOKUP($D67,Datos[#All],4,0),IF(TEMA=\"IDENTIFICACIÓN\",VLOOKUP($D67,Busqueda_Cedula,3,0)))),\" \")","v":" "},{"$f":"IFERROR(IF($D67=0,\" \",IF(TEMA=\"NOMBRE\",VLOOKUP($D67,Datos[#All],5,0),IF(TEMA=\"IDENTIFICACIÓN\",VLOOKUP($D67,Busqueda_Cedula,4,0)))),\" \")","v":" "},{"$f":"IFERROR(IF($D67=0,\" \",IF(TEMA=\"NOMBRE\",VLOOKUP($D67,Datos[#All],6,0),IF(TEMA=\"IDENTIFICACIÓN\",VLOOKUP($D67,Busqueda_Cedula,5,0)))),\" \")","v":" "},{"$f":"IFERROR(IF($D67=0,\" \",IF(TEMA=\"NOMBRE\",VLOOKUP($D67,Datos[#All],7,0),IF(TEMA=\"IDENTIFICACIÓN\",VLOOKUP($D67,Busqueda_Cedula,6,0)))),\" \")","v":" "},{"$f":"IFERROR(IF($D67=0,\" \",IF(TEMA=\"NOMBRE\",VLOOKUP($D67,Datos[#All],8,0),IF(TEMA=\"IDENTIFICACIÓN\",VLOOKUP($D67,Busqueda_Cedula,7,0)))),\" \")","v":" "},{"$f":"IFERROR(IF($D67=0,\" \",IF(TEMA=\"NOMBRE\",VLOOKUP($D67,Datos[#All],9,0),IF(TEMA=\"IDENTIFICACIÓN\",VLOOKUP($D67,Busqueda_Cedula,8,0)))),\" \")","v":" "},{"$f":"IFERROR(IF($D67=0,\" \",IF(TEMA=\"NOMBRE\",VLOOKUP($D67,Datos[#All],10,0),IF(TEMA=\"IDENTIFICACIÓN\",VLOOKUP($D67,Busqueda_Cedula,9,0)))),\" \")","v":" "},{"$f":"IFERROR(IF($D67=0,\" \",IF(TEMA=\"NOMBRE\",VLOOKUP($D67,Datos[#All],11,0),IF(TEMA=\"IDENTIFICACIÓN\",VLOOKUP($D67,Busqueda_Cedula,10,0)))),\" \")","v":" "}]
[null,null,null," ",null,{"$f":"IFERROR(IF($D68=0,\" \",IF(TEMA=\"NOMBRE\",VLOOKUP($D68,Datos[#All],4,0),IF(TEMA=\"IDENTIFICACIÓN\",VLOOKUP($D68,Busqueda_Cedula,3,0)))),\" \")","v":" "},{"$f":"IFERROR(IF($D68=0,\" \",IF(TEMA=\"NOMBRE\",VLOOKUP($D68,Datos[#All],5,0),IF(TEMA=\"IDENTIFICACIÓN\",VLOOKUP($D68,Busqueda_Cedula,4,0)))),\" \")","v":" "},{"$f":"IFERROR(IF($D68=0,\" \",IF(TEMA=\"NOMBRE\",VLOOKUP($D68,Datos[#All],6,0),IF(TEMA=\"IDENTIFICACIÓN\",VLOOKUP($D68,Busqueda_Cedula,5,0)))),\" \")","v":" "},{"$f":"IFERROR(IF($D68=0,\" \",IF(TEMA=\"NOMBRE\",VLOOKUP($D68,Datos[#All],7,0),IF(TEMA=\"IDENTIFICACIÓN\",VLOOKUP($D68,Busqueda_Cedula,6,0)))),\" \")","v":" "},{"$f":"IFERROR(IF($D68=0,\" \",IF(TEMA=\"NOMBRE\",VLOOKUP($D68,Datos[#All],8,0),IF(TEMA=\"IDENTIFICACIÓN\",VLOOKUP($D68,Busqueda_Cedula,7,0)))),\" \")","v":" "},{"$f":"IFERROR(IF($D68=0,\" \",IF(TEMA=\"NOMBRE\",VLOOKUP($D68,Datos[#All],9,0),IF(TEMA=\"IDENTIFICACIÓN\",VLOOKUP($D68,Busqueda_Cedula,8,0)))),\" \")","v":" "},{"$f":"IFERROR(IF($D68=0,\" \",IF(TEMA=\"NOMBRE\",VLOOKUP($D68,Datos[#All],10,0),IF(TEMA=\"IDENTIFICACIÓN\",VLOOKUP($D68,Busqueda_Cedula,9,0)))),\" \")","v":" "},{"$f":"IFERROR(IF($D68=0,\" \",IF(TEMA=\"NOMBRE\",VLOOKUP($D68,Datos[#All],11,0),IF(TEMA=\"IDENTIFICACIÓN\",VLOOKUP($D68,Busqueda_Cedula,10,0)))),\" \")","v":" "}]
[null,null,null," ",null,{"$f":"IFERROR(IF($D69=0,\" \",IF(TEMA=\"NOMBRE\",VLOOKUP($D69,Datos[#All],4,0),IF(TEMA=\"IDENTIFICACIÓN\",VLOOKUP($D69,Busqueda_Cedula,3,0)))),\" \")","v":" "},{"$f":"IFERROR(IF($D69=0,\" \",IF(TEMA=\"NOMBRE\",VLOOKUP($D69,Datos[#All],5,0),IF(TEMA=\"IDENTIFICACIÓN\",VLOOKUP($D69,Busqueda_Cedula,4,0)))),\" \")","v":" "},{"$f":"IFERROR(IF($D69=0,\" \",IF(TEMA=\"NOMBRE\",VLOOKUP($D69,Datos[#All],6,0),IF(TEMA=\"IDENTIFICACIÓN\",VLOOKUP($D69,Busqueda_Cedula,5,0)))),\" \")","v":" "},{"$f":"IFERROR(IF($D69=0,\" \",IF(TEMA=\"NOMBRE\",VLOOKUP($D69,Datos[#All],7,0),IF(TEMA=\"IDENTIFICACIÓN\",VLOOKUP($D69,Busqueda_Cedula,6,0)))),\" \")","v":" "},{"$f":"IFERROR(IF($D69=0,\" \",IF(TEMA=\"NOMBRE\",VLOOKUP($D69,Datos[#All],8,0),IF(TEMA=\"IDENTIFICACIÓN\",VLOOKUP($D69,Busqueda_Cedula,7,0)))),\" \")","v":" "},{"$f":"IFERROR(IF($D69=0,\" \",IF(TEMA=\"NOMBRE\",VLOOKUP($D69,Datos[#All],9,0),IF(TEMA=\"IDENTIFICACIÓN\",VLOOKUP($D69,Busqueda_Cedula,8,0)))),\" \")","v":" "},{"$f":"IFERROR(IF($D69=0,\" \",IF(TEMA=\"NOMBRE\",VLOOKUP($D69,Datos[#All],10,0),IF(TEMA=\"IDENTIFICACIÓN\",VLOOKUP($D69,Busqueda_Cedula,9,0)))),\" \")","v":" "},{"$f":"IFERROR(IF($D69=0,\" \",IF(TEMA=\"NOMBRE\",VLOOKUP($D69,Datos[#All],11,0),IF(TEMA=\"IDENTIFICACIÓN\",VLOOKUP($D69,Busqueda_Cedula,10,0)))),\" \")","v":" "}]
[null,null,null," ",null,{"$f":"IFERROR(IF($D70=0,\" \",IF(TEMA=\"NOMBRE\",VLOOKUP($D70,Datos[#All],4,0),IF(TEMA=\"IDENTIFICACIÓN\",VLOOKUP($D70,Busqueda_Cedula,3,0)))),\" \")","v":" "},{"$f":"IFERROR(IF($D70=0,\" \",IF(TEMA=\"NOMBRE\",VLOOKUP($D70,Datos[#All],5,0),IF(TEMA=\"IDENTIFICACIÓN\",VLOOKUP($D70,Busqueda_Cedula,4,0)))),\" \")","v":" "},{"$f":"IFERROR(IF($D70=0,\" \",IF(TEMA=\"NOMBRE\",VLOOKUP($D70,Datos[#All],6,0),IF(TEMA=\"IDENTIFICACIÓN\",VLOOKUP($D70,Busqueda_Cedula,5,0)))),\" \")","v":" "},{"$f":"IFERROR(IF($D70=0,\" \",IF(TEMA=\"NOMBRE\",VLOOKUP($D70,Datos[#All],7,0),IF(TEMA=\"IDENTIFICACIÓN\",VLOOKUP($D70,Busqueda_Cedula,6,0)))),\" \")","v":" "},{"$f":"IFERROR(IF($D70=0,\" \",IF(TEMA=\"NOMBRE\",VLOOKUP($D70,Datos[#All],8,0),IF(TEMA=\"IDENTIFICACIÓN\",VLOOKUP($D70,Busqueda_Cedula,7,0)))),\" \")","v":" "},{"$f":"IFERROR(IF($D70=0,\" \",IF(TEMA=\"NOMBRE\",VLOOKUP($D70,Datos[#All],9,0),IF(TEMA=\"IDENTIFICACIÓN\",VLOOKUP($D70,Busqueda_Cedula,8,0)))),\" \")","v":" "},{"$f":"IFERROR(IF($D70=0,\" \",IF(TEMA=\"NOMBRE\",VLOOKUP($D70,Datos[#All],10,0),IF(TEMA=\"IDENTIFICACIÓN\",VLOOKUP($D70,Busqueda_Cedula,9,0)))),\" \")","v":" "},{"$f":"IFERROR(IF($D70=0,\" \",IF(TEMA=\"NOMBRE\",VLOOKUP($D70,Datos[#All],11,0),IF(TEMA=\"IDENTIFICACIÓN\",VLOOKUP($D70,Busqueda_Cedula,10,0)))),\" \")","v":" "}]
[null,null,null," ",null,{"$f":"IFERROR(IF($D71=0,\" \",IF(TEMA=\"NOMBRE\",VLOOKUP($D71,Datos[#All],4,0),IF(TEMA=\"IDENTIFICACIÓN\",VLOOKUP($D71,Busqueda_Cedula,3,0)))),\" \")","v":" "},{"$f":"IFERROR(IF($D71=0,\" \",IF(TEMA=\"NOMBRE\",VLOOKUP($D71,Datos[#All],5,0),IF(TEMA=\"IDENTIFICACIÓN\",VLOOKUP($D71,Busqueda_Cedula,4,0)))),\" \")","v":" "},{"$f":"IFERROR(IF($D71=0,\" \",IF(TEMA=\"NOMBRE\",VLOOKUP($D71,Datos[#All],6,0),IF(TEMA=\"IDENTIFICACIÓN\",VLOOKUP($D71,Busqueda_Cedula,5,0)))),\" \")","v":" "},{"$f":"IFERROR(IF($D71=0,\" \",IF(TEMA=\"NOMBRE\",VLOOKUP($D71,Datos[#All],7,0),IF(TEMA=\"IDENTIFICACIÓN\",VLOOKUP($D71,Busqueda_Cedula,6,0)))),\" \")","v":" "},{"$f":"IFERROR(IF($D71=0,\" \",IF(TEMA=\"NOMBRE\",VLOOKUP($D71,Datos[#All],8,0),IF(TEMA=\"IDENTIFICACIÓN\",VLOOKUP($D71,Busqueda_Cedula,7,0)))),\" \")","v":" "},{"$f":"IFERROR(IF($D71=0,\" \",IF(TEMA=\"NOMBRE\",VLOOKUP($D71,Datos[#All],9,0),IF(TEMA=\"IDENTIFICACIÓN\",VLOOKUP($D71,Busqueda_Cedula,8,0)))),\" \")","v":" "},{"$f":"IFERROR(IF($D71=0,\" \",IF(TEMA=\"NOMBRE\",VLOOKUP($D71,Datos[#All],10,0),IF(TEMA=\"IDENTIFICACIÓN\",VLOOKUP($D71,Busqueda_Cedula,9,0)))),\" \")","v":" "},{"$f":"IFERROR(IF($D71=0,\" \",IF(TEMA=\"NOMBRE\",VLOOKUP($D71,Datos[#All],11,0),IF(TEMA=\"IDENTIFICACIÓN\",VLOOKUP($D71,Busqueda_Cedula,10,0)))),\" \")","v":" "}]
[null,null,null," ",null,{"$f":"IFERROR(IF($D72=0,\" \",IF(TEMA=\"NOMBRE\",VLOOKUP($D72,Datos[#All],4,0),IF(TEMA=\"IDENTIFICACIÓN\",VLOOKUP($D72,Busqueda_Cedula,3,0)))),\" \")","v":" "},{"$f":"IFERROR(IF($D72=0,\" \",IF(TEMA=\"NOMBRE\",VLOOKUP($D72,Datos[#All],5,0),IF(TEMA=\"IDENTIFICACIÓN\",VLOOKUP($D72,Busqueda_Cedula,4,0)))),\" \")","v":" "},{"$f":"IFERROR(IF($D72=0,\" \",IF(TEMA=\"NOMBRE\",VLOOKUP($D72,Datos[#All],6,0),IF(TEMA=\"IDENTIFICACIÓN\",VLOOKUP($D72,Busqueda_Cedula,5,0)))),\" \")","v":" "},{"$f":"IFERROR(IF($D72=0,\" \",IF(TEMA=\"NOMBRE\",VLOOKUP($D72,Datos[#All],7,0),IF(TEMA=\"IDENTIFICACIÓN\",VLOOKUP($D72,Busqueda_Cedula,6,0)))),\" \")","v":" "},{"$f":"IFERROR(IF($D72=0,\" \",IF(TEMA=\"NOMBRE\",VLOOKUP($D72,Datos[#All],8,0),IF(TEMA=\"IDENTIFICACIÓN\",VLOOKUP($D72,Busqueda_Cedula,7,0)))),\" \")","v":" "},{"$f":"IFERROR(IF($D72=0,\" \",IF(TEMA=\"NOMBRE\",VLOOKUP($D72,Datos[#All],9,0),IF(TEMA=\"IDENTIFICACIÓN\",VLOOKUP($D72,Busqueda_Cedula,8,0)))),\" \")","v":" "},{"$f":"IFERROR(IF($D72=0,\" \",IF(TEMA=\"NOMBRE\",VLOOKUP($D72,Datos[#All],10,0),IF(TEMA=\"IDENTIFICACIÓN\",VLOOKUP($D72,Busqueda_Cedula,9,0)))),\" \")","v":" "},{"$f":"IFERROR(IF($D72=0,\" \",IF(TEMA=\"NOMBRE\",VLOOKUP($D72,Datos[#All],11,0),IF(TEMA=\"IDENTIFICACIÓN\",VLOOKUP($D72,Busqueda_Cedula,10,0)))),\" \")","v":" "}]
[null,null,null," ",null,{"$f":"IFERROR(IF($D73=0,\" \",IF(TEMA=\"NOMBRE\",VLOOKUP($D73,Datos[#All],4,0),IF(TEMA=\"IDENTIFICACIÓN\",VLOOKUP($D73,Busqueda_Cedula,3,0)))),\" \")","v":" "},{"$f":"IFERROR(IF($D73=0,\" \",IF(TEMA=\"NOMBRE\",VLOOKUP($D73,Datos[#All],5,0),IF(TEMA=\"IDENTIFICACIÓN\",VLOOKUP($D73,Busqueda_Cedula,4,0)))),\" \")","v":" "},{"$f":"IFERROR(IF($D73=0,\" \",IF(TEMA=\"NOMBRE\",VLOOKUP($D73,Datos[#All],6,0),IF(TEMA=\"IDENTIFICACIÓN\",VLOOKUP($D73,Busqueda_Cedula,5,0)))),\" \")","v":" "},{"$f":"IFERROR(IF($D73=0,\" \",IF(TEMA=\"NOMBRE\",VLOOKUP($D73,Datos[#All],7,0),IF(TEMA=\"IDENTIFICACIÓN\",VLOOKUP($D73,Busqueda_Cedula,6,0)))),\" \")","v":" "},{"$f":"IFERROR(IF($D73=0,\" \",IF(TEMA=\"NOMBRE\",VLOOKUP($D73,Datos[#All],8,0),IF(TEMA=\"IDENTIFICACIÓN\",VLOOKUP($D73,Busqueda_Cedula,7,0)))),\" \")","v":" "},{"$f":"IFERROR(IF($D73=0,\" \",IF(TEMA=\"NOMBRE\",VLOOKUP($D73,Datos[#All],9,0),IF(TEMA=\"IDENTIFICACIÓN\",VLOOKUP($D73,Busqueda_Cedula,8,0)))),\" \")","v":" "},{"$f":"IFERROR(IF($D73=0,\" \",IF(TEMA=\"NOMBRE\",VLOOKUP($D73,Datos[#All],10,0),IF(TEMA=\"IDENTIFICACIÓN\",VLOOKUP($D73,Busqueda_Cedula,9,0)))),\" \")","v":" "},{"$f":"IFERROR(IF($D73=0,\" \",IF(TEMA=\"NOMBRE\",VLOOKUP($D73,Datos[#All],11,0),IF(TEMA=\"IDENTIFICACIÓN\",VLOOKUP($D73,Busqueda_Cedula,10,0)))),\" \")","v":" "}]
[null,null,null," ",null,{"$f":"IFERROR(IF($D74=0,\" \",IF(TEMA=\"NOMBRE\",VLOOKUP($D74,Datos[#All],4,0),IF(TEMA=\"IDENTIFICACIÓN\",VLOOKUP($D74,Busqueda_Cedula,3,0)))),\" \")","v":" "},{"$f":"IFERROR(IF($D74=0,\" \",IF(TEMA=\"NOMBRE\",VLOOKUP($D74,Datos[#All],5,0),IF(TEMA=\"IDENTIFICACIÓN\",VLOOKUP($D74,Busqueda_Cedula,4,0)))),\" \")","v":" "},{"$f":"IFERROR(IF($D74=0,\" \",IF(TEMA=\"NOMBRE\",VLOOKUP($D74,Datos[#All],6,0),IF(TEMA=\"IDENTIFICACIÓN\",VLOOKUP($D74,Busqueda_Cedula,5,0)))),\" \")","v":" "},{"$f":"IFERROR(IF($D74=0,\" \",IF(TEMA=\"NOMBRE\",VLOOKUP($D74,Datos[#All],7,0),IF(TEMA=\"IDENTIFICACIÓN\",VLOOKUP($D74,Busqueda_Cedula,6,0)))),\" \")","v":" "},{"$f":"IFERROR(IF($D74=0,\" \",IF(TEMA=\"NOMBRE\",VLOOKUP($D74,Datos[#All],8,0),IF(TEMA=\"IDENTIFICACIÓN\",VLOOKUP($D74,Busqueda_Cedula,7,0)))),\" \")","v":" "},{"$f":"IFERROR(IF($D74=0,\" \",IF(TEMA=\"NOMBRE\",VLOOKUP($D74,Datos[#All],9,0),IF(TEMA=\"IDENTIFICACIÓN\",VLOOKUP($D74,Busqueda_Cedula,8,0)))),\" \")","v":" "},{"$f":"IFERROR(IF($D74=0,\" \",IF(TEMA=\"NOMBRE\",VLOOKUP($D74,Datos[#All],10,0),IF(TEMA=\"IDENTIFICACIÓN\",VLOOKUP($D74,Busqueda_Cedula,9,0)))),\" \")","v":" "},{"$f":"IFERROR(IF($D74=0,\" \",IF(TEMA=\"NOMBRE\",VLOOKUP($D74,Datos[#All],11,0),IF(TEMA=\"IDENTIFICACIÓN\",VLOOKUP($D74,Busqueda_Cedula,10,0)))),\" \")","v":" "}]
[null,null,null," ",null,{"$f":"IFERROR(IF($D75=0,\" \",IF(TEMA=\"NOMBRE\",VLOOKUP($D75,Datos[#All],4,0),IF(TEMA=\"IDENTIFICACIÓN\",VLOOKUP($D75,Busqueda_Cedula,3,0)))),\" \")","v":" "},{"$f":"IFERROR(IF($D75=0,\" \",IF(TEMA=\"NOMBRE\",VLOOKUP($D75,Datos[#All],5,0),IF(TEMA=\"IDENTIFICACIÓN\",VLOOKUP($D75,Busqueda_Cedula,4,0)))),\" \")","v":" "},{"$f":"IFERROR(IF($D75=0,\" \",IF(TEMA=\"NOMBRE\",VLOOKUP($D75,Datos[#All],6,0),IF(TEMA=\"IDENTIFICACIÓN\",VLOOKUP($D75,Busqueda_Cedula,5,0)))),\" \")","v":" "},{"$f":"IFERROR(IF($D75=0,\" \",IF(TEMA=\"NOMBRE\",VLOOKUP($D75,Datos[#All],7,0),IF(TEMA=\"IDENTIFICACIÓN\",VLOOKUP($D75,Busqueda_Cedula,6,0)))),\" \")","v":" "},{"$f":"IFERROR(IF($D75=0,\" \",IF(TEMA=\"NOMBRE\",VLOOKUP($D75,Datos[#All],8,0),IF(TEMA=\"IDENTIFICACIÓN\",VLOOKUP($D75,Busqueda_Cedula,7,0)))),\" \")","v":" "},{"$f":"IFERROR(IF($D75=0,\" \",IF(TEMA=\"NOMBRE\",VLOOKUP($D75,Datos[#All],9,0),IF(TEMA=\"IDENTIFICACIÓN\",VLOOKUP($D75,Busqueda_Cedula,8,0)))),\" \")","v":" "},{"$f":"IFERROR(IF($D75=0,\" \",IF(TEMA=\"NOMBRE\",VLOOKUP($D75,Datos[#All],10,0),IF(TEMA=\"IDENTIFICACIÓN\",VLOOKUP($D75,Busqueda_Cedula,9,0)))),\" \")","v":" "},{"$f":"IFERROR(IF($D75=0,\" \",IF(TEMA=\"NOMBRE\",VLOOKUP($D75,Datos[#All],11,0),IF(TEMA=\"IDENTIFICACIÓN\",VLOOKUP($D75,Busqueda_Cedula,10,0)))),\" \")","v":" "}]
[null,null,null," ",null,{"$f":"IFERROR(IF($D76=0,\" \",IF(TEMA=\"NOMBRE\",VLOOKUP($D76,Datos[#All],4,0),IF(TEMA=\"IDENTIFICACIÓN\",VLOOKUP($D76,Busqueda_Cedula,3,0)))),\" \")","v":" "},{"$f":"IFERROR(IF($D76=0,\" \",IF(TEMA=\"NOMBRE\",VLOOKUP($D76,Datos[#All],5,0),IF(TEMA=\"IDENTIFICACIÓN\",VLOOKUP($D76,Busqueda_Cedula,4,0)))),\" \")","v":" "},{"$f":"IFERROR(IF($D76=0,\" \",IF(TEMA=\"NOMBRE\",VLOOKUP($D76,Datos[#All],6,0),IF(TEMA=\"IDENTIFICACIÓN\",VLOOKUP($D76,Busqueda_Cedula,5,0)))),\" \")","v":" "},{"$f":"IFERROR(IF($D76=0,\" \",IF(TEMA=\"NOMBRE\",VLOOKUP($D76,Datos[#All],7,0),IF(TEMA=\"IDENTIFICACIÓN\",VLOOKUP($D76,Busqueda_Cedula,6,0)))),\" \")","v":" "},{"$f":"IFERROR(IF($D76=0,\" \",IF(TEMA=\"NOMBRE\",VLOOKUP($D76,Datos[#All],8,0),IF(TEMA=\"IDENTIFICACIÓN\",VLOOKUP($D76,Busqueda_Cedula,7,0)))),\" \")","v":" "},{"$f":"IFERROR(IF($D76=0,\" \",IF(TEMA=\"NOMBRE\",VLOOKUP($D76,Datos[#All],9,0),IF(TEMA=\"IDENTIFICACIÓN\",VLOOKUP($D76,Busqueda_Cedula,8,0)))),\" \")","v":" "},{"$f":"IFERROR(IF($D76=0,\" \",IF(TEMA=\"NOMBRE\",VLOOKUP($D76,Datos[#All],10,0),IF(TEMA=\"IDENTIFICACIÓN\",VLOOKUP($D76,Busqueda_Cedula,9,0)))),\" \")","v":" "},{"$f":"IFERROR(IF($D76=0,\" \",IF(TEMA=\"NOMBRE\",VLOOKUP($D76,Datos[#All],11,0),IF(TEMA=\"IDENTIFICACIÓN\",VLOOKUP($D76,Busqueda_Cedula,10,0)))),\" \")","v":" "}]
[null,null,null," ",null,{"$f":"IFERROR(IF($D77=0,\" \",IF(TEMA=\"NOMBRE\",VLOOKUP($D77,Datos[#All],4,0),IF(TEMA=\"IDENTIFICACIÓN\",VLOOKUP($D77,Busqueda_Cedula,3,0)))),\" \")","v":" "},{"$f":"IFERROR(IF($D77=0,\" \",IF(TEMA=\"NOMBRE\",VLOOKUP($D77,Datos[#All],5,0),IF(TEMA=\"IDENTIFICACIÓN\",VLOOKUP($D77,Busqueda_Cedula,4,0)))),\" \")","v":" "},{"$f":"IFERROR(IF($D77=0,\" \",IF(TEMA=\"NOMBRE\",VLOOKUP($D77,Datos[#All],6,0),IF(TEMA=\"IDENTIFICACIÓN\",VLOOKUP($D77,Busqueda_Cedula,5,0)))),\" \")","v":" "},{"$f":"IFERROR(IF($D77=0,\" \",IF(TEMA=\"NOMBRE\",VLOOKUP($D77,Datos[#All],7,0),IF(TEMA=\"IDENTIFICACIÓN\",VLOOKUP($D77,Busqueda_Cedula,6,0)))),\" \")","v":" "},{"$f":"IFERROR(IF($D77=0,\" \",IF(TEMA=\"NOMBRE\",VLOOKUP($D77,Datos[#All],8,0),IF(TEMA=\"IDENTIFICACIÓN\",VLOOKUP($D77,Busqueda_Cedula,7,0)))),\" \")","v":" "},{"$f":"IFERROR(IF($D77=0,\" \",IF(TEMA=\"NOMBRE\",VLOOKUP($D77,Datos[#All],9,0),IF(TEMA=\"IDENTIFICACIÓN\",VLOOKUP($D77,Busqueda_Cedula,8,0)))),\" \")","v":" "},{"$f":"IFERROR(IF($D77=0,\" \",IF(TEMA=\"NOMBRE\",VLOOKUP($D77,Datos[#All],10,0),IF(TEMA=\"IDENTIFICACIÓN\",VLOOKUP($D77,Busqueda_Cedula,9,0)))),\" \")","v":" "},{"$f":"IFERROR(IF($D77=0,\" \",IF(TEMA=\"NOMBRE\",VLOOKUP($D77,Datos[#All],11,0),IF(TEMA=\"IDENTIFICACIÓN\",VLOOKUP($D77,Busqueda_Cedula,10,0)))),\" \")","v":" "}]
[null,null,null,{"$f":"IF(Dato_Busqueda=0,\" \",IF(TEMA=\"NOMBRE\",IF(AND(Total_Nombre>0,Dato_Busqueda>0),$D77+1,0),IF(TEMA=\"IDENTIFICACIÓN\",IF(AND(Total_Identificacion>0,Dato_Busqueda>0),$D77+1,0))))","v":" "},null,{"$f":"IFERROR(IF($D78=0,\" \",IF(TEMA=\"NOMBRE\",VLOOKUP($D78,Datos[#All],4,0),IF(TEMA=\"IDENTIFICACIÓN\",VLOOKUP($D78,Busqueda_Cedula,3,0)))),\" \")","v":" "},{"$f":"IFERROR(IF($D78=0,\" \",IF(TEMA=\"NOMBRE\",VLOOKUP($D78,Datos[#All],5,0),IF(TEMA=\"IDENTIFICACIÓN\",VLOOKUP($D78,Busqueda_Cedula,4,0)))),\" \")","v":" "},{"$f":"IFERROR(IF($D78=0,\" \",IF(TEMA=\"NOMBRE\",VLOOKUP($D78,Datos[#All],6,0),IF(TEMA=\"IDENTIFICACIÓN\",VLOOKUP($D78,Busqueda_Cedula,5,0)))),\" \")","v":" "},{"$f":"IFERROR(IF($D78=0,\" \",IF(TEMA=\"NOMBRE\",VLOOKUP($D78,Datos[#All],7,0),IF(TEMA=\"IDENTIFICACIÓN\",VLOOKUP($D78,Busqueda_Cedula,6,0)))),\" \")","v":" "},{"$f":"IFERROR(IF($D78=0,\" \",IF(TEMA=\"NOMBRE\",VLOOKUP($D78,Datos[#All],8,0),IF(TEMA=\"IDENTIFICACIÓN\",VLOOKUP($D78,Busqueda_Cedula,7,0)))),\" \")","v":" "},{"$f":"IFERROR(IF($D78=0,\" \",IF(TEMA=\"NOMBRE\",VLOOKUP($D78,Datos[#All],9,0),IF(TEMA=\"IDENTIFICACIÓN\",VLOOKUP($D78,Busqueda_Cedula,8,0)))),\" \")","v":" "},{"$f":"IFERROR(IF($D78=0,\" \",IF(TEMA=\"NOMBRE\",VLOOKUP($D78,Datos[#All],10,0),IF(TEMA=\"IDENTIFICACIÓN\",VLOOKUP($D78,Busqueda_Cedula,9,0)))),\" \")","v":" "},{"$f":"IFERROR(IF($D78=0,\" \",IF(TEMA=\"NOMBRE\",VLOOKUP($D78,Datos[#All],11,0),IF(TEMA=\"IDENTIFICACIÓN\",VLOOKUP($D78,Busqueda_Cedula,10,0)))),\" \")","v":" "}]
[null,null,null," ",null,{"$f":"IFERROR(IF($D79=0,\" \",IF(TEMA=\"NOMBRE\",VLOOKUP($D79,Datos[#All],4,0),IF(TEMA=\"IDENTIFICACIÓN\",VLOOKUP($D79,Busqueda_Cedula,3,0)))),\" \")","v":" "},{"$f":"IFERROR(IF($D79=0,\" \",IF(TEMA=\"NOMBRE\",VLOOKUP($D79,Datos[#All],5,0),IF(TEMA=\"IDENTIFICACIÓN\",VLOOKUP($D79,Busqueda_Cedula,4,0)))),\" \")","v":" "},{"$f":"IFERROR(IF($D79=0,\" \",IF(TEMA=\"NOMBRE\",VLOOKUP($D79,Datos[#All],6,0),IF(TEMA=\"IDENTIFICACIÓN\",VLOOKUP($D79,Busqueda_Cedula,5,0)))),\" \")","v":" "},{"$f":"IFERROR(IF($D79=0,\" \",IF(TEMA=\"NOMBRE\",VLOOKUP($D79,Datos[#All],7,0),IF(TEMA=\"IDENTIFICACIÓN\",VLOOKUP($D79,Busqueda_Cedula,6,0)))),\" \")","v":" "},{"$f":"IFERROR(IF($D79=0,\" \",IF(TEMA=\"NOMBRE\",VLOOKUP($D79,Datos[#All],8,0),IF(TEMA=\"IDENTIFICACIÓN\",VLOOKUP($D79,Busqueda_Cedula,7,0)))),\" \")","v":" "},{"$f":"IFERROR(IF($D79=0,\" \",IF(TEMA=\"NOMBRE\",VLOOKUP($D79,Datos[#All],9,0),IF(TEMA=\"IDENTIFICACIÓN\",VLOOKUP($D79,Busqueda_Cedula,8,0)))),\" \")","v":" "},{"$f":"IFERROR(IF($D79=0,\" \",IF(TEMA=\"NOMBRE\",VLOOKUP($D79,Datos[#All],10,0),IF(TEMA=\"IDENTIFICACIÓN\",VLOOKUP($D79,Busqueda_Cedula,9,0)))),\" \")","v":" "},{"$f":"IFERROR(IF($D79=0,\" \",IF(TEMA=\"NOMBRE\",VLOOKUP($D79,Datos[#All],11,0),IF(TEMA=\"IDENTIFICACIÓN\",VLOOKUP($D79,Busqueda_Cedula,10,0)))),\" \")","v":" "}]
[null,null,null," ",null,{"$f":"IFERROR(IF($D80=0,\" \",IF(TEMA=\"NOMBRE\",VLOOKUP($D80,Datos[#All],4,0),IF(TEMA=\"IDENTIFICACIÓN\",VLOOKUP($D80,Busqueda_Cedula,3,0)))),\" \")","v":" "},{"$f":"IFERROR(IF($D80=0,\" \",IF(TEMA=\"NOMBRE\",VLOOKUP($D80,Datos[#All],5,0),IF(TEMA=\"IDENTIFICACIÓN\",VLOOKUP($D80,Busqueda_Cedula,4,0)))),\" \")","v":" "},{"$f":"IFERROR(IF($D80=0,\" \",IF(TEMA=\"NOMBRE\",VLOOKUP($D80,Datos[#All],6,0),IF(TEMA=\"IDENTIFICACIÓN\",VLOOKUP($D80,Busqueda_Cedula,5,0)))),\" \")","v":" "},{"$f":"IFERROR(IF($D80=0,\" \",IF(TEMA=\"NOMBRE\",VLOOKUP($D80,Datos[#All],7,0),IF(TEMA=\"IDENTIFICACIÓN\",VLOOKUP($D80,Busqueda_Cedula,6,0)))),\" \")","v":" "},{"$f":"IFERROR(IF($D80=0,\" \",IF(TEMA=\"NOMBRE\",VLOOKUP($D80,Datos[#All],8,0),IF(TEMA=\"IDENTIFICACIÓN\",VLOOKUP($D80,Busqueda_Cedula,7,0)))),\" \")","v":" "},{"$f":"IFERROR(IF($D80=0,\" \",IF(TEMA=\"NOMBRE\",VLOOKUP($D80,Datos[#All],9,0),IF(TEMA=\"IDENTIFICACIÓN\",VLOOKUP($D80,Busqueda_Cedula,8,0)))),\" \")","v":" "},{"$f":"IFERROR(IF($D80=0,\" \",IF(TEMA=\"NOMBRE\",VLOOKUP($D80,Datos[#All],10,0),IF(TEMA=\"IDENTIFICACIÓN\",VLOOKUP($D80,Busqueda_Cedula,9,0)))),\" \")","v":" "},{"$f":"IFERROR(IF($D80=0,\" \",IF(TEMA=\"NOMBRE\",VLOOKUP($D80,Datos[#All],11,0),IF(TEMA=\"IDENTIFICACIÓN\",VLOOKUP($D80,Busqueda_Cedula,10,0)))),\" \")","v":" "}]
[null,null,null," ",null,{"$f":"IFERROR(IF($D81=0,\" \",IF(TEMA=\"NOMBRE\",VLOOKUP($D81,Datos[#All],4,0),IF(TEMA=\"IDENTIFICACIÓN\",VLOOKUP($D81,Busqueda_Cedula,3,0)))),\" \")","v":" "},{"$f":"IFERROR(IF($D81=0,\" \",IF(TEMA=\"NOMBRE\",VLOOKUP($D81,Datos[#All],5,0),IF(TEMA=\"IDENTIFICACIÓN\",VLOOKUP($D81,Busqueda_Cedula,4,0)))),\" \")","v":" "},{"$f":"IFERROR(IF($D81=0,\" \",IF(TEMA=\"NOMBRE\",VLOOKUP($D81,Datos[#All],6,0),IF(TEMA=\"IDENTIFICACIÓN\",VLOOKUP($D81,Busqueda_Cedula,5,0)))),\" \")","v":" "},{"$f":"IFERROR(IF($D81=0,\" \",IF(TEMA=\"NOMBRE\",VLOOKUP($D81,Datos[#All],7,0),IF(TEMA=\"IDENTIFICACIÓN\",VLOOKUP($D81,Busqueda_Cedula,6,0)))),\" \")","v":" "},{"$f":"IFERROR(IF($D81=0,\" \",IF(TEMA=\"NOMBRE\",VLOOKUP($D81,Datos[#All],8,0),IF(TEMA=\"IDENTIFICACIÓN\",VLOOKUP($D81,Busqueda_Cedula,7,0)))),\" \")","v":" "},{"$f":"IFERROR(IF($D81=0,\" \",IF(TEMA=\"NOMBRE\",VLOOKUP($D81,Datos[#All],9,0),IF(TEMA=\"IDENTIFICACIÓN\",VLOOKUP($D81,Busqueda_Cedula,8,0)))),\" \")","v":" "},{"$f":"IFERROR(IF($D81=0,\" \",IF(TEMA=\"NOMBRE\",VLOOKUP($D81,Datos[#All],10,0),IF(TEMA=\"IDENTIFICACIÓN\",VLOOKUP($D81,Busqueda_Cedula,9,0)))),\" \")","v":" "},{"$f":"IFERROR(IF($D81=0,\" \",IF(TEMA=\"NOMBRE\",VLOOKUP($D81,Datos[#All],11,0),IF(TEMA=\"IDENTIFICACIÓN\",VLOOKUP($D81,Busqueda_Cedula,10,0)))),\" \")","v":" "}]
[null,null,null," ",null,{"$f":"IFERROR(IF($D82=0,\" \",IF(TEMA=\"NOMBRE\",VLOOKUP($D82,Datos[#All],4,0),IF(TEMA=\"IDENTIFICACIÓN\",VLOOKUP($D82,Busqueda_Cedula,3,0)))),\" \")","v":" "},{"$f":"IFERROR(IF($D82=0,\" \",IF(TEMA=\"NOMBRE\",VLOOKUP($D82,Datos[#All],5,0),IF(TEMA=\"IDENTIFICACIÓN\",VLOOKUP($D82,Busqueda_Cedula,4,0)))),\" \")","v":" "},{"$f":"IFERROR(IF($D82=0,\" \",IF(TEMA=\"NOMBRE\",VLOOKUP($D82,Datos[#All],6,0),IF(TEMA=\"IDENTIFICACIÓN\",VLOOKUP($D82,Busqueda_Cedula,5,0)))),\" \")","v":" "},{"$f":"IFERROR(IF($D82=0,\" \",IF(TEMA=\"NOMBRE\",VLOOKUP($D82,Datos[#All],7,0),IF(TEMA=\"IDENTIFICACIÓN\",VLOOKUP($D82,Busqueda_Cedula,6,0)))),\" \")","v":" "},{"$f":"IFERROR(IF($D82=0,\" \",IF(TEMA=\"NOMBRE\",VLOOKUP($D82,Datos[#All],8,0),IF(TEMA=\"IDENTIFICACIÓN\",VLOOKUP($D82,Busqueda_Cedula,7,0)))),\" \")","v":" "},{"$f":"IFERROR(IF($D82=0,\" \",IF(TEMA=\"NOMBRE\",VLOOKUP($D82,Datos[#All],9,0),IF(TEMA=\"IDENTIFICACIÓN\",VLOOKUP($D82,Busqueda_Cedula,8,0)))),\" \")","v":" "},{"$f":"IFERROR(IF($D82=0,\" \",IF(TEMA=\"NOMBRE\",VLOOKUP($D82,Datos[#All],10,0),IF(TEMA=\"IDENTIFICACIÓN\",VLOOKUP($D82,Busqueda_Cedula,9,0)))),\" \")","v":" "},{"$f":"IFERROR(IF($D82=0,\" \",IF(TEMA=\"NOMBRE\",VLOOKUP($D82,Datos[#All],11,0),IF(TEMA=\"IDENTIFICACIÓN\",VLOOKUP($D82,Busqueda_Cedula,10,0)))),\" \")","v":" "}]
[null,null,null," ",null,{"$f":"IFERROR(IF($D83=0,\" \",IF(TEMA=\"NOMBRE\",VLOOKUP($D83,Datos[#All],4,0),IF(TEMA=\"IDENTIFICACIÓN\",VLOOKUP($D83,Busqueda_Cedula,3,0)))),\" \")","v":" "},{"$f":"IFERROR(IF($D83=0,\" \",IF(TEMA=\"NOMBRE\",VLOOKUP($D83,Datos[#All],5,0),IF(TEMA=\"IDENTIFICACIÓN\",VLOOKUP($D83,Busqueda_Cedula,4,0)))),\" \")","v":" "},{"$f":"IFERROR(IF($D83=0,\" \",IF(TEMA=\"NOMBRE\",VLOOKUP($D83,Datos[#All],6,0),IF(TEMA=\"IDENTIFICACIÓN\",VLOOKUP($D83,Busqueda_Cedula,5,0)))),\" \")","v":" "},{"$f":"IFERROR(IF($D83=0,\" \",IF(TEMA=\"NOMBRE\",VLOOKUP($D83,Datos[#All],7,0),IF(TEMA=\"IDENTIFICACIÓN\",VLOOKUP($D83,Busqueda_Cedula,6,0)))),\" \")","v":" "},{"$f":"IFERROR(IF($D83=0,\" \",IF(TEMA=\"NOMBRE\",VLOOKUP($D83,Datos[#All],8,0),IF(TEMA=\"IDENTIFICACIÓN\",VLOOKUP($D83,Busqueda_Cedula,7,0)))),\" \")","v":" "},{"$f":"IFERROR(IF($D83=0,\" \",IF(TEMA=\"NOMBRE\",VLOOKUP($D83,Datos[#All],9,0),IF(TEMA=\"IDENTIFICACIÓN\",VLOOKUP($D83,Busqueda_Cedula,8,0)))),\" \")","v":" "},{"$f":"IFERROR(IF($D83=0,\" \",IF(TEMA=\"NOMBRE\",VLOOKUP($D83,Datos[#All],10,0),IF(TEMA=\"IDENTIFICACIÓN\",VLOOKUP($D83,Busqueda_Cedula,9,0)))),\" \")","v":" "},{"$f":"IFERROR(IF($D83=0,\" \",IF(TEMA=\"NOMBRE\",VLOOKUP($D83,Datos[#All],11,0),IF(TEMA=\"IDENTIFICACIÓN\",VLOOKUP($D83,Busqueda_Cedula,10,0)))),\" \")","v":" "}]
[null,null,null," ",null,{"$f":"IFERROR(IF($D84=0,\" \",IF(TEMA=\"NOMBRE\",VLOOKUP($D84,Datos[#All],4,0),IF(TEMA=\"IDENTIFICACIÓN\",VLOOKUP($D84,Busqueda_Cedula,3,0)))),\" \")","v":" "},{"$f":"IFERROR(IF($D84=0,\" \",IF(TEMA=\"NOMBRE\",VLOOKUP($D84,Datos[#All],5,0),IF(TEMA=\"IDENTIFICACIÓN\",VLOOKUP($D84,Busqueda_Cedula,4,0)))),\" \")","v":" "},{"$f":"IFERROR(IF($D84=0,\" \",IF(TEMA=\"NOMBRE\",VLOOKUP($D84,Datos[#All],6,0),IF(TEMA=\"IDENTIFICACIÓN\",VLOOKUP($D84,Busqueda_Cedula,5,0)))),\" \")","v":" "},{"$f":"IFERROR(IF($D84=0,\" \",IF(TEMA=\"NOMBRE\",VLOOKUP($D84,Datos[#All],7,0),IF(TEMA=\"IDENTIFICACIÓN\",VLOOKUP($D84,Busqueda_Cedula,6,0)))),\" \")","v":" "},{"$f":"IFERROR(IF($D84=0,\" \",IF(TEMA=\"NOMBRE\",VLOOKUP($D84,Datos[#All],8,0),IF(TEMA=\"IDENTIFICACIÓN\",VLOOKUP($D84,Busqueda_Cedula,7,0)))),\" \")","v":" "},{"$f":"IFERROR(IF($D84=0,\" \",IF(TEMA=\"NOMBRE\",VLOOKUP($D84,Datos[#All],9,0),IF(TEMA=\"IDENTIFICACIÓN\",VLOOKUP($D84,Busqueda_Cedula,8,0)))),\" \")","v":" "},{"$f":"IFERROR(IF($D84=0,\" \",IF(TEMA=\"NOMBRE\",VLOOKUP($D84,Datos[#All],10,0),IF(TEMA=\"IDENTIFICACIÓN\",VLOOKUP($D84,Busqueda_Cedula,9,0)))),\" \")","v":" "},{"$f":"IFERROR(IF($D84=0,\" \",IF(TEMA=\"NOMBRE\",VLOOKUP($D84,Datos[#All],11,0),IF(TEMA=\"IDENTIFICACIÓN\",VLOOKUP($D84,Busqueda_Cedula,10,0)))),\" \")","v":" "}]
[null,null,null," ",null,{"$f":"IFERROR(IF($D85=0,\" \",IF(TEMA=\"NOMBRE\",VLOOKUP($D85,Datos[#All],4,0),IF(TEMA=\"IDENTIFICACIÓN\",VLOOKUP($D85,Busqueda_Cedula,3,0)))),\" \")","v":" "},{"$f":"IFERROR(IF($D85=0,\" \",IF(TEMA=\"NOMBRE\",VLOOKUP($D85,Datos[#All],5,0),IF(TEMA=\"IDENTIFICACIÓN\",VLOOKUP($D85,Busqueda_Cedula,4,0)))),\" \")","v":" "},{"$f":"IFERROR(IF($D85=0,\" \",IF(TEMA=\"NOMBRE\",VLOOKUP($D85,Datos[#All],6,0),IF(TEMA=\"IDENTIFICACIÓN\",VLOOKUP($D85,Busqueda_Cedula,5,0)))),\" \")","v":" "},{"$f":"IFERROR(IF($D85=0,\" \",IF(TEMA=\"NOMBRE\",VLOOKUP($D85,Datos[#All],7,0),IF(TEMA=\"IDENTIFICACIÓN\",VLOOKUP($D85,Busqueda_Cedula,6,0)))),\" \")","v":" "},{"$f":"IFERROR(IF($D85=0,\" \",IF(TEMA=\"NOMBRE\",VLOOKUP($D85,Datos[#All],8,0),IF(TEMA=\"IDENTIFICACIÓN\",VLOOKUP($D85,Busqueda_Cedula,7,0)))),\" \")","v":" "},{"$f":"IFERROR(IF($D85=0,\" \",IF(TEMA=\"NOMBRE\",VLOOKUP($D85,Datos[#All],9,0),IF(TEMA=\"IDENTIFICACIÓN\",VLOOKUP($D85,Busqueda_Cedula,8,0)))),\" \")","v":" "},{"$f":"IFERROR(IF($D85=0,\" \",IF(TEMA=\"NOMBRE\",VLOOKUP($D85,Datos[#All],10,0),IF(TEMA=\"IDENTIFICACIÓN\",VLOOKUP($D85,Busqueda_Cedula,9,0)))),\" \")","v":" "},{"$f":"IFERROR(IF($D85=0,\" \",IF(TEMA=\"NOMBRE\",VLOOKUP($D85,Datos[#All],11,0),IF(TEMA=\"IDENTIFICACIÓN\",VLOOKUP($D85,Busqueda_Cedula,10,0)))),\" \")","v":" "}]
[null,null,null," ",null,{"$f":"IFERROR(IF($D86=0,\" \",IF(TEMA=\"NOMBRE\",VLOOKUP($D86,Datos[#All],4,0),IF(TEMA=\"IDENTIFICACIÓN\",VLOOKUP($D86,Busqueda_Cedula,3,0)))),\" \")","v":" "},{"$f":"IFERROR(IF($D86=0,\" \",IF(TEMA=\"NOMBRE\",VLOOKUP($D86,Datos[#All],5,0),IF(TEMA=\"IDENTIFICACIÓN\",VLOOKUP($D86,Busqueda_Cedula,4,0)))),\" \")","v":" "},{"$f":"IFERROR(IF($D86=0,\" \",IF(TEMA=\"NOMBRE\",VLOOKUP($D86,Datos[#All],6,0),IF(TEMA=\"IDENTIFICACIÓN\",VLOOKUP($D86,Busqueda_Cedula,5,0)))),\" \")","v":" "},{"$f":"IFERROR(IF($D86=0,\" \",IF(TEMA=\"NOMBRE\",VLOOKUP($D86,Datos[#All],7,0),IF(TEMA=\"IDENTIFICACIÓN\",VLOOKUP($D86,Busqueda_Cedula,6,0)))),\" \")","v":" "},{"$f":"IFERROR(IF($D86=0,\" \",IF(TEMA=\"NOMBRE\",VLOOKUP($D86,Datos[#All],8,0),IF(TEMA=\"IDENTIFICACIÓN\",VLOOKUP($D86,Busqueda_Cedula,7,0)))),\" \")","v":" "},{"$f":"IFERROR(IF($D86=0,\" \",IF(TEMA=\"NOMBRE\",VLOOKUP($D86,Datos[#All],9,0),IF(TEMA=\"IDENTIFICACIÓN\",VLOOKUP($D86,Busqueda_Cedula,8,0)))),\" \")","v":" "},{"$f":"IFERROR(IF($D86=0,\" \",IF(TEMA=\"NOMBRE\",VLOOKUP($D86,Datos[#All],10,0),IF(TEMA=\"IDENTIFICACIÓN\",VLOOKUP($D86,Busqueda_Cedula,9,0)))),\" \")","v":" "},{"$f":"IFERROR(IF($D86=0,\" \",IF(TEMA=\"NOMBRE\",VLOOKUP($D86,Datos[#All],11,0),IF(TEMA=\"IDENTIFICACIÓN\",VLOOKUP($D86,Busqueda_Cedula,10,0)))),\" \")","v":" "}]
[null,null,null," ",null,{"$f":"IFERROR(IF($D87=0,\" \",IF(TEMA=\"NOMBRE\",VLOOKUP($D87,Datos[#All],4,0),IF(TEMA=\"IDENTIFICACIÓN\",VLOOKUP($D87,Busqueda_Cedula,3,0)))),\" \")","v":" "},{"$f":"IFERROR(IF($D87=0,\" \",IF(TEMA=\"NOMBRE\",VLOOKUP($D87,Datos[#All],5,0),IF(TEMA=\"IDENTIFICACIÓN\",VLOOKUP($D87,Busqueda_Cedula,4,0)))),\" \")","v":" "},{"$f":"IFERROR(IF($D87=0,\" \",IF(TEMA=\"NOMBRE\",VLOOKUP($D87,Datos[#All],6,0),IF(TEMA=\"IDENTIFICACIÓN\",VLOOKUP($D87,Busqueda_Cedula,5,0)))),\" \")","v":" "},{"$f":"IFERROR(IF($D87=0,\" \",IF(TEMA=\"NOMBRE\",VLOOKUP($D87,Datos[#All],7,0),IF(TEMA=\"IDENTIFICACIÓN\",VLOOKUP($D87,Busqueda_Cedula,6,0)))),\" \")","v":" "},{"$f":"IFERROR(IF($D87=0,\" \",IF(TEMA=\"NOMBRE\",VLOOKUP($D87,Datos[#All],8,0),IF(TEMA=\"IDENTIFICACIÓN\",VLOOKUP($D87,Busqueda_Cedula,7,0)))),\" \")","v":" "},{"$f":"IFERROR(IF($D87=0,\" \",IF(TEMA=\"NOMBRE\",VLOOKUP($D87,Datos[#All],9,0),IF(TEMA=\"IDENTIFICACIÓN\",VLOOKUP($D87,Busqueda_Cedula,8,0)))),\" \")","v":" "},{"$f":"IFERROR(IF($D87=0,\" \",IF(TEMA=\"NOMBRE\",VLOOKUP($D87,Datos[#All],10,0),IF(TEMA=\"IDENTIFICACIÓN\",VLOOKUP($D87,Busqueda_Cedula,9,0)))),\" \")","v":" "},{"$f":"IFERROR(IF($D87=0,\" \",IF(TEMA=\"NOMBRE\",VLOOKUP($D87,Datos[#All],11,0),IF(TEMA=\"IDENTIFICACIÓN\",VLOOKUP($D87,Busqueda_Cedula,10,0)))),\" \")","v":" "}]
[null,null,null," ",null,{"$f":"IFERROR(IF($D88=0,\" \",IF(TEMA=\"NOMBRE\",VLOOKUP($D88,Datos[#All],4,0),IF(TEMA=\"IDENTIFICACIÓN\",VLOOKUP($D88,Busqueda_Cedula,3,0)))),\" \")","v":" "},{"$f":"IFERROR(IF($D88=0,\" \",IF(TEMA=\"NOMBRE\",VLOOKUP($D88,Datos[#All],5,0),IF(TEMA=\"IDENTIFICACIÓN\",VLOOKUP($D88,Busqueda_Cedula,4,0)))),\" \")","v":" "},{"$f":"IFERROR(IF($D88=0,\" \",IF(TEMA=\"NOMBRE\",VLOOKUP($D88,Datos[#All],6,0),IF(TEMA=\"IDENTIFICACIÓN\",VLOOKUP($D88,Busqueda_Cedula,5,0)))),\" \")","v":" "},{"$f":"IFERROR(IF($D88=0,\" \",IF(TEMA=\"NOMBRE\",VLOOKUP($D88,Datos[#All],7,0),IF(TEMA=\"IDENTIFICACIÓN\",VLOOKUP($D88,Busqueda_Cedula,6,0)))),\" \")","v":" "},{"$f":"IFERROR(IF($D88=0,\" \",IF(TEMA=\"NOMBRE\",VLOOKUP($D88,Datos[#All],8,0),IF(TEMA=\"IDENTIFICACIÓN\",VLOOKUP($D88,Busqueda_Cedula,7,0)))),\" \")","v":" "},{"$f":"IFERROR(IF($D88=0,\" \",IF(TEMA=\"NOMBRE\",VLOOKUP($D88,Datos[#All],9,0),IF(TEMA=\"IDENTIFICACIÓN\",VLOOKUP($D88,Busqueda_Cedula,8,0)))),\" \")","v":" "},{"$f":"IFERROR(IF($D88=0,\" \",IF(TEMA=\"NOMBRE\",VLOOKUP($D88,Datos[#All],10,0),IF(TEMA=\"IDENTIFICACIÓN\",VLOOKUP($D88,Busqueda_Cedula,9,0)))),\" \")","v":" "},{"$f":"IFERROR(IF($D88=0,\" \",IF(TEMA=\"NOMBRE\",VLOOKUP($D88,Datos[#All],11,0),IF(TEMA=\"IDENTIFICACIÓN\",VLOOKUP($D88,Busqueda_Cedula,10,0)))),\" \")","v":" "}]
[null,null,null," ",null,{"$f":"IFERROR(IF($D89=0,\" \",IF(TEMA=\"NOMBRE\",VLOOKUP($D89,Datos[#All],4,0),IF(TEMA=\"IDENTIFICACIÓN\",VLOOKUP($D89,Busqueda_Cedula,3,0)))),\" \")","v":" "},{"$f":"IFERROR(IF($D89=0,\" \",IF(TEMA=\"NOMBRE\",VLOOKUP($D89,Datos[#All],5,0),IF(TEMA=\"IDENTIFICACIÓN\",VLOOKUP($D89,Busqueda_Cedula,4,0)))),\" \")","v":" "},{"$f":"IFERROR(IF($D89=0,\" \",IF(TEMA=\"NOMBRE\",VLOOKUP($D89,Datos[#All],6,0),IF(TEMA=\"IDENTIFICACIÓN\",VLOOKUP($D89,Busqueda_Cedula,5,0)))),\" \")","v":" "},{"$f":"IFERROR(IF($D89=0,\" \",IF(TEMA=\"NOMBRE\",VLOOKUP($D89,Datos[#All],7,0),IF(TEMA=\"IDENTIFICACIÓN\",VLOOKUP($D89,Busqueda_Cedula,6,0)))),\" \")","v":" "},{"$f":"IFERROR(IF($D89=0,\" \",IF(TEMA=\"NOMBRE\",VLOOKUP($D89,Datos[#All],8,0),IF(TEMA=\"IDENTIFICACIÓN\",VLOOKUP($D89,Busqueda_Cedula,7,0)))),\" \")","v":" "},{"$f":"IFERROR(IF($D89=0,\" \",IF(TEMA=\"NOMBRE\",VLOOKUP($D89,Datos[#All],9,0),IF(TEMA=\"IDENTIFICACIÓN\",VLOOKUP($D89,Busqueda_Cedula,8,0)))),\" \")","v":" "},{"$f":"IFERROR(IF($D89=0,\" \",IF(TEMA=\"NOMBRE\",VLOOKUP($D89,Datos[#All],10,0),IF(TEMA=\"IDENTIFICACIÓN\",VLOOKUP($D89,Busqueda_Cedula,9,0)))),\" \")","v":" "},{"$f":"IFERROR(IF($D89=0,\" \",IF(TEMA=\"NOMBRE\",VLOOKUP($D89,Datos[#All],11,0),IF(TEMA=\"IDENTIFICACIÓN\",VLOOKUP($D89,Busqueda_Cedula,10,0)))),\" \")","v":" "}]
[null,null,null," ",null,{"$f":"IFERROR(IF($D90=0,\" \",IF(TEMA=\"NOMBRE\",VLOOKUP($D90,Datos[#All],4,0),IF(TEMA=\"IDENTIFICACIÓN\",VLOOKUP($D90,Busqueda_Cedula,3,0)))),\" \")","v":" "},{"$f":"IFERROR(IF($D90=0,\" \",IF(TEMA=\"NOMBRE\",VLOOKUP($D90,Datos[#All],5,0),IF(TEMA=\"IDENTIFICACIÓN\",VLOOKUP($D90,Busqueda_Cedula,4,0)))),\" \")","v":" "},{"$f":"IFERROR(IF($D90=0,\" \",IF(TEMA=\"NOMBRE\",VLOOKUP($D90,Datos[#All],6,0),IF(TEMA=\"IDENTIFICACIÓN\",VLOOKUP($D90,Busqueda_Cedula,5,0)))),\" \")","v":" "},{"$f":"IFERROR(IF($D90=0,\" \",IF(TEMA=\"NOMBRE\",VLOOKUP($D90,Datos[#All],7,0),IF(TEMA=\"IDENTIFICACIÓN\",VLOOKUP($D90,Busqueda_Cedula,6,0)))),\" \")","v":" "},{"$f":"IFERROR(IF($D90=0,\" \",IF(TEMA=\"NOMBRE\",VLOOKUP($D90,Datos[#All],8,0),IF(TEMA=\"IDENTIFICACIÓN\",VLOOKUP($D90,Busqueda_Cedula,7,0)))),\" \")","v":" "},{"$f":"IFERROR(IF($D90=0,\" \",IF(TEMA=\"NOMBRE\",VLOOKUP($D90,Datos[#All],9,0),IF(TEMA=\"IDENTIFICACIÓN\",VLOOKUP($D90,Busqueda_Cedula,8,0)))),\" \")","v":" "},{"$f":"IFERROR(IF($D90=0,\" \",IF(TEMA=\"NOMBRE\",VLOOKUP($D90,Datos[#All],10,0),IF(TEMA=\"IDENTIFICACIÓN\",VLOOKUP($D90,Busqueda_Cedula,9,0)))),\" \")","v":" "},{"$f":"IFERROR(IF($D90=0,\" \",IF(TEMA=\"NOMBRE\",VLOOKUP($D90,Datos[#All],11,0),IF(TEMA=\"IDENTIFICACIÓN\",VLOOKUP($D90,Busqueda_Cedula,10,0)))),\" \")","v":" "}]
[null,null,null," ",null,{"$f":"IFERROR(IF($D91=0,\" \",IF(TEMA=\"NOMBRE\",VLOOKUP($D91,Datos[#All],4,0),IF(TEMA=\"IDENTIFICACIÓN\",VLOOKUP($D91,Busqueda_Cedula,3,0)))),\" \")","v":" "},{"$f":"IFERROR(IF($D91=0,\" \",IF(TEMA=\"NOMBRE\",VLOOKUP($D91,Datos[#All],5,0),IF(TEMA=\"IDENTIFICACIÓN\",VLOOKUP($D91,Busqueda_Cedula,4,0)))),\" \")","v":" "},{"$f":"IFERROR(IF($D91=0,\" \",IF(TEMA=\"NOMBRE\",VLOOKUP($D91,Datos[#All],6,0),IF(TEMA=\"IDENTIFICACIÓN\",VLOOKUP($D91,Busqueda_Cedula,5,0)))),\" \")","v":" "},{"$f":"IFERROR(IF($D91=0,\" \",IF(TEMA=\"NOMBRE\",VLOOKUP($D91,Datos[#All],7,0),IF(TEMA=\"IDENTIFICACIÓN\",VLOOKUP($D91,Busqueda_Cedula,6,0)))),\" \")","v":" "},{"$f":"IFERROR(IF($D91=0,\" \",IF(TEMA=\"NOMBRE\",VLOOKUP($D91,Datos[#All],8,0),IF(TEMA=\"IDENTIFICACIÓN\",VLOOKUP($D91,Busqueda_Cedula,7,0)))),\" \")","v":" "},{"$f":"IFERROR(IF($D91=0,\" \",IF(TEMA=\"NOMBRE\",VLOOKUP($D91,Datos[#All],9,0),IF(TEMA=\"IDENTIFICACIÓN\",VLOOKUP($D91,Busqueda_Cedula,8,0)))),\" \")","v":" "},{"$f":"IFERROR(IF($D91=0,\" \",IF(TEMA=\"NOMBRE\",VLOOKUP($D91,Datos[#All],10,0),IF(TEMA=\"IDENTIFICACIÓN\",VLOOKUP($D91,Busqueda_Cedula,9,0)))),\" \")","v":" "},{"$f":"IFERROR(IF($D91=0,\" \",IF(TEMA=\"NOMBRE\",VLOOKUP($D91,Datos[#All],11,0),IF(TEMA=\"IDENTIFICACIÓN\",VLOOKUP($D91,Busqueda_Cedula,10,0)))),\" \")","v":" "}]
[null,null,null," ",null,{"$f":"IFERROR(IF($D92=0,\" \",IF(TEMA=\"NOMBRE\",VLOOKUP($D92,Datos[#All],4,0),IF(TEMA=\"IDENTIFICACIÓN\",VLOOKUP($D92,Busqueda_Cedula,3,0)))),\" \")","v":" "},{"$f":"IFERROR(IF($D92=0,\" \",IF(TEMA=\"NOMBRE\",VLOOKUP($D92,Datos[#All],5,0),IF(TEMA=\"IDENTIFICACIÓN\",VLOOKUP($D92,Busqueda_Cedula,4,0)))),\" \")","v":" "},{"$f":"IFERROR(IF($D92=0,\" \",IF(TEMA=\"NOMBRE\",VLOOKUP($D92,Datos[#All],6,0),IF(TEMA=\"IDENTIFICACIÓN\",VLOOKUP($D92,Busqueda_Cedula,5,0)))),\" \")","v":" "},{"$f":"IFERROR(IF($D92=0,\" \",IF(TEMA=\"NOMBRE\",VLOOKUP($D92,Datos[#All],7,0),IF(TEMA=\"IDENTIFICACIÓN\",VLOOKUP($D92,Busqueda_Cedula,6,0)))),\" \")","v":" "},{"$f":"IFERROR(IF($D92=0,\" \",IF(TEMA=\"NOMBRE\",VLOOKUP($D92,Datos[#All],8,0),IF(TEMA=\"IDENTIFICACIÓN\",VLOOKUP($D92,Busqueda_Cedula,7,0)))),\" \")","v":" "},{"$f":"IFERROR(IF($D92=0,\" \",IF(TEMA=\"NOMBRE\",VLOOKUP($D92,Datos[#All],9,0),IF(TEMA=\"IDENTIFICACIÓN\",VLOOKUP($D92,Busqueda_Cedula,8,0)))),\" \")","v":" "},{"$f":"IFERROR(IF($D92=0,\" \",IF(TEMA=\"NOMBRE\",VLOOKUP($D92,Datos[#All],10,0),IF(TEMA=\"IDENTIFICACIÓN\",VLOOKUP($D92,Busqueda_Cedula,9,0)))),\" \")","v":" "},{"$f":"IFERROR(IF($D92=0,\" \",IF(TEMA=\"NOMBRE\",VLOOKUP($D92,Datos[#All],11,0),IF(TEMA=\"IDENTIFICACIÓN\",VLOOKUP($D92,Busqueda_Cedula,10,0)))),\" \")","v":" "}]
[null,null,null," ",null,{"$f":"IFERROR(IF($D93=0,\" \",IF(TEMA=\"NOMBRE\",VLOOKUP($D93,Datos[#All],4,0),IF(TEMA=\"IDENTIFICACIÓN\",VLOOKUP($D93,Busqueda_Cedula,3,0)))),\" \")","v":" "},{"$f":"IFERROR(IF($D93=0,\" \",IF(TEMA=\"NOMBRE\",VLOOKUP($D93,Datos[#All],5,0),IF(TEMA=\"IDENTIFICACIÓN\",VLOOKUP($D93,Busqueda_Cedula,4,0)))),\" \")","v":" "},{"$f":"IFERROR(IF($D93=0,\" \",IF(TEMA=\"NOMBRE\",VLOOKUP($D93,Datos[#All],6,0),IF(TEMA=\"IDENTIFICACIÓN\",VLOOKUP($D93,Busqueda_Cedula,5,0)))),\" \")","v":" "},{"$f":"IFERROR(IF($D93=0,\" \",IF(TEMA=\"NOMBRE\",VLOOKUP($D93,Datos[#All],7,0),IF(TEMA=\"IDENTIFICACIÓN\",VLOOKUP($D93,Busqueda_Cedula,6,0)))),\" \")","v":" "},{"$f":"IFERROR(IF($D93=0,\" \",IF(TEMA=\"NOMBRE\",VLOOKUP($D93,Datos[#All],8,0),IF(TEMA=\"IDENTIFICACIÓN\",VLOOKUP($D93,Busqueda_Cedula,7,0)))),\" \")","v":" "},{"$f":"IFERROR(IF($D93=0,\" \",IF(TEMA=\"NOMBRE\",VLOOKUP($D93,Datos[#All],9,0),IF(TEMA=\"IDENTIFICACIÓN\",VLOOKUP($D93,Busqueda_Cedula,8,0)))),\" \")","v":" "},{"$f":"IFERROR(IF($D93=0,\" \",IF(TEMA=\"NOMBRE\",VLOOKUP($D93,Datos[#All],10,0),IF(TEMA=\"IDENTIFICACIÓN\",VLOOKUP($D93,Busqueda_Cedula,9,0)))),\" \")","v":" "},{"$f":"IFERROR(IF($D93=0,\" \",IF(TEMA=\"NOMBRE\",VLOOKUP($D93,Datos[#All],11,0),IF(TEMA=\"IDENTIFICACIÓN\",VLOOKUP($D93,Busqueda_Cedula,10,0)))),\" \")","v":" "}]
[null,null,null," ",null,{"$f":"IFERROR(IF($D94=0,\" \",IF(TEMA=\"NOMBRE\",VLOOKUP($D94,Datos[#All],4,0),IF(TEMA=\"IDENTIFICACIÓN\",VLOOKUP($D94,Busqueda_Cedula,3,0)))),\" \")","v":" "},{"$f":"IFERROR(IF($D94=0,\" \",IF(TEMA=\"NOMBRE\",VLOOKUP($D94,Datos[#All],5,0),IF(TEMA=\"IDENTIFICACIÓN\",VLOOKUP($D94,Busqueda_Cedula,4,0)))),\" \")","v":" "},{"$f":"IFERROR(IF($D94=0,\" \",IF(TEMA=\"NOMBRE\",VLOOKUP($D94,Datos[#All],6,0),IF(TEMA=\"IDENTIFICACIÓN\",VLOOKUP($D94,Busqueda_Cedula,5,0)))),\" \")","v":" "},{"$f":"IFERROR(IF($D94=0,\" \",IF(TEMA=\"NOMBRE\",VLOOKUP($D94,Datos[#All],7,0),IF(TEMA=\"IDENTIFICACIÓN\",VLOOKUP($D94,Busqueda_Cedula,6,0)))),\" \")","v":" "},{"$f":"IFERROR(IF($D94=0,\" \",IF(TEMA=\"NOMBRE\",VLOOKUP($D94,Datos[#All],8,0),IF(TEMA=\"IDENTIFICACIÓN\",VLOOKUP($D94,Busqueda_Cedula,7,0)))),\" \")","v":" "},{"$f":"IFERROR(IF($D94=0,\" \",IF(TEMA=\"NOMBRE\",VLOOKUP($D94,Datos[#All],9,0),IF(TEMA=\"IDENTIFICACIÓN\",VLOOKUP($D94,Busqueda_Cedula,8,0)))),\" \")","v":" "},{"$f":"IFERROR(IF($D94=0,\" \",IF(TEMA=\"NOMBRE\",VLOOKUP($D94,Datos[#All],10,0),IF(TEMA=\"IDENTIFICACIÓN\",VLOOKUP($D94,Busqueda_Cedula,9,0)))),\" \")","v":" "},{"$f":"IFERROR(IF($D94=0,\" \",IF(TEMA=\"NOMBRE\",VLOOKUP($D94,Datos[#All],11,0),IF(TEMA=\"IDENTIFICACIÓN\",VLOOKUP($D94,Busqueda_Cedula,10,0)))),\" \")","v":" "}]
[null,null,null," ",null,{"$f":"IFERROR(IF($D95=0,\" \",IF(TEMA=\"NOMBRE\",VLOOKUP($D95,Datos[#All],4,0),IF(TEMA=\"IDENTIFICACIÓN\",VLOOKUP($D95,Busqueda_Cedula,3,0)))),\" \")","v":" "},{"$f":"IFERROR(IF($D95=0,\" \",IF(TEMA=\"NOMBRE\",VLOOKUP($D95,Datos[#All],5,0),IF(TEMA=\"IDENTIFICACIÓN\",VLOOKUP($D95,Busqueda_Cedula,4,0)))),\" \")","v":" "},{"$f":"IFERROR(IF($D95=0,\" \",IF(TEMA=\"NOMBRE\",VLOOKUP($D95,Datos[#All],6,0),IF(TEMA=\"IDENTIFICACIÓN\",VLOOKUP($D95,Busqueda_Cedula,5,0)))),\" \")","v":" "},{"$f":"IFERROR(IF($D95=0,\" \",IF(TEMA=\"NOMBRE\",VLOOKUP($D95,Datos[#All],7,0),IF(TEMA=\"IDENTIFICACIÓN\",VLOOKUP($D95,Busqueda_Cedula,6,0)))),\" \")","v":" "},{"$f":"IFERROR(IF($D95=0,\" \",IF(TEMA=\"NOMBRE\",VLOOKUP($D95,Datos[#All],8,0),IF(TEMA=\"IDENTIFICACIÓN\",VLOOKUP($D95,Busqueda_Cedula,7,0)))),\" \")","v":" "},{"$f":"IFERROR(IF($D95=0,\" \",IF(TEMA=\"NOMBRE\",VLOOKUP($D95,Datos[#All],9,0),IF(TEMA=\"IDENTIFICACIÓN\",VLOOKUP($D95,Busqueda_Cedula,8,0)))),\" \")","v":" "},{"$f":"IFERROR(IF($D95=0,\" \",IF(TEMA=\"NOMBRE\",VLOOKUP($D95,Datos[#All],10,0),IF(TEMA=\"IDENTIFICACIÓN\",VLOOKUP($D95,Busqueda_Cedula,9,0)))),\" \")","v":" "},{"$f":"IFERROR(IF($D95=0,\" \",IF(TEMA=\"NOMBRE\",VLOOKUP($D95,Datos[#All],11,0),IF(TEMA=\"IDENTIFICACIÓN\",VLOOKUP($D95,Busqueda_Cedula,10,0)))),\" \")","v":" "}]
[null,null,null," ",null,{"$f":"IFERROR(IF($D96=0,\" \",IF(TEMA=\"NOMBRE\",VLOOKUP($D96,Datos[#All],4,0),IF(TEMA=\"IDENTIFICACIÓN\",VLOOKUP($D96,Busqueda_Cedula,3,0)))),\" \")","v":" "},{"$f":"IFERROR(IF($D96=0,\" \",IF(TEMA=\"NOMBRE\",VLOOKUP($D96,Datos[#All],5,0),IF(TEMA=\"IDENTIFICACIÓN\",VLOOKUP($D96,Busqueda_Cedula,4,0)))),\" \")","v":" "},{"$f":"IFERROR(IF($D96=0,\" \",IF(TEMA=\"NOMBRE\",VLOOKUP($D96,Datos[#All],6,0),IF(TEMA=\"IDENTIFICACIÓN\",VLOOKUP($D96,Busqueda_Cedula,5,0)))),\" \")","v":" "},{"$f":"IFERROR(IF($D96=0,\" \",IF(TEMA=\"NOMBRE\",VLOOKUP($D96,Datos[#All],7,0),IF(TEMA=\"IDENTIFICACIÓN\",VLOOKUP($D96,Busqueda_Cedula,6,0)))),\" \")","v":" "},{"$f":"IFERROR(IF($D96=0,\" \",IF(TEMA=\"NOMBRE\",VLOOKUP($D96,Datos[#All],8,0),IF(TEMA=\"IDENTIFICACIÓN\",VLOOKUP($D96,Busqueda_Cedula,7,0)))),\" \")","v":" "},{"$f":"IFERROR(IF($D96=0,\" \",IF(TEMA=\"NOMBRE\",VLOOKUP($D96,Datos[#All],9,0),IF(TEMA=\"IDENTIFICACIÓN\",VLOOKUP($D96,Busqueda_Cedula,8,0)))),\" \")","v":" "},{"$f":"IFERROR(IF($D96=0,\" \",IF(TEMA=\"NOMBRE\",VLOOKUP($D96,Datos[#All],10,0),IF(TEMA=\"IDENTIFICACIÓN\",VLOOKUP($D96,Busqueda_Cedula,9,0)))),\" \")","v":" "},{"$f":"IFERROR(IF($D96=0,\" \",IF(TEMA=\"NOMBRE\",VLOOKUP($D96,Datos[#All],11,0),IF(TEMA=\"IDENTIFICACIÓN\",VLOOKUP($D96,Busqueda_Cedula,10,0)))),\" \")","v":" "}]
[null,null,null," ",null,{"$f":"IFERROR(IF($D97=0,\" \",IF(TEMA=\"NOMBRE\",VLOOKUP($D97,Datos[#All],4,0),IF(TEMA=\"IDENTIFICACIÓN\",VLOOKUP($D97,Busqueda_Cedula,3,0)))),\" \")","v":" "},{"$f":"IFERROR(IF($D97=0,\" \",IF(TEMA=\"NOMBRE\",VLOOKUP($D97,Datos[#All],5,0),IF(TEMA=\"IDENTIFICACIÓN\",VLOOKUP($D97,Busqueda_Cedula,4,0)))),\" \")","v":" "},{"$f":"IFERROR(IF($D97=0,\" \",IF(TEMA=\"NOMBRE\",VLOOKUP($D97,Datos[#All],6,0),IF(TEMA=\"IDENTIFICACIÓN\",VLOOKUP($D97,Busqueda_Cedula,5,0)))),\" \")","v":" "},{"$f":"IFERROR(IF($D97=0,\" \",IF(TEMA=\"NOMBRE\",VLOOKUP($D97,Datos[#All],7,0),IF(TEMA=\"IDENTIFICACIÓN\",VLOOKUP($D97,Busqueda_Cedula,6,0)))),\" \")","v":" "},{"$f":"IFERROR(IF($D97=0,\" \",IF(TEMA=\"NOMBRE\",VLOOKUP($D97,Datos[#All],8,0),IF(TEMA=\"IDENTIFICACIÓN\",VLOOKUP($D97,Busqueda_Cedula,7,0)))),\" \")","v":" "},{"$f":"IFERROR(IF($D97=0,\" \",IF(TEMA=\"NOMBRE\",VLOOKUP($D97,Datos[#All],9,0),IF(TEMA=\"IDENTIFICACIÓN\",VLOOKUP($D97,Busqueda_Cedula,8,0)))),\" \")","v":" "},{"$f":"IFERROR(IF($D97=0,\" \",IF(TEMA=\"NOMBRE\",VLOOKUP($D97,Datos[#All],10,0),IF(TEMA=\"IDENTIFICACIÓN\",VLOOKUP($D97,Busqueda_Cedula,9,0)))),\" \")","v":" "},{"$f":"IFERROR(IF($D97=0,\" \",IF(TEMA=\"NOMBRE\",VLOOKUP($D97,Datos[#All],11,0),IF(TEMA=\"IDENTIFICACIÓN\",VLOOKUP($D97,Busqueda_Cedula,10,0)))),\" \")","v":" "}]
[null,null,null," ",null,{"$f":"IFERROR(IF($D98=0,\" \",IF(TEMA=\"NOMBRE\",VLOOKUP($D98,Datos[#All],4,0),IF(TEMA=\"IDENTIFICACIÓN\",VLOOKUP($D98,Busqueda_Cedula,3,0)))),\" \")","v":" "},{"$f":"IFERROR(IF($D98=0,\" \",IF(TEMA=\"NOMBRE\",VLOOKUP($D98,Datos[#All],5,0),IF(TEMA=\"IDENTIFICACIÓN\",VLOOKUP($D98,Busqueda_Cedula,4,0)))),\" \")","v":" "},{"$f":"IFERROR(IF($D98=0,\" \",IF(TEMA=\"NOMBRE\",VLOOKUP($D98,Datos[#All],6,0),IF(TEMA=\"IDENTIFICACIÓN\",VLOOKUP($D98,Busqueda_Cedula,5,0)))),\" \")","v":" "},{"$f":"IFERROR(IF($D98=0,\" \",IF(TEMA=\"NOMBRE\",VLOOKUP($D98,Datos[#All],7,0),IF(TEMA=\"IDENTIFICACIÓN\",VLOOKUP($D98,Busqueda_Cedula,6,0)))),\" \")","v":" "},{"$f":"IFERROR(IF($D98=0,\" \",IF(TEMA=\"NOMBRE\",VLOOKUP($D98,Datos[#All],8,0),IF(TEMA=\"IDENTIFICACIÓN\",VLOOKUP($D98,Busqueda_Cedula,7,0)))),\" \")","v":" "},{"$f":"IFERROR(IF($D98=0,\" \",IF(TEMA=\"NOMBRE\",VLOOKUP($D98,Datos[#All],9,0),IF(TEMA=\"IDENTIFICACIÓN\",VLOOKUP($D98,Busqueda_Cedula,8,0)))),\" \")","v":" "},{"$f":"IFERROR(IF($D98=0,\" \",IF(TEMA=\"NOMBRE\",VLOOKUP($D98,Datos[#All],10,0),IF(TEMA=\"IDENTIFICACIÓN\",VLOOKUP($D98,Busqueda_Cedula,9,0)))),\" \")","v":" "},{"$f":"IFERROR(IF($D98=0,\" \",IF(TEMA=\"NOMBRE\",VLOOKUP($D98,Datos[#All],11,0),IF(TEMA=\"IDENTIFICACIÓN\",VLOOKUP($D98,Busqueda_Cedula,10,0)))),\" \")","v":" "}]
[null,null,null," ",null,{"$f":"IFERROR(IF($D99=0,\" \",IF(TEMA=\"NOMBRE\",VLOOKUP($D99,Datos[#All],4,0),IF(TEMA=\"IDENTIFICACIÓN\",VLOOKUP($D99,Busqueda_Cedula,3,0)))),\" \")","v":" "},{"$f":"IFERROR(IF($D99=0,\" \",IF(TEMA=\"NOMBRE\",VLOOKUP($D99,Datos[#All],5,0),IF(TEMA=\"IDENTIFICACIÓN\",VLOOKUP($D99,Busqueda_Cedula,4,0)))),\" \")","v":" "},{"$f":"IFERROR(IF($D99=0,\" \",IF(TEMA=\"NOMBRE\",VLOOKUP($D99,Datos[#All],6,0),IF(TEMA=\"IDENTIFICACIÓN\",VLOOKUP($D99,Busqueda_Cedula,5,0)))),\" \")","v":" "},{"$f":"IFERROR(IF($D99=0,\" \",IF(TEMA=\"NOMBRE\",VLOOKUP($D99,Datos[#All],7,0),IF(TEMA=\"IDENTIFICACIÓN\",VLOOKUP($D99,Busqueda_Cedula,6,0)))),\" \")","v":" "},{"$f":"IFERROR(IF($D99=0,\" \",IF(TEMA=\"NOMBRE\",VLOOKUP($D99,Datos[#All],8,0),IF(TEMA=\"IDENTIFICACIÓN\",VLOOKUP($D99,Busqueda_Cedula,7,0)))),\" \")","v":" "},{"$f":"IFERROR(IF($D99=0,\" \",IF(TEMA=\"NOMBRE\",VLOOKUP($D99,Datos[#All],9,0),IF(TEMA=\"IDENTIFICACIÓN\",VLOOKUP($D99,Busqueda_Cedula,8,0)))),\" \")","v":" "},{"$f":"IFERROR(IF($D99=0,\" \",IF(TEMA=\"NOMBRE\",VLOOKUP($D99,Datos[#All],10,0),IF(TEMA=\"IDENTIFICACIÓN\",VLOOKUP($D99,Busqueda_Cedula,9,0)))),\" \")","v":" "},{"$f":"IFERROR(IF($D99=0,\" \",IF(TEMA=\"NOMBRE\",VLOOKUP($D99,Datos[#All],11,0),IF(TEMA=\"IDENTIFICACIÓN\",VLOOKUP($D99,Busqueda_Cedula,10,0)))),\" \")","v":" "}]
[null,null,null," ",null,{"$f":"IFERROR(IF($D100=0,\" \",IF(TEMA=\"NOMBRE\",VLOOKUP($D100,Datos[#All],4,0),IF(TEMA=\"IDENTIFICACIÓN\",VLOOKUP($D100,Busqueda_Cedula,3,0)))),\" \")","v":" "},{"$f":"IFERROR(IF($D100=0,\" \",IF(TEMA=\"NOMBRE\",VLOOKUP($D100,Datos[#All],5,0),IF(TEMA=\"IDENTIFICACIÓN\",VLOOKUP($D100,Busqueda_Cedula,4,0)))),\" \")","v":" "},{"$f":"IFERROR(IF($D100=0,\" \",IF(TEMA=\"NOMBRE\",VLOOKUP($D100,Datos[#All],6,0),IF(TEMA=\"IDENTIFICACIÓN\",VLOOKUP($D100,Busqueda_Cedula,5,0)))),\" \")","v":" "},{"$f":"IFERROR(IF($D100=0,\" \",IF(TEMA=\"NOMBRE\",VLOOKUP($D100,Datos[#All],7,0),IF(TEMA=\"IDENTIFICACIÓN\",VLOOKUP($D100,Busqueda_Cedula,6,0)))),\" \")","v":" "},{"$f":"IFERROR(IF($D100=0,\" \",IF(TEMA=\"NOMBRE\",VLOOKUP($D100,Datos[#All],8,0),IF(TEMA=\"IDENTIFICACIÓN\",VLOOKUP($D100,Busqueda_Cedula,7,0)))),\" \")","v":" "},{"$f":"IFERROR(IF($D100=0,\" \",IF(TEMA=\"NOMBRE\",VLOOKUP($D100,Datos[#All],9,0),IF(TEMA=\"IDENTIFICACIÓN\",VLOOKUP($D100,Busqueda_Cedula,8,0)))),\" \")","v":" "},{"$f":"IFERROR(IF($D100=0,\" \",IF(TEMA=\"NOMBRE\",VLOOKUP($D100,Datos[#All],10,0),IF(TEMA=\"IDENTIFICACIÓN\",VLOOKUP($D100,Busqueda_Cedula,9,0)))),\" \")","v":" "},{"$f":"IFERROR(IF($D100=0,\" \",IF(TEMA=\"NOMBRE\",VLOOKUP($D100,Datos[#All],11,0),IF(TEMA=\"IDENTIFICACIÓN\",VLOOKUP($D100,Busqueda_Cedula,10,0)))),\" \")","v":" "}]
[null,null,null," ",null,{"$f":"IFERROR(IF($D101=0,\" \",IF(TEMA=\"NOMBRE\",VLOOKUP($D101,Datos[#All],4,0),IF(TEMA=\"IDENTIFICACIÓN\",VLOOKUP($D101,Busqueda_Cedula,3,0)))),\" \")","v":" "},{"$f":"IFERROR(IF($D101=0,\" \",IF(TEMA=\"NOMBRE\",VLOOKUP($D101,Datos[#All],5,0),IF(TEMA=\"IDENTIFICACIÓN\",VLOOKUP($D101,Busqueda_Cedula,4,0)))),\" \")","v":" "},{"$f":"IFERROR(IF($D101=0,\" \",IF(TEMA=\"NOMBRE\",VLOOKUP($D101,Datos[#All],6,0),IF(TEMA=\"IDENTIFICACIÓN\",VLOOKUP($D101,Busqueda_Cedula,5,0)))),\" \")","v":" "},{"$f":"IFERROR(IF($D101=0,\" \",IF(TEMA=\"NOMBRE\",VLOOKUP($D101,Datos[#All],7,0),IF(TEMA=\"IDENTIFICACIÓN\",VLOOKUP($D101,Busqueda_Cedula,6,0)))),\" \")","v":" "},{"$f":"IFERROR(IF($D101=0,\" \",IF(TEMA=\"NOMBRE\",VLOOKUP($D101,Datos[#All],8,0),IF(TEMA=\"IDENTIFICACIÓN\",VLOOKUP($D101,Busqueda_Cedula,7,0)))),\" \")","v":" "},{"$f":"IFERROR(IF($D101=0,\" \",IF(TEMA=\"NOMBRE\",VLOOKUP($D101,Datos[#All],9,0),IF(TEMA=\"IDENTIFICACIÓN\",VLOOKUP($D101,Busqueda_Cedula,8,0)))),\" \")","v":" "},{"$f":"IFERROR(IF($D101=0,\" \",IF(TEMA=\"NOMBRE\",VLOOKUP($D101,Datos[#All],10,0),IF(TEMA=\"IDENTIFICACIÓN\",VLOOKUP($D101,Busqueda_Cedula,9,0)))),\" \")","v":" "},{"$f":"IFERROR(IF($D101=0,\" \",IF(TEMA=\"NOMBRE\",VLOOKUP($D101,Datos[#All],11,0),IF(TEMA=\"IDENTIFICACIÓN\",VLOOKUP($D101,Busqueda_Cedula,10,0)))),\" \")","v":" "}]
[null,null,null," ",null,{"$f":"IFERROR(IF($D102=0,\" \",IF(TEMA=\"NOMBRE\",VLOOKUP($D102,Datos[#All],4,0),IF(TEMA=\"IDENTIFICACIÓN\",VLOOKUP($D102,Busqueda_Cedula,3,0)))),\" \")","v":" "},{"$f":"IFERROR(IF($D102=0,\" \",IF(TEMA=\"NOMBRE\",VLOOKUP($D102,Datos[#All],5,0),IF(TEMA=\"IDENTIFICACIÓN\",VLOOKUP($D102,Busqueda_Cedula,4,0)))),\" \")","v":" "},{"$f":"IFERROR(IF($D102=0,\" \",IF(TEMA=\"NOMBRE\",VLOOKUP($D102,Datos[#All],6,0),IF(TEMA=\"IDENTIFICACIÓN\",VLOOKUP($D102,Busqueda_Cedula,5,0)))),\" \")","v":" "},{"$f":"IFERROR(IF($D102=0,\" \",IF(TEMA=\"NOMBRE\",VLOOKUP($D102,Datos[#All],7,0),IF(TEMA=\"IDENTIFICACIÓN\",VLOOKUP($D102,Busqueda_Cedula,6,0)))),\" \")","v":" "},{"$f":"IFERROR(IF($D102=0,\" \",IF(TEMA=\"NOMBRE\",VLOOKUP($D102,Datos[#All],8,0),IF(TEMA=\"IDENTIFICACIÓN\",VLOOKUP($D102,Busqueda_Cedula,7,0)))),\" \")","v":" "},{"$f":"IFERROR(IF($D102=0,\" \",IF(TEMA=\"NOMBRE\",VLOOKUP($D102,Datos[#All],9,0),IF(TEMA=\"IDENTIFICACIÓN\",VLOOKUP($D102,Busqueda_Cedula,8,0)))),\" \")","v":" "},{"$f":"IFERROR(IF($D102=0,\" \",IF(TEMA=\"NOMBRE\",VLOOKUP($D102,Datos[#All],10,0),IF(TEMA=\"IDENTIFICACIÓN\",VLOOKUP($D102,Busqueda_Cedula,9,0)))),\" \")","v":" "},{"$f":"IFERROR(IF($D102=0,\" \",IF(TEMA=\"NOMBRE\",VLOOKUP($D102,Datos[#All],11,0),IF(TEMA=\"IDENTIFICACIÓN\",VLOOKUP($D102,Busqueda_Cedula,10,0)))),\" \")","v":" "}]
[null,null,null," ",null,{"$f":"IFERROR(IF($D103=0,\" \",IF(TEMA=\"NOMBRE\",VLOOKUP($D103,Datos[#All],4,0),IF(TEMA=\"IDENTIFICACIÓN\",VLOOKUP($D103,Busqueda_Cedula,3,0)))),\" \")","v":" "},{"$f":"IFERROR(IF($D103=0,\" \",IF(TEMA=\"NOMBRE\",VLOOKUP($D103,Datos[#All],5,0),IF(TEMA=\"IDENTIFICACIÓN\",VLOOKUP($D103,Busqueda_Cedula,4,0)))),\" \")","v":" "},{"$f":"IFERROR(IF($D103=0,\" \",IF(TEMA=\"NOMBRE\",VLOOKUP($D103,Datos[#All],6,0),IF(TEMA=\"IDENTIFICACIÓN\",VLOOKUP($D103,Busqueda_Cedula,5,0)))),\" \")","v":" "},{"$f":"IFERROR(IF($D103=0,\" \",IF(TEMA=\"NOMBRE\",VLOOKUP($D103,Datos[#All],7,0),IF(TEMA=\"IDENTIFICACIÓN\",VLOOKUP($D103,Busqueda_Cedula,6,0)))),\" \")","v":" "},{"$f":"IFERROR(IF($D103=0,\" \",IF(TEMA=\"NOMBRE\",VLOOKUP($D103,Datos[#All],8,0),IF(TEMA=\"IDENTIFICACIÓN\",VLOOKUP($D103,Busqueda_Cedula,7,0)))),\" \")","v":" "},{"$f":"IFERROR(IF($D103=0,\" \",IF(TEMA=\"NOMBRE\",VLOOKUP($D103,Datos[#All],9,0),IF(TEMA=\"IDENTIFICACIÓN\",VLOOKUP($D103,Busqueda_Cedula,8,0)))),\" \")","v":" "},{"$f":"IFERROR(IF($D103=0,\" \",IF(TEMA=\"NOMBRE\",VLOOKUP($D103,Datos[#All],10,0),IF(TEMA=\"IDENTIFICACIÓN\",VLOOKUP($D103,Busqueda_Cedula,9,0)))),\" \")","v":" "},{"$f":"IFERROR(IF($D103=0,\" \",IF(TEMA=\"NOMBRE\",VLOOKUP($D103,Datos[#All],11,0),IF(TEMA=\"IDENTIFICACIÓN\",VLOOKUP($D103,Busqueda_Cedula,10,0)))),\" \")","v":" "}]
[null,null,null," ",null,{"$f":"IFERROR(IF($D104=0,\" \",IF(TEMA=\"NOMBRE\",VLOOKUP($D104,Datos[#All],4,0),IF(TEMA=\"IDENTIFICACIÓN\",VLOOKUP($D104,Busqueda_Cedula,3,0)))),\" \")","v":" "},{"$f":"IFERROR(IF($D104=0,\" \",IF(TEMA=\"NOMBRE\",VLOOKUP($D104,Datos[#All],5,0),IF(TEMA=\"IDENTIFICACIÓN\",VLOOKUP($D104,Busqueda_Cedula,4,0)))),\" \")","v":" "},{"$f":"IFERROR(IF($D104=0,\" \",IF(TEMA=\"NOMBRE\",VLOOKUP($D104,Datos[#All],6,0),IF(TEMA=\"IDENTIFICACIÓN\",VLOOKUP($D104,Busqueda_Cedula,5,0)))),\" \")","v":" "},{"$f":"IFERROR(IF($D104=0,\" \",IF(TEMA=\"NOMBRE\",VLOOKUP($D104,Datos[#All],7,0),IF(TEMA=\"IDENTIFICACIÓN\",VLOOKUP($D104,Busqueda_Cedula,6,0)))),\" \")","v":" "},{"$f":"IFERROR(IF($D104=0,\" \",IF(TEMA=\"NOMBRE\",VLOOKUP($D104,Datos[#All],8,0),IF(TEMA=\"IDENTIFICACIÓN\",VLOOKUP($D104,Busqueda_Cedula,7,0)))),\" \")","v":" "},{"$f":"IFERROR(IF($D104=0,\" \",IF(TEMA=\"NOMBRE\",VLOOKUP($D104,Datos[#All],9,0),IF(TEMA=\"IDENTIFICACIÓN\",VLOOKUP($D104,Busqueda_Cedula,8,0)))),\" \")","v":" "},{"$f":"IFERROR(IF($D104=0,\" \",IF(TEMA=\"NOMBRE\",VLOOKUP($D104,Datos[#All],10,0),IF(TEMA=\"IDENTIFICACIÓN\",VLOOKUP($D104,Busqueda_Cedula,9,0)))),\" \")","v":" "},{"$f":"IFERROR(IF($D104=0,\" \",IF(TEMA=\"NOMBRE\",VLOOKUP($D104,Datos[#All],11,0),IF(TEMA=\"IDENTIFICACIÓN\",VLOOKUP($D104,Busqueda_Cedula,10,0)))),\" \")","v":" "}]
[null,null,null," ",null,{"$f":"IFERROR(IF($D105=0,\" \",IF(TEMA=\"NOMBRE\",VLOOKUP($D105,Datos[#All],4,0),IF(TEMA=\"IDENTIFICACIÓN\",VLOOKUP($D105,Busqueda_Cedula,3,0)))),\" \")","v":" "},{"$f":"IFERROR(IF($D105=0,\" \",IF(TEMA=\"NOMBRE\",VLOOKUP($D105,Datos[#All],5,0),IF(TEMA=\"IDENTIFICACIÓN\",VLOOKUP($D105,Busqueda_Cedula,4,0)))),\" \")","v":" "},{"$f":"IFERROR(IF($D105=0,\" \",IF(TEMA=\"NOMBRE\",VLOOKUP($D105,Datos[#All],6,0),IF(TEMA=\"IDENTIFICACIÓN\",VLOOKUP($D105,Busqueda_Cedula,5,0)))),\" \")","v":" "},{"$f":"IFERROR(IF($D105=0,\" \",IF(TEMA=\"NOMBRE\",VLOOKUP($D105,Datos[#All],7,0),IF(TEMA=\"IDENTIFICACIÓN\",VLOOKUP($D105,Busqueda_Cedula,6,0)))),\" \")","v":" "},{"$f":"IFERROR(IF($D105=0,\" \",IF(TEMA=\"NOMBRE\",VLOOKUP($D105,Datos[#All],8,0),IF(TEMA=\"IDENTIFICACIÓN\",VLOOKUP($D105,Busqueda_Cedula,7,0)))),\" \")","v":" "},{"$f":"IFERROR(IF($D105=0,\" \",IF(TEMA=\"NOMBRE\",VLOOKUP($D105,Datos[#All],9,0),IF(TEMA=\"IDENTIFICACIÓN\",VLOOKUP($D105,Busqueda_Cedula,8,0)))),\" \")","v":" "},{"$f":"IFERROR(IF($D105=0,\" \",IF(TEMA=\"NOMBRE\",VLOOKUP($D105,Datos[#All],10,0),IF(TEMA=\"IDENTIFICACIÓN\",VLOOKUP($D105,Busqueda_Cedula,9,0)))),\" \")","v":" "},{"$f":"IFERROR(IF($D105=0,\" \",IF(TEMA=\"NOMBRE\",VLOOKUP($D105,Datos[#All],11,0),IF(TEMA=\"IDENTIFICACIÓN\",VLOOKUP($D105,Busqueda_Cedula,10,0)))),\" \")","v":" "}]
[null,null,null," ",null,{"$f":"IFERROR(IF($D106=0,\" \",IF(TEMA=\"NOMBRE\",VLOOKUP($D106,Datos[#All],4,0),IF(TEMA=\"IDENTIFICACIÓN\",VLOOKUP($D106,Busqueda_Cedula,3,0)))),\" \")","v":" "},{"$f":"IFERROR(IF($D106=0,\" \",IF(TEMA=\"NOMBRE\",VLOOKUP($D106,Datos[#All],5,0),IF(TEMA=\"IDENTIFICACIÓN\",VLOOKUP($D106,Busqueda_Cedula,4,0)))),\" \")","v":" "},{"$f":"IFERROR(IF($D106=0,\" \",IF(TEMA=\"NOMBRE\",VLOOKUP($D106,Datos[#All],6,0),IF(TEMA=\"IDENTIFICACIÓN\",VLOOKUP($D106,Busqueda_Cedula,5,0)))),\" \")","v":" "},{"$f":"IFERROR(IF($D106=0,\" \",IF(TEMA=\"NOMBRE\",VLOOKUP($D106,Datos[#All],7,0),IF(TEMA=\"IDENTIFICACIÓN\",VLOOKUP($D106,Busqueda_Cedula,6,0)))),\" \")","v":" "},{"$f":"IFERROR(IF($D106=0,\" \",IF(TEMA=\"NOMBRE\",VLOOKUP($D106,Datos[#All],8,0),IF(TEMA=\"IDENTIFICACIÓN\",VLOOKUP($D106,Busqueda_Cedula,7,0)))),\" \")","v":" "},{"$f":"IFERROR(IF($D106=0,\" \",IF(TEMA=\"NOMBRE\",VLOOKUP($D106,Datos[#All],9,0),IF(TEMA=\"IDENTIFICACIÓN\",VLOOKUP($D106,Busqueda_Cedula,8,0)))),\" \")","v":" "},{"$f":"IFERROR(IF($D106=0,\" \",IF(TEMA=\"NOMBRE\",VLOOKUP($D106,Datos[#All],10,0),IF(TEMA=\"IDENTIFICACIÓN\",VLOOKUP($D106,Busqueda_Cedula,9,0)))),\" \")","v":" "},{"$f":"IFERROR(IF($D106=0,\" \",IF(TEMA=\"NOMBRE\",VLOOKUP($D106,Datos[#All],11,0),IF(TEMA=\"IDENTIFICACIÓN\",VLOOKUP($D106,Busqueda_Cedula,10,0)))),\" \")","v":" "}]
[null,null,null," ",null,{"$f":"IFERROR(IF($D107=0,\" \",IF(TEMA=\"NOMBRE\",VLOOKUP($D107,Datos[#All],4,0),IF(TEMA=\"IDENTIFICACIÓN\",VLOOKUP($D107,Busqueda_Cedula,3,0)))),\" \")","v":" "},{"$f":"IFERROR(IF($D107=0,\" \",IF(TEMA=\"NOMBRE\",VLOOKUP($D107,Datos[#All],5,0),IF(TEMA=\"IDENTIFICACIÓN\",VLOOKUP($D107,Busqueda_Cedula,4,0)))),\" \")","v":" "},{"$f":"IFERROR(IF($D107=0,\" \",IF(TEMA=\"NOMBRE\",VLOOKUP($D107,Datos[#All],6,0),IF(TEMA=\"IDENTIFICACIÓN\",VLOOKUP($D107,Busqueda_Cedula,5,0)))),\" \")","v":" "},{"$f":"IFERROR(IF($D107=0,\" \",IF(TEMA=\"NOMBRE\",VLOOKUP($D107,Datos[#All],7,0),IF(TEMA=\"IDENTIFICACIÓN\",VLOOKUP($D107,Busqueda_Cedula,6,0)))),\" \")","v":" "},{"$f":"IFERROR(IF($D107=0,\" \",IF(TEMA=\"NOMBRE\",VLOOKUP($D107,Datos[#All],8,0),IF(TEMA=\"IDENTIFICACIÓN\",VLOOKUP($D107,Busqueda_Cedula,7,0)))),\" \")","v":" "},{"$f":"IFERROR(IF($D107=0,\" \",IF(TEMA=\"NOMBRE\",VLOOKUP($D107,Datos[#All],9,0),IF(TEMA=\"IDENTIFICACIÓN\",VLOOKUP($D107,Busqueda_Cedula,8,0)))),\" \")","v":" "},{"$f":"IFERROR(IF($D107=0,\" \",IF(TEMA=\"NOMBRE\",VLOOKUP($D107,Datos[#All],10,0),IF(TEMA=\"IDENTIFICACIÓN\",VLOOKUP($D107,Busqueda_Cedula,9,0)))),\" \")","v":" "},{"$f":"IFERROR(IF($D107=0,\" \",IF(TEMA=\"NOMBRE\",VLOOKUP($D107,Datos[#All],11,0),IF(TEMA=\"IDENTIFICACIÓN\",VLOOKUP($D107,Busqueda_Cedula,10,0)))),\" \")","v":" "}]
[null,null,null," ",null,{"$f":"IFERROR(IF($D108=0,\" \",IF(TEMA=\"NOMBRE\",VLOOKUP($D108,Datos[#All],4,0),IF(TEMA=\"IDENTIFICACIÓN\",VLOOKUP($D108,Busqueda_Cedula,3,0)))),\" \")","v":" "},{"$f":"IFERROR(IF($D108=0,\" \",IF(TEMA=\"NOMBRE\",VLOOKUP($D108,Datos[#All],5,0),IF(TEMA=\"IDENTIFICACIÓN\",VLOOKUP($D108,Busqueda_Cedula,4,0)))),\" \")","v":" "},{"$f":"IFERROR(IF($D108=0,\" \",IF(TEMA=\"NOMBRE\",VLOOKUP($D108,Datos[#All],6,0),IF(TEMA=\"IDENTIFICACIÓN\",VLOOKUP($D108,Busqueda_Cedula,5,0)))),\" \")","v":" "},{"$f":"IFERROR(IF($D108=0,\" \",IF(TEMA=\"NOMBRE\",VLOOKUP($D108,Datos[#All],7,0),IF(TEMA=\"IDENTIFICACIÓN\",VLOOKUP($D108,Busqueda_Cedula,6,0)))),\" \")","v":" "},{"$f":"IFERROR(IF($D108=0,\" \",IF(TEMA=\"NOMBRE\",VLOOKUP($D108,Datos[#All],8,0),IF(TEMA=\"IDENTIFICACIÓN\",VLOOKUP($D108,Busqueda_Cedula,7,0)))),\" \")","v":" "},{"$f":"IFERROR(IF($D108=0,\" \",IF(TEMA=\"NOMBRE\",VLOOKUP($D108,Datos[#All],9,0),IF(TEMA=\"IDENTIFICACIÓN\",VLOOKUP($D108,Busqueda_Cedula,8,0)))),\" \")","v":" "},{"$f":"IFERROR(IF($D108=0,\" \",IF(TEMA=\"NOMBRE\",VLOOKUP($D108,Datos[#All],10,0),IF(TEMA=\"IDENTIFICACIÓN\",VLOOKUP($D108,Busqueda_Cedula,9,0)))),\" \")","v":" "},{"$f":"IFERROR(IF($D108=0,\" \",IF(TEMA=\"NOMBRE\",VLOOKUP($D108,Datos[#All],11,0),IF(TEMA=\"IDENTIFICACIÓN\",VLOOKUP($D108,Busqueda_Cedula,10,0)))),\" \")","v":" "}]
[null,null,null," ",null,{"$f":"IFERROR(IF($D109=0,\" \",IF(TEMA=\"NOMBRE\",VLOOKUP($D109,Datos[#All],4,0),IF(TEMA=\"IDENTIFICACIÓN\",VLOOKUP($D109,Busqueda_Cedula,3,0)))),\" \")","v":" "},{"$f":"IFERROR(IF($D109=0,\" \",IF(TEMA=\"NOMBRE\",VLOOKUP($D109,Datos[#All],5,0),IF(TEMA=\"IDENTIFICACIÓN\",VLOOKUP($D109,Busqueda_Cedula,4,0)))),\" \")","v":" "},{"$f":"IFERROR(IF($D109=0,\" \",IF(TEMA=\"NOMBRE\",VLOOKUP($D109,Datos[#All],6,0),IF(TEMA=\"IDENTIFICACIÓN\",VLOOKUP($D109,Busqueda_Cedula,5,0)))),\" \")","v":" "},{"$f":"IFERROR(IF($D109=0,\" \",IF(TEMA=\"NOMBRE\",VLOOKUP($D109,Datos[#All],7,0),IF(TEMA=\"IDENTIFICACIÓN\",VLOOKUP($D109,Busqueda_Cedula,6,0)))),\" \")","v":" "},{"$f":"IFERROR(IF($D109=0,\" \",IF(TEMA=\"NOMBRE\",VLOOKUP($D109,Datos[#All],8,0),IF(TEMA=\"IDENTIFICACIÓN\",VLOOKUP($D109,Busqueda_Cedula,7,0)))),\" \")","v":" "},{"$f":"IFERROR(IF($D109=0,\" \",IF(TEMA=\"NOMBRE\",VLOOKUP($D109,Datos[#All],9,0),IF(TEMA=\"IDENTIFICACIÓN\",VLOOKUP($D109,Busqueda_Cedula,8,0)))),\" \")","v":" "},{"$f":"IFERROR(IF($D109=0,\" \",IF(TEMA=\"NOMBRE\",VLOOKUP($D109,Datos[#All],10,0),IF(TEMA=\"IDENTIFICACIÓN\",VLOOKUP($D109,Busqueda_Cedula,9,0)))),\" \")","v":" "},{"$f":"IFERROR(IF($D109=0,\" \",IF(TEMA=\"NOMBRE\",VLOOKUP($D109,Datos[#All],11,0),IF(TEMA=\"IDENTIFICACIÓN\",VLOOKUP($D109,Busqueda_Cedula,10,0)))),\" \")","v":" "}]
[null,null,null," ",null,{"$f":"IFERROR(IF($D110=0,\" \",IF(TEMA=\"NOMBRE\",VLOOKUP($D110,Datos[#All],4,0),IF(TEMA=\"IDENTIFICACIÓN\",VLOOKUP($D110,Busqueda_Cedula,3,0)))),\" \")","v":" "},{"$f":"IFERROR(IF($D110=0,\" \",IF(TEMA=\"NOMBRE\",VLOOKUP($D110,Datos[#All],5,0),IF(TEMA=\"IDENTIFICACIÓN\",VLOOKUP($D110,Busqueda_Cedula,4,0)))),\" \")","v":" "},{"$f":"IFERROR(IF($D110=0,\" \",IF(TEMA=\"NOMBRE\",VLOOKUP($D110,Datos[#All],6,0),IF(TEMA=\"IDENTIFICACIÓN\",VLOOKUP($D110,Busqueda_Cedula,5,0)))),\" \")","v":" "},{"$f":"IFERROR(IF($D110=0,\" \",IF(TEMA=\"NOMBRE\",VLOOKUP($D110,Datos[#All],7,0),IF(TEMA=\"IDENTIFICACIÓN\",VLOOKUP($D110,Busqueda_Cedula,6,0)))),\" \")","v":" "},{"$f":"IFERROR(IF($D110=0,\" \",IF(TEMA=\"NOMBRE\",VLOOKUP($D110,Datos[#All],8,0),IF(TEMA=\"IDENTIFICACIÓN\",VLOOKUP($D110,Busqueda_Cedula,7,0)))),\" \")","v":" "},{"$f":"IFERROR(IF($D110=0,\" \",IF(TEMA=\"NOMBRE\",VLOOKUP($D110,Datos[#All],9,0),IF(TEMA=\"IDENTIFICACIÓN\",VLOOKUP($D110,Busqueda_Cedula,8,0)))),\" \")","v":" "},{"$f":"IFERROR(IF($D110=0,\" \",IF(TEMA=\"NOMBRE\",VLOOKUP($D110,Datos[#All],10,0),IF(TEMA=\"IDENTIFICACIÓN\",VLOOKUP($D110,Busqueda_Cedula,9,0)))),\" \")","v":" "},{"$f":"IFERROR(IF($D110=0,\" \",IF(TEMA=\"NOMBRE\",VLOOKUP($D110,Datos[#All],11,0),IF(TEMA=\"IDENTIFICACIÓN\",VLOOKUP($D110,Busqueda_Cedula,10,0)))),\" \")","v":" "}]
[null,null,null," ",null,{"$f":"IFERROR(IF($D111=0,\" \",IF(TEMA=\"NOMBRE\",VLOOKUP($D111,Datos[#All],4,0),IF(TEMA=\"IDENTIFICACIÓN\",VLOOKUP($D111,Busqueda_Cedula,3,0)))),\" \")","v":" "},{"$f":"IFERROR(IF($D111=0,\" \",IF(TEMA=\"NOMBRE\",VLOOKUP($D111,Datos[#All],5,0),IF(TEMA=\"IDENTIFICACIÓN\",VLOOKUP($D111,Busqueda_Cedula,4,0)))),\" \")","v":" "},{"$f":"IFERROR(IF($D111=0,\" \",IF(TEMA=\"NOMBRE\",VLOOKUP($D111,Datos[#All],6,0),IF(TEMA=\"IDENTIFICACIÓN\",VLOOKUP($D111,Busqueda_Cedula,5,0)))),\" \")","v":" "},{"$f":"IFERROR(IF($D111=0,\" \",IF(TEMA=\"NOMBRE\",VLOOKUP($D111,Datos[#All],7,0),IF(TEMA=\"IDENTIFICACIÓN\",VLOOKUP($D111,Busqueda_Cedula,6,0)))),\" \")","v":" "},{"$f":"IFERROR(IF($D111=0,\" \",IF(TEMA=\"NOMBRE\",VLOOKUP($D111,Datos[#All],8,0),IF(TEMA=\"IDENTIFICACIÓN\",VLOOKUP($D111,Busqueda_Cedula,7,0)))),\" \")","v":" "},{"$f":"IFERROR(IF($D111=0,\" \",IF(TEMA=\"NOMBRE\",VLOOKUP($D111,Datos[#All],9,0),IF(TEMA=\"IDENTIFICACIÓN\",VLOOKUP($D111,Busqueda_Cedula,8,0)))),\" \")","v":" "},{"$f":"IFERROR(IF($D111=0,\" \",IF(TEMA=\"NOMBRE\",VLOOKUP($D111,Datos[#All],10,0),IF(TEMA=\"IDENTIFICACIÓN\",VLOOKUP($D111,Busqueda_Cedula,9,0)))),\" \")","v":" "},{"$f":"IFERROR(IF($D111=0,\" \",IF(TEMA=\"NOMBRE\",VLOOKUP($D111,Datos[#All],11,0),IF(TEMA=\"IDENTIFICACIÓN\",VLOOKUP($D111,Busqueda_Cedula,10,0)))),\" \")","v":" "}]
[null,null,null," ",null,{"$f":"IFERROR(IF($D112=0,\" \",IF(TEMA=\"NOMBRE\",VLOOKUP($D112,Datos[#All],4,0),IF(TEMA=\"IDENTIFICACIÓN\",VLOOKUP($D112,Busqueda_Cedula,3,0)))),\" \")","v":" "},{"$f":"IFERROR(IF($D112=0,\" \",IF(TEMA=\"NOMBRE\",VLOOKUP($D112,Datos[#All],5,0),IF(TEMA=\"IDENTIFICACIÓN\",VLOOKUP($D112,Busqueda_Cedula,4,0)))),\" \")","v":" "},{"$f":"IFERROR(IF($D112=0,\" \",IF(TEMA=\"NOMBRE\",VLOOKUP($D112,Datos[#All],6,0),IF(TEMA=\"IDENTIFICACIÓN\",VLOOKUP($D112,Busqueda_Cedula,5,0)))),\" \")","v":" "},{"$f":"IFERROR(IF($D112=0,\" \",IF(TEMA=\"NOMBRE\",VLOOKUP($D112,Datos[#All],7,0),IF(TEMA=\"IDENTIFICACIÓN\",VLOOKUP($D112,Busqueda_Cedula,6,0)))),\" \")","v":" "},{"$f":"IFERROR(IF($D112=0,\" \",IF(TEMA=\"NOMBRE\",VLOOKUP($D112,Datos[#All],8,0),IF(TEMA=\"IDENTIFICACIÓN\",VLOOKUP($D112,Busqueda_Cedula,7,0)))),\" \")","v":" "},{"$f":"IFERROR(IF($D112=0,\" \",IF(TEMA=\"NOMBRE\",VLOOKUP($D112,Datos[#All],9,0),IF(TEMA=\"IDENTIFICACIÓN\",VLOOKUP($D112,Busqueda_Cedula,8,0)))),\" \")","v":" "},{"$f":"IFERROR(IF($D112=0,\" \",IF(TEMA=\"NOMBRE\",VLOOKUP($D112,Datos[#All],10,0),IF(TEMA=\"IDENTIFICACIÓN\",VLOOKUP($D112,Busqueda_Cedula,9,0)))),\" \")","v":" "},{"$f":"IFERROR(IF($D112=0,\" \",IF(TEMA=\"NOMBRE\",VLOOKUP($D112,Datos[#All],11,0),IF(TEMA=\"IDENTIFICACIÓN\",VLOOKUP($D112,Busqueda_Cedula,10,0)))),\" \")","v":" "}]
[null,null,null," ",null,{"$f":"IFERROR(IF($D113=0,\" \",IF(TEMA=\"NOMBRE\",VLOOKUP($D113,Datos[#All],4,0),IF(TEMA=\"IDENTIFICACIÓN\",VLOOKUP($D113,Busqueda_Cedula,3,0)))),\" \")","v":" "},{"$f":"IFERROR(IF($D113=0,\" \",IF(TEMA=\"NOMBRE\",VLOOKUP($D113,Datos[#All],5,0),IF(TEMA=\"IDENTIFICACIÓN\",VLOOKUP($D113,Busqueda_Cedula,4,0)))),\" \")","v":" "},{"$f":"IFERROR(IF($D113=0,\" \",IF(TEMA=\"NOMBRE\",VLOOKUP($D113,Datos[#All],6,0),IF(TEMA=\"IDENTIFICACIÓN\",VLOOKUP($D113,Busqueda_Cedula,5,0)))),\" \")","v":" "},{"$f":"IFERROR(IF($D113=0,\" \",IF(TEMA=\"NOMBRE\",VLOOKUP($D113,Datos[#All],7,0),IF(TEMA=\"IDENTIFICACIÓN\",VLOOKUP($D113,Busqueda_Cedula,6,0)))),\" \")","v":" "},{"$f":"IFERROR(IF($D113=0,\" \",IF(TEMA=\"NOMBRE\",VLOOKUP($D113,Datos[#All],8,0),IF(TEMA=\"IDENTIFICACIÓN\",VLOOKUP($D113,Busqueda_Cedula,7,0)))),\" \")","v":" "},{"$f":"IFERROR(IF($D113=0,\" \",IF(TEMA=\"NOMBRE\",VLOOKUP($D113,Datos[#All],9,0),IF(TEMA=\"IDENTIFICACIÓN\",VLOOKUP($D113,Busqueda_Cedula,8,0)))),\" \")","v":" "},{"$f":"IFERROR(IF($D113=0,\" \",IF(TEMA=\"NOMBRE\",VLOOKUP($D113,Datos[#All],10,0),IF(TEMA=\"IDENTIFICACIÓN\",VLOOKUP($D113,Busqueda_Cedula,9,0)))),\" \")","v":" "},{"$f":"IFERROR(IF($D113=0,\" \",IF(TEMA=\"NOMBRE\",VLOOKUP($D113,Datos[#All],11,0),IF(TEMA=\"IDENTIFICACIÓN\",VLOOKUP($D113,Busqueda_Cedula,10,0)))),\" \")","v":" "}]
[null,null,null," ",null,{"$f":"IFERROR(IF($D114=0,\" \",IF(TEMA=\"NOMBRE\",VLOOKUP($D114,Datos[#All],4,0),IF(TEMA=\"IDENTIFICACIÓN\",VLOOKUP($D114,Busqueda_Cedula,3,0)))),\" \")","v":" "},{"$f":"IFERROR(IF($D114=0,\" \",IF(TEMA=\"NOMBRE\",VLOOKUP($D114,Datos[#All],5,0),IF(TEMA=\"IDENTIFICACIÓN\",VLOOKUP($D114,Busqueda_Cedula,4,0)))),\" \")","v":" "},{"$f":"IFERROR(IF($D114=0,\" \",IF(TEMA=\"NOMBRE\",VLOOKUP($D114,Datos[#All],6,0),IF(TEMA=\"IDENTIFICACIÓN\",VLOOKUP($D114,Busqueda_Cedula,5,0)))),\" \")","v":" "},{"$f":"IFERROR(IF($D114=0,\" \",IF(TEMA=\"NOMBRE\",VLOOKUP($D114,Datos[#All],7,0),IF(TEMA=\"IDENTIFICACIÓN\",VLOOKUP($D114,Busqueda_Cedula,6,0)))),\" \")","v":" "},{"$f":"IFERROR(IF($D114=0,\" \",IF(TEMA=\"NOMBRE\",VLOOKUP($D114,Datos[#All],8,0),IF(TEMA=\"IDENTIFICACIÓN\",VLOOKUP($D114,Busqueda_Cedula,7,0)))),\" \")","v":" "},{"$f":"IFERROR(IF($D114=0,\" \",IF(TEMA=\"NOMBRE\",VLOOKUP($D114,Datos[#All],9,0),IF(TEMA=\"IDENTIFICACIÓN\",VLOOKUP($D114,Busqueda_Cedula,8,0)))),\" \")","v":" "},{"$f":"IFERROR(IF($D114=0,\" \",IF(TEMA=\"NOMBRE\",VLOOKUP($D114,Datos[#All],10,0),IF(TEMA=\"IDENTIFICACIÓN\",VLOOKUP($D114,Busqueda_Cedula,9,0)))),\" \")","v":" "},{"$f":"IFERROR(IF($D114=0,\" \",IF(TEMA=\"NOMBRE\",VLOOKUP($D114,Datos[#All],11,0),IF(TEMA=\"IDENTIFICACIÓN\",VLOOKUP($D114,Busqueda_Cedula,10,0)))),\" \")","v":" "}]